Organisation Name,Organisation Code,Effective Date,Directorate,Service (Sercop),Sercop URI,Supplier Name,Supplier ID,Company Registration,Charity Registration,VCSE Grant,Payment Date,Transaction Number,Seq No,Net Amount,Irrecoverable VAT,Purpose of Spend,Type,Procurement Classification,Class Code,Procurement Classification,Class Code,Thomson Classification,Thomson Description,P-Card Tran,Contract
Wakefield MDC,E08000036,31/12/2014,REGENCULT,BVACOP Not Applicable,Z,COLAS LTD,Redacted,Not yet available,Not yet available,Not yet available,06/10/2014,22608398,1,1034.40,Nil,Highways Materials,Revenue,Highways,CAT07,Surfacing,SUBCAT0708,65400,Road Surfacing Contractors,,Not yet available
Wakefield MDC,E08000036,31/12/2014,REGENCULT,BVACOP Not Applicable,Z,COLAS LTD,Redacted,Not yet available,Not yet available,Not yet available,26/11/2014,22650446,1,1548.48,Nil,Highways Materials,Revenue,Highways,CAT07,Surfacing,SUBCAT0708,65400,Road Surfacing Contractors,,Not yet available
Wakefield MDC,E08000036,31/12/2014,REGENCULT,BVACOP Not Applicable,Z,COMPASS MINERALS UK LTD,Redacted,Not yet available,Not yet available,Not yet available,03/10/2014,22607774,1,2969.42,Nil,Highways Materials,Revenue,Highways,CAT07,Materials,SUBCAT0703,66340,Salt Suppliers,,Not yet available
Wakefield MDC,E08000036,31/12/2014,REGENCULT,BVACOP Not Applicable,Z,COMPASS MINERALS UK LTD,Redacted,Not yet available,Not yet available,Not yet available,06/10/2014,22609186,1,1961.55,Nil,Highways Materials,Revenue,Highways,CAT07,Materials,SUBCAT0703,66340,Salt Suppliers,,Not yet available
Wakefield MDC,E08000036,31/12/2014,REGENCULT,BVACOP Not Applicable,Z,AGGREGATE INDUSTRIES UK LTD,Redacted,Not yet available,Not yet available,Not yet available,19/11/2014,22646058,1,676.20,Nil,Highways Materials,Revenue,Highways,CAT07,Materials,SUBCAT0703,66370,"Sand, Gravel & Other Aggregates",,Not yet available
Wakefield MDC,E08000036,31/12/2014,REGENCULT,BVACOP Not Applicable,Z,MARSHALLS PLC,Redacted,Not yet available,Not yet available,Not yet available,09/10/2014,22604084,1,2540.00,Nil,Highways Materials,Revenue,Highways,CAT07,Materials,SUBCAT0703,66370,"Sand, Gravel & Other Aggregates",,Not yet available
Wakefield MDC,E08000036,31/12/2014,REGENCULT,BVACOP Not Applicable,Z,MARSHALLS PLC,Redacted,Not yet available,Not yet available,Not yet available,29/10/2014,22588014,1,2536.96,Nil,Highways Materials,Revenue,Highways,CAT07,Materials,SUBCAT0703,66370,"Sand, Gravel & Other Aggregates",,Not yet available
Wakefield MDC,E08000036,31/12/2014,REGENCULT,BVACOP Not Applicable,Z,MARSHALLS PLC,Redacted,Not yet available,Not yet available,Not yet available,19/11/2014,22645796,1,1984.16,Nil,Highways Materials,Revenue,Highways,CAT07,Materials,SUBCAT0703,66370,"Sand, Gravel & Other Aggregates",,Not yet available
Wakefield MDC,E08000036,31/12/2014,REGENCULT,BVACOP Not Applicable,Z,MARSHALLS PLC,Redacted,Not yet available,Not yet available,Not yet available,17/12/2014,22668512,1,1458.24,Nil,Highways Materials,Revenue,Highways,CAT07,Materials,SUBCAT0703,66370,"Sand, Gravel & Other Aggregates",,Not yet available
Wakefield MDC,E08000036,31/12/2014,REGENCULT,BVACOP Not Applicable,Z,DURO UK LTD,Redacted,Not yet available,Not yet available,Not yet available,14/10/2014,22612889,1,700.00,Nil,Highways Materials,Revenue,Property & Asset Management,CAT01,Building Services - Misc,SUBCAT0115,78761,"Tool Design, Mnfrs & Makers",,Not yet available
Wakefield MDC,E08000036,31/12/2014,REGENCULT,BVACOP Not Applicable,Z,SAINT GOBAIN UK/JEWSON LIMITED,Redacted,Not yet available,Not yet available,Not yet available,15/10/2014,22614115,1,1052.24,Nil,Highways Materials,Revenue,Property & Asset Management,CAT01,Building Services - Glazing,SUBCAT0110,40401,Glass Products - Mnfrs,,Not yet available
Wakefield MDC,E08000036,31/12/2014,REGENCULT,BVACOP Not Applicable,Z,SAINT GOBAIN UK/JEWSON LIMITED,Redacted,Not yet available,Not yet available,Not yet available,22/10/2014,22624963,1,1528.86,Nil,Highways Materials,Revenue,Property & Asset Management,CAT01,Building Services - Glazing,SUBCAT0110,40401,Glass Products - Mnfrs,,Not yet available
Wakefield MDC,E08000036,31/12/2014,REGENCULT,BVACOP Not Applicable,Z,SAINT GOBAIN UK/JEWSON LIMITED,Redacted,Not yet available,Not yet available,Not yet available,04/11/2014,22630887,1,5581.10,Nil,Highways Materials,Revenue,Property & Asset Management,CAT01,Building Services - Glazing,SUBCAT0110,40401,Glass Products - Mnfrs,,Not yet available
Wakefield MDC,E08000036,31/12/2014,REGENCULT,BVACOP Not Applicable,Z,SAINT GOBAIN UK/JEWSON LIMITED,Redacted,Not yet available,Not yet available,Not yet available,04/11/2014,22630888,1,1745.24,Nil,Highways Materials,Revenue,Property & Asset Management,CAT01,Building Services - Glazing,SUBCAT0110,40401,Glass Products - Mnfrs,,Not yet available
Wakefield MDC,E08000036,31/12/2014,REGENCULT,BVACOP Not Applicable,Z,SAINT GOBAIN UK/JEWSON LIMITED,Redacted,Not yet available,Not yet available,Not yet available,12/11/2014,22635293,1,2926.20,Nil,Highways Materials,Revenue,Property & Asset Management,CAT01,Building Services - Glazing,SUBCAT0110,40401,Glass Products - Mnfrs,,Not yet available
Wakefield MDC,E08000036,31/12/2014,REGENCULT,BVACOP Not Applicable,Z,SAINT GOBAIN UK/JEWSON LIMITED,Redacted,Not yet available,Not yet available,Not yet available,20/11/2014,22646998,1,2551.36,Nil,Highways Materials,Revenue,Property & Asset Management,CAT01,Building Services - Glazing,SUBCAT0110,40401,Glass Products - Mnfrs,,Not yet available
Wakefield MDC,E08000036,31/12/2014,REGENCULT,BVACOP Not Applicable,Z,SAINT GOBAIN UK/JEWSON LIMITED,Redacted,Not yet available,Not yet available,Not yet available,26/11/2014,22649763,1,7813.54,Nil,Highways Materials,Revenue,Property & Asset Management,CAT01,Building Services - Glazing,SUBCAT0110,40401,Glass Products - Mnfrs,,Not yet available
Wakefield MDC,E08000036,31/12/2014,REGENCULT,BVACOP Not Applicable,Z,SAINT GOBAIN UK/JEWSON LIMITED,Redacted,Not yet available,Not yet available,Not yet available,04/12/2014,22654405,1,949.90,Nil,Highways Materials,Revenue,Property & Asset Management,CAT01,Building Services - Glazing,SUBCAT0110,40401,Glass Products - Mnfrs,,Not yet available
Wakefield MDC,E08000036,31/12/2014,REGENCULT,BVACOP Not Applicable,Z,SAINT GOBAIN UK/JEWSON LIMITED,Redacted,Not yet available,Not yet available,Not yet available,23/12/2014,22673796,1,1810.10,Nil,Highways Materials,Revenue,Property & Asset Management,CAT01,Building Services - Glazing,SUBCAT0110,40401,Glass Products - Mnfrs,,Not yet available
Wakefield MDC,E08000036,31/12/2014,BUSINESS,BVACOP Not Applicable,Z,EDMUNDSON ELECTRICAL LTD,Redacted,Not yet available,Not yet available,Not yet available,02/12/2014,22652803,1,750.80,Nil,Building Materials,Revenue,Property & Asset Management,CAT01,Building Services - Electrical,SUBCAT0107,30570,Electrical Wholesalers,,Not yet available
Wakefield MDC,E08000036,31/12/2014,BUSINESS,BVACOP Not Applicable,Z,EDMUNDSON ELECTRICAL LTD,Redacted,Not yet available,Not yet available,Not yet available,16/12/2014,22667252,1,550.00,Nil,Building Materials,Revenue,Property & Asset Management,CAT01,Building Services - Electrical,SUBCAT0107,30570,Electrical Wholesalers,,Not yet available
Wakefield MDC,E08000036,31/12/2014,BUSINESS,BVACOP Not Applicable,Z,BILBECK (MERCHANTS) LTD,Redacted,Not yet available,Not yet available,Not yet available,07/10/2014,22607868,1,957.94,Nil,Building Materials,Revenue,Property & Asset Management,CAT01,Building Services - Plumbing,SUBCAT0118,59860,Plumbers� Merchants,,Not yet available
Wakefield MDC,E08000036,31/12/2014,BUSINESS,BVACOP Not Applicable,Z,BILBECK (MERCHANTS) LTD,Redacted,Not yet available,Not yet available,Not yet available,22/10/2014,22624933,1,565.80,Nil,Building Materials,Revenue,Property & Asset Management,CAT01,Building Services - Plumbing,SUBCAT0118,59860,Plumbers� Merchants,,Not yet available
Wakefield MDC,E08000036,31/12/2014,BUSINESS,BVACOP Not Applicable,Z,BILBECK (MERCHANTS) LTD,Redacted,Not yet available,Not yet available,Not yet available,23/10/2014,22624864,1,526.73,Nil,Building Materials,Revenue,Property & Asset Management,CAT01,Building Services - Plumbing,SUBCAT0118,59860,Plumbers� Merchants,,Not yet available
Wakefield MDC,E08000036,31/12/2014,BUSINESS,BVACOP Not Applicable,Z,BILBECK (MERCHANTS) LTD,Redacted,Not yet available,Not yet available,Not yet available,28/10/2014,22627550,1,835.10,Nil,Building Materials,Revenue,Property & Asset Management,CAT01,Building Services - Plumbing,SUBCAT0118,59860,Plumbers� Merchants,,Not yet available
Wakefield MDC,E08000036,31/12/2014,BUSINESS,BVACOP Not Applicable,Z,BILBECK (MERCHANTS) LTD,Redacted,Not yet available,Not yet available,Not yet available,07/11/2014,22632767,1,877.31,Nil,Building Materials,Revenue,Property & Asset Management,CAT01,Building Services - Plumbing,SUBCAT0118,59860,Plumbers� Merchants,,Not yet available
Wakefield MDC,E08000036,31/12/2014,BUSINESS,BVACOP Not Applicable,Z,BILBECK (MERCHANTS) LTD,Redacted,Not yet available,Not yet available,Not yet available,26/11/2014,22649839,1,948.76,Nil,Building Materials,Revenue,Property & Asset Management,CAT01,Building Services - Plumbing,SUBCAT0118,59860,Plumbers� Merchants,,Not yet available
Wakefield MDC,E08000036,31/12/2014,BUSINESS,BVACOP Not Applicable,Z,ELECTRIC WATER HEATING CO,Redacted,Not yet available,Not yet available,Not yet available,28/10/2014,22627349,1,670.00,Nil,Building Materials,Revenue,Property & Asset Management,CAT01,Building Services - Heating,SUBCAT0112,42920,Heating Equipment - Sales & Service,,Not yet available
Wakefield MDC,E08000036,31/12/2014,BUSINESS,BVACOP Not Applicable,Z,ICOPAL LTD,Redacted,Not yet available,Not yet available,Not yet available,23/10/2014,22625569,1,2734.20,Nil,Building Materials,Revenue,Property & Asset Management,CAT01,Building Services - Roofing,SUBCAT0119,65470,Roofing Services,,Not yet available
Wakefield MDC,E08000036,31/12/2014,BUSINESS,BVACOP Not Applicable,Z,ICOPAL LTD,Redacted,Not yet available,Not yet available,Not yet available,08/12/2014,22655776,1,4101.30,Nil,Building Materials,Revenue,Property & Asset Management,CAT01,Building Services - Roofing,SUBCAT0119,65470,Roofing Services,,Not yet available
Wakefield MDC,E08000036,31/12/2014,BUSINESS,BVACOP Not Applicable,Z,ALVIN MORRIS,Redacted,Not yet available,Not yet available,Not yet available,15/10/2014,22613971,1,571.84,Nil,Building Materials,Revenue,Property & Asset Management,CAT01,Building Services - Flooring,SUBCAT0109,36620,Flooring Materials - Building,,Not yet available
Wakefield MDC,E08000036,31/12/2014,BUSINESS,BVACOP Not Applicable,Z,ALVIN MORRIS,Redacted,Not yet available,Not yet available,Not yet available,19/11/2014,22646153,1,992.88,Nil,Building Materials,Revenue,Property & Asset Management,CAT01,Building Services - Flooring,SUBCAT0109,36620,Flooring Materials - Building,,Not yet available
Wakefield MDC,E08000036,31/12/2014,BUSINESS,BVACOP Not Applicable,Z,DULUX DECORATOR CENTRES/ICI CONTRACT DIRECT,Redacted,Not yet available,Not yet available,Not yet available,04/11/2014,22630753,1,574.48,Nil,Building Materials,Revenue,Property & Asset Management,CAT01,Building Services - Painting,SUBCAT0116,55630,Painting & Decorating Supplies,,Not yet available
Wakefield MDC,E08000036,31/12/2014,BUSINESS,BVACOP Not Applicable,Z,DULUX DECORATOR CENTRES/ICI CONTRACT DIRECT,Redacted,Not yet available,Not yet available,Not yet available,19/11/2014,22645779,1,553.06,Nil,Building Materials,Revenue,Property & Asset Management,CAT01,Building Services - Painting,SUBCAT0116,55630,Painting & Decorating Supplies,,Not yet available
Wakefield MDC,E08000036,31/12/2014,BUSINESS,BVACOP Not Applicable,Z,BSS GROUP,Redacted,Not yet available,Not yet available,Not yet available,06/10/2014,22608368,1,714.51,Nil,Building Materials,Revenue,Property & Asset Management,CAT01,Building Services - Plumbing,SUBCAT0118,58755,Pipes & Fittings,,Not yet available
Wakefield MDC,E08000036,31/12/2014,BUSINESS,BVACOP Not Applicable,Z,BSS GROUP,Redacted,Not yet available,Not yet available,Not yet available,06/10/2014,22608372,1,573.54,Nil,Building Materials,Revenue,Property & Asset Management,CAT01,Building Services - Plumbing,SUBCAT0118,58755,Pipes & Fittings,,Not yet available
Wakefield MDC,E08000036,31/12/2014,BUSINESS,BVACOP Not Applicable,Z,BSS GROUP,Redacted,Not yet available,Not yet available,Not yet available,14/10/2014,22613645,1,571.55,Nil,Building Materials,Revenue,Property & Asset Management,CAT01,Building Services - Plumbing,SUBCAT0118,58755,Pipes & Fittings,,Not yet available
Wakefield MDC,E08000036,31/12/2014,BUSINESS,BVACOP Not Applicable,Z,BSS GROUP,Redacted,Not yet available,Not yet available,Not yet available,17/10/2014,22621868,1,1183.08,Nil,Building Materials,Revenue,Property & Asset Management,CAT01,Building Services - Plumbing,SUBCAT0118,58755,Pipes & Fittings,,Not yet available
Wakefield MDC,E08000036,31/12/2014,BUSINESS,BVACOP Not Applicable,Z,BSS GROUP,Redacted,Not yet available,Not yet available,Not yet available,21/10/2014,22623926,1,2176.79,Nil,Building Materials,Revenue,Property & Asset Management,CAT01,Building Services - Plumbing,SUBCAT0118,58755,Pipes & Fittings,,Not yet available
Wakefield MDC,E08000036,31/12/2014,BUSINESS,BVACOP Not Applicable,Z,BSS GROUP,Redacted,Not yet available,Not yet available,Not yet available,03/11/2014,22629903,1,1088.39,Nil,Building Materials,Revenue,Property & Asset Management,CAT01,Building Services - Plumbing,SUBCAT0118,58755,Pipes & Fittings,,Not yet available
Wakefield MDC,E08000036,31/12/2014,BUSINESS,BVACOP Not Applicable,Z,BSS GROUP,Redacted,Not yet available,Not yet available,Not yet available,04/11/2014,22630826,1,835.79,Nil,Building Materials,Revenue,Property & Asset Management,CAT01,Building Services - Plumbing,SUBCAT0118,58755,Pipes & Fittings,,Not yet available
Wakefield MDC,E08000036,31/12/2014,BUSINESS,BVACOP Not Applicable,Z,BSS GROUP,Redacted,Not yet available,Not yet available,Not yet available,17/12/2014,22668535,1,1948.46,Nil,Building Materials,Revenue,Property & Asset Management,CAT01,Building Services - Plumbing,SUBCAT0118,58755,Pipes & Fittings,,Not yet available
Wakefield MDC,E08000036,31/12/2014,BUSINESS,BVACOP Not Applicable,Z,BSS GROUP,Redacted,Not yet available,Not yet available,Not yet available,23/12/2014,22673799,1,1744.07,Nil,Building Materials,Revenue,Property & Asset Management,CAT01,Building Services - Plumbing,SUBCAT0118,58755,Pipes & Fittings,,Not yet available
Wakefield MDC,E08000036,31/12/2014,BUSINESS,BVACOP Not Applicable,Z,ELECTRICAL WHOLESALE (HUDDERSFIELD),Redacted,Not yet available,Not yet available,Not yet available,16/12/2014,22667056,1,620.00,Nil,Building Materials,Revenue,Property & Asset Management,CAT01,Building Services - Electrical,SUBCAT0107,30570,Electrical Wholesalers,,Not yet available
Wakefield MDC,E08000036,31/12/2014,BUSINESS,BVACOP Not Applicable,Z,COLTON BATHROOM SUPPLIES,Redacted,Not yet available,Not yet available,Not yet available,06/10/2014,22607908,1,852.79,Nil,Building Materials,Revenue,Property & Asset Management,CAT01,Building Services - Plumbing,SUBCAT0118,06830,Bathroom Fixtures - Mnfrs,,Not yet available
Wakefield MDC,E08000036,31/12/2014,BUSINESS,BVACOP Not Applicable,Z,ASD METAL SERVICES,Redacted,Not yet available,Not yet available,Not yet available,07/10/2014,22609229,1,700.00,Nil,Building Materials,Revenue,Property & Asset Management,CAT01,Building Services - Metal,SUBCAT0114,73580,Steel Stockholders,,Not yet available
Wakefield MDC,E08000036,31/12/2014,BUSINESS,BVACOP Not Applicable,Z,ASD METAL SERVICES,Redacted,Not yet available,Not yet available,Not yet available,22/12/2014,22671788,1,542.00,Nil,Building Materials,Revenue,Property & Asset Management,CAT01,Building Services - Metal,SUBCAT0114,73580,Steel Stockholders,,Not yet available
Wakefield MDC,E08000036,31/12/2014,BUSINESS,BVACOP Not Applicable,Z,HOWARTH TIMBER & BUILDING SUPPLIES,Redacted,Not yet available,Not yet available,Not yet available,07/11/2014,22632475,1,1097.09,Nil,Building Materials,Revenue,Property & Asset Management,CAT01,Building Services - Timber,SUBCAT0123,78210,"Timber Merchants, Importers & Agents",,Not yet available
Wakefield MDC,E08000036,31/12/2014,BUSINESS,BVACOP Not Applicable,Z,MEYER TIMBER.COM,Redacted,Not yet available,Not yet available,Not yet available,30/10/2014,22628908,1,913.50,Nil,Building Materials,Revenue,Property & Asset Management,CAT01,Building Services - Timber,SUBCAT0123,78210,"Timber Merchants, Importers & Agents",,Not yet available
Wakefield MDC,E08000036,31/12/2014,BUSINESS,BVACOP Not Applicable,Z,MEYER TIMBER.COM,Redacted,Not yet available,Not yet available,Not yet available,12/11/2014,22635302,1,670.00,Nil,Building Materials,Revenue,Property & Asset Management,CAT01,Building Services - Timber,SUBCAT0123,78210,"Timber Merchants, Importers & Agents",,Not yet available
Wakefield MDC,E08000036,31/12/2014,BUSINESS,BVACOP Not Applicable,Z,MEYER TIMBER.COM,Redacted,Not yet available,Not yet available,Not yet available,09/12/2014,22656789,1,502.50,Nil,Building Materials,Revenue,Property & Asset Management,CAT01,Building Services - Timber,SUBCAT0123,78210,"Timber Merchants, Importers & Agents",,Not yet available
Wakefield MDC,E08000036,31/12/2014,BUSINESS,BVACOP Not Applicable,Z,FIRST FIX INDUSTRIAL SUPPLIES LTD,Redacted,Not yet available,Not yet available,Not yet available,03/11/2014,22630666,1,961.93,Nil,Building Materials,Revenue,Property & Asset Management,CAT01,Building Services - Misc,SUBCAT0115,34360,Fasteners & Fixing Devices,,Not yet available
Wakefield MDC,E08000036,31/12/2014,BUSINESS,BVACOP Not Applicable,Z,FIRST FIX INDUSTRIAL SUPPLIES LTD,Redacted,Not yet available,Not yet available,Not yet available,23/12/2014,22673321,1,880.70,Nil,Building Materials,Revenue,Property & Asset Management,CAT01,Building Services - Misc,SUBCAT0115,34360,Fasteners & Fixing Devices,,Not yet available
Wakefield MDC,E08000036,31/12/2014,BUSINESS,BVACOP Not Applicable,Z,R S COMPONENTS LTD,Redacted,Not yet available,Not yet available,Not yet available,08/10/2014,22610362,1,619.74,Nil,Building Materials,Revenue,Property & Asset Management,CAT01,Building Services - Electrical,SUBCAT0107,30710,Electronic Component Mnfrs & Distributors,,Not yet available
Wakefield MDC,E08000036,31/12/2014,BUSINESS,BVACOP Not Applicable,Z,SMITH BROS (CAERCONAN) WHOLESALE LTD,Redacted,Not yet available,Not yet available,Not yet available,14/10/2014,22612971,1,841.26,Nil,Building Materials,Revenue,Property & Asset Management,CAT01,Building Services - Electrical,SUBCAT0107,30570,Electrical Wholesalers,,Not yet available
Wakefield MDC,E08000036,31/12/2014,BUSINESS,BVACOP Not Applicable,Z,SMITH BROS (CAERCONAN) WHOLESALE LTD,Redacted,Not yet available,Not yet available,Not yet available,21/10/2014,22623632,1,652.59,Nil,Building Materials,Revenue,Property & Asset Management,CAT01,Building Services - Electrical,SUBCAT0107,30570,Electrical Wholesalers,,Not yet available
Wakefield MDC,E08000036,31/12/2014,BUSINESS,BVACOP Not Applicable,Z,SMITH BROS (CAERCONAN) WHOLESALE LTD,Redacted,Not yet available,Not yet available,Not yet available,27/10/2014,22623647,1,768.34,Nil,Building Materials,Revenue,Property & Asset Management,CAT01,Building Services - Electrical,SUBCAT0107,30570,Electrical Wholesalers,,Not yet available
Wakefield MDC,E08000036,31/12/2014,BUSINESS,BVACOP Not Applicable,Z,SMITH BROS (CAERCONAN) WHOLESALE LTD,Redacted,Not yet available,Not yet available,Not yet available,17/12/2014,22668977,1,659.92,Nil,Building Materials,Revenue,Property & Asset Management,CAT01,Building Services - Electrical,SUBCAT0107,30570,Electrical Wholesalers,,Not yet available
Wakefield MDC,E08000036,31/12/2014,BUSINESS,BVACOP Not Applicable,Z,SMITH BROS (CAERCONAN) WHOLESALE LTD,Redacted,Not yet available,Not yet available,Not yet available,23/12/2014,22673029,1,993.79,Nil,Building Materials,Revenue,Property & Asset Management,CAT01,Building Services - Electrical,SUBCAT0107,30570,Electrical Wholesalers,,Not yet available
Wakefield MDC,E08000036,31/12/2014,BUSINESS,BVACOP Not Applicable,Z,POINTER LIMITED (POINTER FIRE),Redacted,Not yet available,Not yet available,Not yet available,04/11/2014,22631145,1,1725.23,Nil,Building Materials,Revenue,Property & Asset Management,CAT01,Security,SUBCAT0138,11700,Burglar & Intruder Alarm Systems,,Not yet available
Wakefield MDC,E08000036,31/12/2014,BUSINESS,BVACOP Not Applicable,Z,POINTER LIMITED (POINTER FIRE),Redacted,Not yet available,Not yet available,Not yet available,10/12/2014,22657188,1,812.60,Nil,Building Materials,Revenue,Property & Asset Management,CAT01,Security,SUBCAT0138,11700,Burglar & Intruder Alarm Systems,,Not yet available
Wakefield MDC,E08000036,31/12/2014,BUSINESS,BVACOP Not Applicable,Z,JOHN MONAGHAN LTD,Redacted,Not yet available,Not yet available,Not yet available,16/12/2014,22667353,1,1057.60,Nil,Building Materials,Revenue,Property & Asset Management,CAT01,Building Services - Architectural Ironmongery,SUBCAT0105,42010,Hardware Merchants & Ironmongers,,Not yet available
Wakefield MDC,E08000036,31/12/2014,BUSINESS,BVACOP Not Applicable,Z,H-TE WESTERN AUTOMATION,Redacted,Not yet available,Not yet available,Not yet available,14/10/2014,22612938,1,509.86,Nil,Building Materials,Revenue,Property & Asset Management,CAT01,Security,SUBCAT0138,94521,Control Panels and Equipment,,Not yet available
Wakefield MDC,E08000036,31/12/2014,BUSINESS,BVACOP Not Applicable,Z,SIROFLEX LTD,Redacted,Not yet available,Not yet available,Not yet available,06/10/2014,22608446,1,799.72,Nil,Building Materials,Revenue,Property & Asset Management,CAT01,Building Services - Adhesive & Abrasives,SUBCAT0104,01851,Adhesives; Glues & Sealants,,Not yet available
Wakefield MDC,E08000036,31/12/2014,BUSINESS,BVACOP Not Applicable,Z,SIROFLEX LTD,Redacted,Not yet available,Not yet available,Not yet available,26/11/2014,22649700,1,925.72,Nil,Building Materials,Revenue,Property & Asset Management,CAT01,Building Services - Adhesive & Abrasives,SUBCAT0104,01851,Adhesives; Glues & Sealants,,Not yet available
Wakefield MDC,E08000036,31/12/2014,BUSINESS,BVACOP Not Applicable,Z,PTS PLUMBING TRADE SUPPLIES (WAKEFIELD),Redacted,Not yet available,Not yet available,Not yet available,18/12/2014,22669842,1,516.70,Nil,Building Materials,Revenue,Property & Asset Management,CAT01,Building Services - Plumbing,SUBCAT0118,59860,Plumbers� Merchants,,Not yet available
Wakefield MDC,E08000036,31/12/2014,BUSINESS,BVACOP Not Applicable,Z,BUNZL UK T/A NATIONAL SAFETY SUPPLIES,Redacted,Not yet available,Not yet available,Not yet available,16/10/2014,22613001,1,1051.77,Nil,Building Materials,Revenue,Business Services,CAT02,Clothing & PPE,SUBCAT0208,86070,Workwear & Protective Equipment,,Not yet available
Wakefield MDC,E08000036,31/12/2014,BUSINESS,BVACOP Not Applicable,Z,BUNZL UK T/A NATIONAL SAFETY SUPPLIES,Redacted,Not yet available,Not yet available,Not yet available,02/12/2014,22652873,1,582.90,Nil,Building Materials,Revenue,Business Services,CAT02,Clothing & PPE,SUBCAT0208,86070,Workwear & Protective Equipment,,Not yet available
Wakefield MDC,E08000036,31/12/2014,BUSINESS,BVACOP Not Applicable,Z,ASD METAL SERVICES,Redacted,Not yet available,Not yet available,Not yet available,13/11/2014,22642174,1,757.10,Nil,Building Materials,Revenue,Property & Asset Management,CAT01,Building Services - Metal,SUBCAT0114,73580,Steel Stockholders,,Not yet available
Wakefield MDC,E08000036,31/12/2014,BUSINESS,BVACOP Not Applicable,Z,WM SMITH & SONS (BARNARD CASTLE) LTD,Redacted,Not yet available,Not yet available,Not yet available,07/10/2014,22609237,1,1017.36,Nil,Building Materials,Revenue,Property & Asset Management,CAT01,Building Services - Signage,SUBCAT0121,70800,Sign Makers� Equipment & Materials,,Not yet available
Wakefield MDC,E08000036,31/12/2014,BUSINESS,BVACOP Not Applicable,Z,WM SMITH & SONS (BARNARD CASTLE) LTD,Redacted,Not yet available,Not yet available,Not yet available,18/11/2014,22645174,1,688.66,Nil,Building Materials,Revenue,Property & Asset Management,CAT01,Building Services - Signage,SUBCAT0121,70800,Sign Makers� Equipment & Materials,,Not yet available
Wakefield MDC,E08000036,31/12/2014,BUSINESS,BVACOP Not Applicable,Z,WM SMITH & SONS (BARNARD CASTLE) LTD,Redacted,Not yet available,Not yet available,Not yet available,19/12/2014,22667484,1,1017.36,Nil,Building Materials,Revenue,Property & Asset Management,CAT01,Building Services - Signage,SUBCAT0121,70800,Sign Makers� Equipment & Materials,,Not yet available
Wakefield MDC,E08000036,31/12/2014,BUSINESS,BVACOP Not Applicable,Z,L B PLASTICS LTD,Redacted,Not yet available,Not yet available,Not yet available,03/10/2014,22607298,1,6035.31,Nil,Building Materials,Revenue,Property & Asset Management,CAT01,Building Services - Glazing,SUBCAT0110,59330,Plastics - Extrusion,,Not yet available
Wakefield MDC,E08000036,31/12/2014,BUSINESS,BVACOP Not Applicable,Z,L B PLASTICS LTD,Redacted,Not yet available,Not yet available,Not yet available,03/10/2014,22599155,1,2781.96,Nil,Building Materials,Revenue,Property & Asset Management,CAT01,Building Services - Glazing,SUBCAT0110,59330,Plastics - Extrusion,,Not yet available
Wakefield MDC,E08000036,31/12/2014,BUSINESS,BVACOP Not Applicable,Z,L B PLASTICS LTD,Redacted,Not yet available,Not yet available,Not yet available,07/10/2014,22609223,1,607.05,Nil,Building Materials,Revenue,Property & Asset Management,CAT01,Building Services - Glazing,SUBCAT0110,59330,Plastics - Extrusion,,Not yet available
Wakefield MDC,E08000036,31/12/2014,BUSINESS,BVACOP Not Applicable,Z,L B PLASTICS LTD,Redacted,Not yet available,Not yet available,Not yet available,10/10/2014,22610934,1,3871.58,Nil,Building Materials,Revenue,Property & Asset Management,CAT01,Building Services - Glazing,SUBCAT0110,59330,Plastics - Extrusion,,Not yet available
Wakefield MDC,E08000036,31/12/2014,BUSINESS,BVACOP Not Applicable,Z,L B PLASTICS LTD,Redacted,Not yet available,Not yet available,Not yet available,23/10/2014,22624910,1,4484.54,Nil,Building Materials,Revenue,Property & Asset Management,CAT01,Building Services - Glazing,SUBCAT0110,59330,Plastics - Extrusion,,Not yet available
Wakefield MDC,E08000036,31/12/2014,BUSINESS,BVACOP Not Applicable,Z,L B PLASTICS LTD,Redacted,Not yet available,Not yet available,Not yet available,12/11/2014,22632776,1,1352.04,Nil,Building Materials,Revenue,Property & Asset Management,CAT01,Building Services - Glazing,SUBCAT0110,59330,Plastics - Extrusion,,Not yet available
Wakefield MDC,E08000036,31/12/2014,BUSINESS,BVACOP Not Applicable,Z,L B PLASTICS LTD,Redacted,Not yet available,Not yet available,Not yet available,17/11/2014,22643969,1,1382.40,Nil,Building Materials,Revenue,Property & Asset Management,CAT01,Building Services - Glazing,SUBCAT0110,59330,Plastics - Extrusion,,Not yet available
Wakefield MDC,E08000036,31/12/2014,BUSINESS,BVACOP Not Applicable,Z,TIMOTHY WOOD LTD,Redacted,Not yet available,Not yet available,Not yet available,22/10/2014,22624922,1,885.50,Nil,Building Materials,Revenue,Property & Asset Management,CAT01,Building Services - Glazing,SUBCAT0110,43195,Hinges,,Not yet available
Wakefield MDC,E08000036,31/12/2014,BUSINESS,BVACOP Not Applicable,Z,TIMOTHY WOOD LTD,Redacted,Not yet available,Not yet available,Not yet available,24/10/2014,22625999,1,593.00,Nil,Building Materials,Revenue,Property & Asset Management,CAT01,Building Services - Glazing,SUBCAT0110,43195,Hinges,,Not yet available
Wakefield MDC,E08000036,31/12/2014,BUSINESS,BVACOP Not Applicable,Z,MACO DOOR & WINDOW HARDWARE UK LTD,Redacted,Not yet available,Not yet available,Not yet available,01/10/2014,22605958,1,1040.70,Nil,Building Materials,Revenue,Property & Asset Management,CAT01,Building Services - Glazing,SUBCAT0110,27247,Door & Window Furniture,,Not yet available
Wakefield MDC,E08000036,31/12/2014,BUSINESS,BVACOP Not Applicable,Z,SHEERFRAME LIMITED,Redacted,Not yet available,Not yet available,Not yet available,24/12/2014,22673722,1,2079.05,Nil,Building Materials,Revenue,Property & Asset Management,CAT01,Building Services - Glazing,SUBCAT0110,59330,Plastics - Extrusion,,Not yet available
Wakefield MDC,E08000036,31/12/2014,BUSINESS,Finance,J,CHEVIN HOUSING ASSOCIATION,Redacted,Not yet available,Not yet available,Not yet available,03/10/2014,22604409,1,45000.00,Nil,Property Acquisition,Capital,Adult Services,CAT04,to be classified,SUBCATTBC,44166,"Housing Associations, Societies, Trusts & Co-Opera",,Not yet available
Wakefield MDC,E08000036,31/12/2014,BUSINESS,Finance,J,WALKER MORRIS SOLICITORS,Redacted,Not yet available,Not yet available,Not yet available,24/11/2014,22647460,1,1555.50,Nil,Property Acquisition,Capital,Professional Services,CAT08,Legal Services,SUBCAT0806,72460,Solicitors,,Not yet available
Wakefield MDC,E08000036,31/12/2014,BUSINESS,Finance,J,CA TRAFFIC LTD,Redacted,Not yet available,Not yet available,Not yet available,16/12/2014,22667006,1,1837.00,Nil,Legal Fees,Capital,Highways,CAT07,Urban Traffic Control,SUBCAT0710,79650,Traffic Management Systems,,Not yet available
Wakefield MDC,E08000036,31/12/2014,BUSINESS,Finance,J,JET AIRE DC LTD,Redacted,Not yet available,Not yet available,Not yet available,30/10/2014,22609172,1,1800.00,Nil,Surveyors Fees,Capital,Highways,CAT07,Drainage,SUBCAT0701,27660,Drain & Sewer Clearance,,Not yet available
Wakefield MDC,E08000036,31/12/2014,BUSINESS,Finance,J,YORKSHIRE PURCHASING,Redacted,Not yet available,Not yet available,Not yet available,15/10/2014,22600918,1,1260.05,Nil,Construction - New,Capital,YPO,CAT12,Sub Category To Be Classified,SUBCATTBC,62710,Purchasing Services,,Not yet available
Wakefield MDC,E08000036,31/12/2014,BUSINESS,Finance,J,JOB EARNSHAW & BROS LTD,Redacted,Not yet available,Not yet available,Not yet available,29/10/2014,22609716,1,19084.00,Nil,Construction - Remodelling,Capital,Property & Asset Management,CAT01,Building Services - Fencing,SUBCAT0108,34590,"Fence, Gate & Barrier Suppliers",,Not yet available
Wakefield MDC,E08000036,31/12/2014,BUSINESS,Finance,J,S & W DEVELOPMENTS LTD,Redacted,Not yet available,Not yet available,Not yet available,15/10/2014,22613871,1,7126.50,Nil,Construction - Remodelling,Capital,Property & Asset Management,CAT01,Building Services - Misc,SUBCAT0115,11040,Builders,,Not yet available
Wakefield MDC,E08000036,31/12/2014,BUSINESS,Finance,J,S & W DEVELOPMENTS LTD,Redacted,Not yet available,Not yet available,Not yet available,15/10/2014,22613873,1,10168.00,Nil,Construction - Remodelling,Capital,Property & Asset Management,CAT01,Building Services - Misc,SUBCAT0115,11040,Builders,,Not yet available
Wakefield MDC,E08000036,31/12/2014,BUSINESS,Finance,J,IMTECH TRAFFIC & INFRA UK LIMITED,Redacted,Not yet available,Not yet available,Not yet available,29/10/2014,22606480,1,27412.74,Nil,Construction - Remodelling,Capital,Highways,CAT07,Urban Traffic Control,SUBCAT0710,79650,Traffic Management Systems,,Not yet available
Wakefield MDC,E08000036,31/12/2014,BUSINESS,Finance,J,WHARFEDALE CONSTRUCTION LTD,Redacted,Not yet available,Not yet available,Not yet available,20/10/2014,22623170,1,1666.82,Nil,Construction - Remodelling,Capital,Property & Asset Management,CAT01,Building Services - Misc,SUBCAT0115,11040,Builders,,Not yet available
Wakefield MDC,E08000036,31/12/2014,BUSINESS,Finance,J,JBA CONSULTING,Redacted,Not yet available,Not yet available,Not yet available,28/11/2014,22635165,1,45312.00,Nil,Construction - Remodelling,Capital,Highways,CAT07,Highways Schemes,SUBCAT0702,18632,Civil Engineers,,Not yet available
Wakefield MDC,E08000036,31/12/2014,BUSINESS,Finance,J,TUCKER & TUNSTALL,Redacted,Not yet available,Not yet available,Not yet available,19/11/2014,22646130,1,11034.44,Nil,Construction - Remodelling,Capital,Property & Asset Management,CAT01,Building Services - Roofing,SUBCAT0119,65470,Roofing Services,,Not yet available
Wakefield MDC,E08000036,31/12/2014,BUSINESS,Finance,J,JENNINGS ROOFING LTD,Redacted,Not yet available,Not yet available,Not yet available,16/12/2014,22667314,1,3564.50,Nil,Construction - Remodelling,Capital,Property & Asset Management,CAT01,Building Services - Roofing,SUBCAT0119,65470,Roofing Services,,Not yet available
Wakefield MDC,E08000036,31/12/2014,BUSINESS,Finance,J,WATERSHED ROOFING LTD,Redacted,Not yet available,Not yet available,Not yet available,02/10/2014,22607512,1,64358.09,Nil,Construction - Remodelling,Capital,Property & Asset Management,CAT01,Building Services - Roofing,SUBCAT0119,65470,Roofing Services,,Not yet available
Wakefield MDC,E08000036,31/12/2014,BUSINESS,Finance,J,WATERSHED ROOFING LTD,Redacted,Not yet available,Not yet available,Not yet available,20/10/2014,22623172,1,40770.53,Nil,Construction - Remodelling,Capital,Property & Asset Management,CAT01,Building Services - Roofing,SUBCAT0119,65470,Roofing Services,,Not yet available
Wakefield MDC,E08000036,31/12/2014,BUSINESS,Finance,J,WATERSHED ROOFING LTD,Redacted,Not yet available,Not yet available,Not yet available,19/11/2014,22646140,1,43265.85,Nil,Construction - Remodelling,Capital,Property & Asset Management,CAT01,Building Services - Roofing,SUBCAT0119,65470,Roofing Services,,Not yet available
Wakefield MDC,E08000036,31/12/2014,BUSINESS,Finance,J,WATERSHED ROOFING LTD,Redacted,Not yet available,Not yet available,Not yet available,17/12/2014,22669298,1,20910.61,Nil,Construction - Remodelling,Capital,Property & Asset Management,CAT01,Building Services - Roofing,SUBCAT0119,65470,Roofing Services,,Not yet available
Wakefield MDC,E08000036,31/12/2014,BUSINESS,Finance,J,LAUREN JAMES OFFICE INTERIORS LIMITED,Redacted,Not yet available,Not yet available,Not yet available,07/11/2014,22599166,1,2987.00,Nil,Construction - Remodelling,Capital,Property & Asset Management,CAT01,Furniture,SUBCAT0133,53450,Office Furniture & Equipment,,Not yet available
Wakefield MDC,E08000036,31/12/2014,BUSINESS,Finance,J,LAUREN JAMES OFFICE INTERIORS LIMITED,Redacted,Not yet available,Not yet available,Not yet available,18/11/2014,22630797,1,1660.00,Nil,Construction - Remodelling,Capital,Property & Asset Management,CAT01,Furniture,SUBCAT0133,53450,Office Furniture & Equipment,,Not yet available
Wakefield MDC,E08000036,31/12/2014,BUSINESS,Finance,J,LAUREN JAMES OFFICE INTERIORS LIMITED,Redacted,Not yet available,Not yet available,Not yet available,18/11/2014,22630801,1,28134.50,Nil,Construction - Remodelling,Capital,Property & Asset Management,CAT01,Furniture,SUBCAT0133,53450,Office Furniture & Equipment,,Not yet available
Wakefield MDC,E08000036,31/12/2014,BUSINESS,Finance,J,LAUREN JAMES OFFICE INTERIORS LIMITED,Redacted,Not yet available,Not yet available,Not yet available,18/11/2014,22630903,1,-750.00,Nil,Construction - Remodelling,Capital,Property & Asset Management,CAT01,Furniture,SUBCAT0133,53450,Office Furniture & Equipment,,Not yet available
Wakefield MDC,E08000036,31/12/2014,BUSINESS,Finance,J,LAUREN JAMES OFFICE INTERIORS LIMITED,Redacted,Not yet available,Not yet available,Not yet available,01/12/2014,22599172,1,11651.00,Nil,Construction - Remodelling,Capital,Property & Asset Management,CAT01,Furniture,SUBCAT0133,53450,Office Furniture & Equipment,,Not yet available
Wakefield MDC,E08000036,31/12/2014,BUSINESS,Finance,J,LAUREN JAMES OFFICE INTERIORS LIMITED,Redacted,Not yet available,Not yet available,Not yet available,03/12/2014,22645158,1,8216.00,Nil,Construction - Remodelling,Capital,Property & Asset Management,CAT01,Furniture,SUBCAT0133,53450,Office Furniture & Equipment,,Not yet available
Wakefield MDC,E08000036,31/12/2014,BUSINESS,Finance,J,NPS NORTH EAST LTD,Redacted,Not yet available,Not yet available,Not yet available,21/10/2014,22612202,1,7949.55,Nil,Construction - Remodelling,Capital,Property & Asset Management,CAT01,Architects,SUBCAT0102,04422,Architectural Services,,Not yet available
Wakefield MDC,E08000036,31/12/2014,BUSINESS,Finance,J,NPS NORTH EAST LTD,Redacted,Not yet available,Not yet available,Not yet available,23/10/2014,22610774,1,1357.50,Nil,Construction - Remodelling,Capital,Property & Asset Management,CAT01,Architects,SUBCAT0102,04422,Architectural Services,,Not yet available
Wakefield MDC,E08000036,31/12/2014,BUSINESS,Finance,J,NPS NORTH EAST LTD,Redacted,Not yet available,Not yet available,Not yet available,03/11/2014,22626942,1,-748.57,Nil,Construction - Remodelling,Capital,Property & Asset Management,CAT01,Architects,SUBCAT0102,04422,Architectural Services,,Not yet available
Wakefield MDC,E08000036,31/12/2014,BUSINESS,Finance,J,NPS NORTH EAST LTD,Redacted,Not yet available,Not yet available,Not yet available,06/11/2014,22631248,1,1661.10,Nil,Construction - Remodelling,Capital,Property & Asset Management,CAT01,Architects,SUBCAT0102,04422,Architectural Services,,Not yet available
Wakefield MDC,E08000036,31/12/2014,BUSINESS,Finance,J,NPS NORTH EAST LTD,Redacted,Not yet available,Not yet available,Not yet available,10/11/2014,22631945,1,1800.00,Nil,Construction - Remodelling,Capital,Property & Asset Management,CAT01,Architects,SUBCAT0102,04422,Architectural Services,,Not yet available
Wakefield MDC,E08000036,31/12/2014,BUSINESS,Finance,J,NPS NORTH EAST LTD,Redacted,Not yet available,Not yet available,Not yet available,24/11/2014,22646158,1,1245.82,Nil,Construction - Remodelling,Capital,Property & Asset Management,CAT01,Architects,SUBCAT0102,04422,Architectural Services,,Not yet available
Wakefield MDC,E08000036,31/12/2014,BUSINESS,Finance,J,NPS NORTH EAST LTD,Redacted,Not yet available,Not yet available,Not yet available,08/10/2014,22610445,1,725.00,Nil,Construction - Remodelling,Capital,Property & Asset Management,CAT01,Architects,SUBCAT0102,04422,Architectural Services,,Not yet available
Wakefield MDC,E08000036,31/12/2014,BUSINESS,Finance,J,NPS NORTH EAST LTD,Redacted,Not yet available,Not yet available,Not yet available,27/10/2014,22623907,8,2319.54,Nil,Construction - Remodelling,Capital,Property & Asset Management,CAT01,Architects,SUBCAT0102,04422,Architectural Services,,Not yet available
Wakefield MDC,E08000036,31/12/2014,BUSINESS,Finance,J,NPS NORTH EAST LTD,Redacted,Not yet available,Not yet available,Not yet available,27/10/2014,22623907,9,1217.70,Nil,Construction - Remodelling,Capital,Property & Asset Management,CAT01,Architects,SUBCAT0102,04422,Architectural Services,,Not yet available
Wakefield MDC,E08000036,31/12/2014,BUSINESS,Finance,J,NPS NORTH EAST LTD,Redacted,Not yet available,Not yet available,Not yet available,27/10/2014,22623907,11,2800.00,Nil,Construction - Remodelling,Capital,Property & Asset Management,CAT01,Architects,SUBCAT0102,04422,Architectural Services,,Not yet available
Wakefield MDC,E08000036,31/12/2014,BUSINESS,Finance,J,NPS NORTH EAST LTD,Redacted,Not yet available,Not yet available,Not yet available,27/10/2014,22623907,12,865.30,Nil,Construction - Remodelling,Capital,Property & Asset Management,CAT01,Architects,SUBCAT0102,04422,Architectural Services,,Not yet available
Wakefield MDC,E08000036,31/12/2014,BUSINESS,Finance,J,NPS NORTH EAST LTD,Redacted,Not yet available,Not yet available,Not yet available,27/10/2014,22623907,13,2324.70,Nil,Construction - Remodelling,Capital,Property & Asset Management,CAT01,Architects,SUBCAT0102,04422,Architectural Services,,Not yet available
Wakefield MDC,E08000036,31/12/2014,BUSINESS,Finance,J,NPS NORTH EAST LTD,Redacted,Not yet available,Not yet available,Not yet available,27/10/2014,22623907,14,11674.64,Nil,Construction - Remodelling,Capital,Property & Asset Management,CAT01,Architects,SUBCAT0102,04422,Architectural Services,,Not yet available
Wakefield MDC,E08000036,31/12/2014,BUSINESS,Finance,J,NPS NORTH EAST LTD,Redacted,Not yet available,Not yet available,Not yet available,27/10/2014,22623907,15,677.35,Nil,Construction - Remodelling,Capital,Property & Asset Management,CAT01,Architects,SUBCAT0102,04422,Architectural Services,,Not yet available
Wakefield MDC,E08000036,31/12/2014,BUSINESS,Finance,J,NPS NORTH EAST LTD,Redacted,Not yet available,Not yet available,Not yet available,27/10/2014,22623907,16,523.06,Nil,Construction - Remodelling,Capital,Property & Asset Management,CAT01,Architects,SUBCAT0102,04422,Architectural Services,,Not yet available
Wakefield MDC,E08000036,31/12/2014,BUSINESS,Finance,J,NPS NORTH EAST LTD,Redacted,Not yet available,Not yet available,Not yet available,27/10/2014,22623907,17,1215.41,Nil,Construction - Remodelling,Capital,Property & Asset Management,CAT01,Architects,SUBCAT0102,04422,Architectural Services,,Not yet available
Wakefield MDC,E08000036,31/12/2014,BUSINESS,Finance,J,NPS NORTH EAST LTD,Redacted,Not yet available,Not yet available,Not yet available,27/10/2014,22623907,1,4355.76,Nil,Construction - Remodelling,Capital,Property & Asset Management,CAT01,Architects,SUBCAT0102,04422,Architectural Services,,Not yet available
Wakefield MDC,E08000036,31/12/2014,BUSINESS,Finance,J,NPS NORTH EAST LTD,Redacted,Not yet available,Not yet available,Not yet available,27/10/2014,22623907,3,1476.00,Nil,Construction - Remodelling,Capital,Property & Asset Management,CAT01,Architects,SUBCAT0102,04422,Architectural Services,,Not yet available
Wakefield MDC,E08000036,31/12/2014,BUSINESS,Finance,J,NPS NORTH EAST LTD,Redacted,Not yet available,Not yet available,Not yet available,27/10/2014,22623907,5,1830.24,Nil,Construction - Remodelling,Capital,Property & Asset Management,CAT01,Architects,SUBCAT0102,04422,Architectural Services,,Not yet available
Wakefield MDC,E08000036,31/12/2014,BUSINESS,Finance,J,NPS NORTH EAST LTD,Redacted,Not yet available,Not yet available,Not yet available,27/10/2014,22623907,6,11575.34,Nil,Construction - Remodelling,Capital,Property & Asset Management,CAT01,Architects,SUBCAT0102,04422,Architectural Services,,Not yet available
Wakefield MDC,E08000036,31/12/2014,BUSINESS,Finance,J,NPS NORTH EAST LTD,Redacted,Not yet available,Not yet available,Not yet available,26/11/2014,22650342,1,8040.00,Nil,Construction - Remodelling,Capital,Property & Asset Management,CAT01,Architects,SUBCAT0102,04422,Architectural Services,,Not yet available
Wakefield MDC,E08000036,31/12/2014,BUSINESS,Finance,J,NPS NORTH EAST LTD,Redacted,Not yet available,Not yet available,Not yet available,26/11/2014,22650344,1,2109.67,Nil,Construction - Remodelling,Capital,Property & Asset Management,CAT01,Architects,SUBCAT0102,04422,Architectural Services,,Not yet available
Wakefield MDC,E08000036,31/12/2014,BUSINESS,Finance,J,NPS NORTH EAST LTD,Redacted,Not yet available,Not yet available,Not yet available,27/11/2014,22650337,1,5764.00,Nil,Construction - Remodelling,Capital,Property & Asset Management,CAT01,Architects,SUBCAT0102,04422,Architectural Services,,Not yet available
Wakefield MDC,E08000036,31/12/2014,BUSINESS,Finance,J,NPS NORTH EAST LTD,Redacted,Not yet available,Not yet available,Not yet available,27/11/2014,22650345,1,12416.67,Nil,Construction - Remodelling,Capital,Property & Asset Management,CAT01,Architects,SUBCAT0102,04422,Architectural Services,,Not yet available
Wakefield MDC,E08000036,31/12/2014,BUSINESS,Finance,J,JET AIRE DC LTD,Redacted,Not yet available,Not yet available,Not yet available,17/12/2014,22665570,1,675.00,Nil,Construction - Remodelling,Capital,Highways,CAT07,Drainage,SUBCAT0701,27660,Drain & Sewer Clearance,,Not yet available
Wakefield MDC,E08000036,31/12/2014,BUSINESS,Finance,J,EARLY EXCELLENCE LTD,Redacted,Not yet available,Not yet available,Not yet available,06/11/2014,22628093,1,3613.50,Nil,Construction - Remodelling,Capital,Business Services,CAT02,Training,SUBCAT0223,79980,Training Services,,Not yet available
Wakefield MDC,E08000036,31/12/2014,BUSINESS,Finance,J,EARLY EXCELLENCE LTD,Redacted,Not yet available,Not yet available,Not yet available,17/11/2014,22623945,1,3395.00,Nil,Construction - Remodelling,Capital,Business Services,CAT02,Training,SUBCAT0223,79980,Training Services,,Not yet available
Wakefield MDC,E08000036,31/12/2014,BUSINESS,Finance,J,EARLY EXCELLENCE LTD,Redacted,Not yet available,Not yet available,Not yet available,17/11/2014,22623965,1,1430.00,Nil,Construction - Remodelling,Capital,Business Services,CAT02,Training,SUBCAT0223,79980,Training Services,,Not yet available
Wakefield MDC,E08000036,31/12/2014,BUSINESS,Finance,J,YORKSHIRE PURCHASING,Redacted,Not yet available,Not yet available,Not yet available,06/11/2014,22602634,1,1363.80,Nil,Construction - Remodelling,Capital,YPO,CAT12,Sub Category To Be Classified,SUBCATTBC,62710,Purchasing Services,,Not yet available
Wakefield MDC,E08000036,31/12/2014,BUSINESS,Finance,J,T S BOOKER & SON MANUFACTURING LTD,Redacted,Not yet available,Not yet available,Not yet available,15/12/2014,22665402,1,1211.29,Nil,Construction - Remodelling,Capital,Property & Asset Management,CAT01,Furniture,SUBCAT0133,12330,Cabinet Makers,,Not yet available
Wakefield MDC,E08000036,31/12/2014,BUSINESS,Finance,J,T S BOOKER & SON MANUFACTURING LTD,Redacted,Not yet available,Not yet available,Not yet available,15/12/2014,22649393,1,8004.84,Nil,Construction - Remodelling,Capital,Property & Asset Management,CAT01,Furniture,SUBCAT0133,12330,Cabinet Makers,,Not yet available
Wakefield MDC,E08000036,31/12/2014,BUSINESS,Finance,J,MEADOWSPRITE LTD T/A BFP,Redacted,Not yet available,Not yet available,Not yet available,18/11/2014,22625540,1,4770.00,Nil,Construction - Remodelling,Capital,Property & Asset Management,CAT01,Building Services - Fencing,SUBCAT0108,34660,Fencing Contractors,,Not yet available
Wakefield MDC,E08000036,31/12/2014,BUSINESS,Finance,J,F. PARKINSON LTD,Redacted,Not yet available,Not yet available,Not yet available,16/12/2014,22667335,1,19498.67,Nil,Construction - Remodelling,Capital,Property & Asset Management,CAT01,Building Services - Misc,SUBCAT0115,11040,Builders,,Not yet available
Wakefield MDC,E08000036,31/12/2014,BUSINESS,Finance,J,MARSHALLS PLC,Redacted,Not yet available,Not yet available,Not yet available,23/10/2014,22624743,1,2255.00,Nil,Construction - Remodelling,Capital,Highways,CAT07,Materials,SUBCAT0703,66370,"Sand, Gravel & Other Aggregates",,Not yet available
Wakefield MDC,E08000036,31/12/2014,BUSINESS,Finance,J,MCP ENVIRONMENTAL SERVICES LLP,Redacted,Not yet available,Not yet available,Not yet available,29/10/2014,22628158,1,12150.00,Nil,Construction - Remodelling,Capital,Property & Asset Management,CAT01,Asbestos Services,SUBCAT0103,04970,Asbestos Surveys & Removal,,Not yet available
Wakefield MDC,E08000036,31/12/2014,BUSINESS,Finance,J,PLAYGROUND MARKINGS DIRECT,Redacted,Not yet available,Not yet available,Not yet available,24/10/2014,22614141,1,6792.41,Nil,Construction - Remodelling,Capital,Environment,CAT03,Playground Equipment,SUBCAT0312,59720,Playground Equipment,,Not yet available
Wakefield MDC,E08000036,31/12/2014,BUSINESS,Finance,J,GEORGE HURST & SONS LTD,Redacted,Not yet available,Not yet available,Not yet available,15/10/2014,22614007,1,253217.03,Nil,Construction - Remodelling,Capital,Property & Asset Management,CAT01,Building Services - Misc,SUBCAT0115,11040,Builders,,Not yet available
Wakefield MDC,E08000036,31/12/2014,BUSINESS,Finance,J,GEORGE HURST & SONS LTD,Redacted,Not yet available,Not yet available,Not yet available,19/11/2014,22646137,1,213986.38,Nil,Construction - Remodelling,Capital,Property & Asset Management,CAT01,Building Services - Misc,SUBCAT0115,11040,Builders,,Not yet available
Wakefield MDC,E08000036,31/12/2014,BUSINESS,Finance,J,GEORGE HURST & SONS LTD,Redacted,Not yet available,Not yet available,Not yet available,16/12/2014,22667328,1,236139.27,Nil,Construction - Remodelling,Capital,Property & Asset Management,CAT01,Building Services - Misc,SUBCAT0115,11040,Builders,,Not yet available
Wakefield MDC,E08000036,31/12/2014,BUSINESS,Finance,J,FRAMEWORK BUSINESS INSTALLATIONS LTD,Redacted,Not yet available,Not yet available,Not yet available,28/11/2014,22634258,1,7500.00,Nil,Construction - Remodelling,Capital,Property & Asset Management,CAT01,Furniture,SUBCAT0133,38590,Furniture Mnfrs - Home & Office,,Not yet available
Wakefield MDC,E08000036,31/12/2014,BUSINESS,Finance,J,R B JOINERY,Redacted,Not yet available,Not yet available,Not yet available,24/10/2014,22625983,1,985.00,Nil,Construction - Remodelling,Capital,Property & Asset Management,CAT01,Building Services - Joinery,SUBCAT0113,45970,Joiners & Carpenters,,Not yet available
Wakefield MDC,E08000036,31/12/2014,BUSINESS,Finance,J,R B JOINERY,Redacted,Not yet available,Not yet available,Not yet available,18/12/2014,22669912,1,1090.00,Nil,Construction - Remodelling,Capital,Property & Asset Management,CAT01,Building Services - Joinery,SUBCAT0113,45970,Joiners & Carpenters,,Not yet available
Wakefield MDC,E08000036,31/12/2014,BUSINESS,Finance,J,RJS PROPERTY SOLUTIONS,Redacted,Not yet available,Not yet available,Not yet available,18/11/2014,22633912,1,2366.00,Nil,Construction - Remodelling,Capital,Property & Asset Management,CAT01,Building Services - Misc,SUBCAT0115,11040,Builders,,Not yet available
Wakefield MDC,E08000036,31/12/2014,BUSINESS,Finance,J,MAGICAL UK LTD,Redacted,Not yet available,Not yet available,Not yet available,04/11/2014,22630709,1,3000.00,Nil,Construction - Remodelling,Capital,Environment,CAT03,Playground Equipment,SUBCAT0312,59720,Playground Equipment,,Not yet available
Wakefield MDC,E08000036,31/12/2014,BUSINESS,Finance,J,MAGICAL UK LTD,Redacted,Not yet available,Not yet available,Not yet available,13/11/2014,22634930,1,3952.00,Nil,Construction - Remodelling,Capital,Environment,CAT03,Playground Equipment,SUBCAT0312,59720,Playground Equipment,,Not yet available
Wakefield MDC,E08000036,31/12/2014,BUSINESS,Finance,J,MAGICAL UK LTD,Redacted,Not yet available,Not yet available,Not yet available,10/12/2014,22656828,1,3069.00,Nil,Construction - Remodelling,Capital,Environment,CAT03,Playground Equipment,SUBCAT0312,59720,Playground Equipment,,Not yet available
Wakefield MDC,E08000036,31/12/2014,BUSINESS,Finance,J,PALMER & PALMER,Redacted,Not yet available,Not yet available,Not yet available,07/11/2014,22632807,1,960.00,Nil,Construction - Remodelling,Capital,Property & Asset Management,CAT01,Furniture,SUBCAT0133,38460,Furnishers,,Not yet available
Wakefield MDC,E08000036,31/12/2014,BUSINESS,Finance,J,HEAD OFFICE INTERIORS LTD,Redacted,Not yet available,Not yet available,Not yet available,04/12/2014,22651855,1,12755.00,Nil,Construction - Remodelling,Capital,Property & Asset Management,CAT01,Furniture,SUBCAT0133,38590,Furniture Mnfrs - Home & Office,,Not yet available
Wakefield MDC,E08000036,31/12/2014,BUSINESS,Finance,J,HEAD OFFICE INTERIORS LTD,Redacted,Not yet available,Not yet available,Not yet available,04/12/2014,22651928,1,1135.00,Nil,Construction - Remodelling,Capital,Property & Asset Management,CAT01,Furniture,SUBCAT0133,38590,Furniture Mnfrs - Home & Office,,Not yet available
Wakefield MDC,E08000036,31/12/2014,BUSINESS,Finance,J,HEAD OFFICE INTERIORS LTD,Redacted,Not yet available,Not yet available,Not yet available,04/12/2014,22654710,1,5219.20,Nil,Construction - Remodelling,Capital,Property & Asset Management,CAT01,Furniture,SUBCAT0133,38590,Furniture Mnfrs - Home & Office,,Not yet available
Wakefield MDC,E08000036,31/12/2014,BUSINESS,Finance,J,HEAD OFFICE INTERIORS LTD,Redacted,Not yet available,Not yet available,Not yet available,22/12/2014,22671821,1,7500.00,Nil,Construction - Remodelling,Capital,Property & Asset Management,CAT01,Furniture,SUBCAT0133,38590,Furniture Mnfrs - Home & Office,,Not yet available
Wakefield MDC,E08000036,31/12/2014,BUSINESS,Finance,J,R HAIGH GROUNDWORKS & TARMACADAM LTD,Redacted,Not yet available,Not yet available,Not yet available,10/12/2014,22656026,1,5950.00,Nil,Construction - Remodelling,Capital,Highways,CAT07,Surfacing,SUBCAT0708,04980,Asphalt & Coated Macadam Laying Contractors,,Not yet available
Wakefield MDC,E08000036,31/12/2014,BUSINESS,Finance,J,LEWIS ASHLEY SERVICES LTD,Redacted,Not yet available,Not yet available,Not yet available,16/12/2014,22667344,1,3960.88,Nil,Construction - Remodelling,Capital,Property & Asset Management,CAT01,Building Services - Misc,SUBCAT0115,11560,Buildings - Sectional & Portable,,Not yet available
Wakefield MDC,E08000036,31/12/2014,BUSINESS,Finance,J,TOUCH AV LTD,Redacted,Not yet available,Not yet available,Not yet available,20/11/2014,22647032,1,2281.00,Nil,Construction - Remodelling,Capital,ICT,CAT11,ICT - Hardware - AV,SUBCAT1103,05400,Audio-Visual Equipment & Supplies,,Not yet available
Wakefield MDC,E08000036,31/12/2014,BUSINESS,Finance,J,TOUCH AV LTD,Redacted,Not yet available,Not yet available,Not yet available,18/12/2014,22633647,1,2331.92,Nil,Construction - Remodelling,Capital,ICT,CAT11,ICT - Hardware - AV,SUBCAT1103,05400,Audio-Visual Equipment & Supplies,,Not yet available
Wakefield MDC,E08000036,31/12/2014,BUSINESS,Finance,J,ASPECT CONTRACTS LTD,Redacted,Not yet available,Not yet available,Not yet available,08/10/2014,22610053,1,925.00,Nil,Construction - Remodelling,Capital,Property & Asset Management,CAT01,Asbestos Services,SUBCAT0103,04970,Asbestos Surveys & Removal,,Not yet available
Wakefield MDC,E08000036,31/12/2014,BUSINESS,Finance,J,ASPECT CONTRACTS LTD,Redacted,Not yet available,Not yet available,Not yet available,30/10/2014,22628920,1,946.46,Nil,Construction - Remodelling,Capital,Property & Asset Management,CAT01,Asbestos Services,SUBCAT0103,04970,Asbestos Surveys & Removal,,Not yet available
Wakefield MDC,E08000036,31/12/2014,BUSINESS,Finance,J,ASPECT CONTRACTS LTD,Redacted,Not yet available,Not yet available,Not yet available,30/10/2014,22629295,1,1010.00,Nil,Construction - Remodelling,Capital,Property & Asset Management,CAT01,Asbestos Services,SUBCAT0103,04970,Asbestos Surveys & Removal,,Not yet available
Wakefield MDC,E08000036,31/12/2014,BUSINESS,Finance,J,ASPECT CONTRACTS LTD,Redacted,Not yet available,Not yet available,Not yet available,04/11/2014,22631165,1,1050.00,Nil,Construction - Remodelling,Capital,Property & Asset Management,CAT01,Asbestos Services,SUBCAT0103,04970,Asbestos Surveys & Removal,,Not yet available
Wakefield MDC,E08000036,31/12/2014,BUSINESS,Finance,J,COMPREHENSIVE ASBESTOS REMOVAL LTD,Redacted,Not yet available,Not yet available,Not yet available,05/12/2014,22655185,1,6388.00,Nil,Construction - Remodelling,Capital,Property & Asset Management,CAT01,Asbestos Services,SUBCAT0103,04970,Asbestos Surveys & Removal,,Not yet available
Wakefield MDC,E08000036,31/12/2014,BUSINESS,Finance,J,FACULTATIEVE TECHNOLOGIES,Redacted,Not yet available,Not yet available,Not yet available,03/12/2014,22650138,1,8747.71,Nil,Construction - Remodelling,Capital,Environment,CAT03,Funeral & Crematoria Supplies / Equipment,SUBCAT0305,38450,Furnaces,,Not yet available
Wakefield MDC,E08000036,31/12/2014,BUSINESS,Finance,J,FACULTATIEVE TECHNOLOGIES,Redacted,Not yet available,Not yet available,Not yet available,03/12/2014,22650202,1,12137.34,Nil,Construction - Remodelling,Capital,Environment,CAT03,Funeral & Crematoria Supplies / Equipment,SUBCAT0305,38450,Furnaces,,Not yet available
Wakefield MDC,E08000036,31/12/2014,BUSINESS,Finance,J,CASTLEFLOORS RESTORATION LTD,Redacted,Not yet available,Not yet available,Not yet available,28/11/2014,22634378,1,2560.00,Nil,Construction - Remodelling,Capital,Property & Asset Management,CAT01,Building Services - Flooring,SUBCAT0109,36640,Flooring Services,,Not yet available
Wakefield MDC,E08000036,31/12/2014,BUSINESS,Finance,J,NRA ROOFING AND FLOORING LTD,Redacted,Not yet available,Not yet available,Not yet available,01/10/2014,22606644,1,29165.37,Nil,Construction - Remodelling,Capital,Property & Asset Management,CAT01,Building Services - Roofing,SUBCAT0119,65470,Roofing Services,,Not yet available
Wakefield MDC,E08000036,31/12/2014,BUSINESS,Finance,J,HOBSON & PORTER LTD,Redacted,Not yet available,Not yet available,Not yet available,15/10/2014,22614008,1,132656.60,Nil,Construction - Remodelling,Capital,Property & Asset Management,CAT01,Building Services - Misc,SUBCAT0115,11371,Building Refurbishment & Restoration Contractors,,Not yet available
Wakefield MDC,E08000036,31/12/2014,BUSINESS,Finance,J,HOBSON & PORTER LTD,Redacted,Not yet available,Not yet available,Not yet available,28/11/2014,22651485,1,44092.14,Nil,Construction - Remodelling,Capital,Property & Asset Management,CAT01,Building Services - Misc,SUBCAT0115,11371,Building Refurbishment & Restoration Contractors,,Not yet available
Wakefield MDC,E08000036,31/12/2014,BUSINESS,Finance,J,HOBSON & PORTER LTD,Redacted,Not yet available,Not yet available,Not yet available,16/12/2014,22667336,1,2166.50,Nil,Construction - Remodelling,Capital,Property & Asset Management,CAT01,Building Services - Misc,SUBCAT0115,11371,Building Refurbishment & Restoration Contractors,,Not yet available
Wakefield MDC,E08000036,31/12/2014,BUSINESS,Finance,J,ROBSON LIDDLE LIMITED,Redacted,Not yet available,Not yet available,Not yet available,18/11/2014,22644295,1,5250.00,Nil,Construction - Remodelling,Capital,Professional Services,CAT08,Consultancy,SUBCAT0802,31590,Engineers - Consulting,,Not yet available
Wakefield MDC,E08000036,31/12/2014,BUSINESS,Finance,J,DETAILS REDACTED,Redacted,Not yet available,Not yet available,Not yet available,02/12/2014,22652700,1,1195.00,Nil,Construction - Remodelling,Capital,Property & Asset Management,CAT01,Building Services - Fencing,SUBCAT0108,34660,Fencing Contractors,,Not yet available
Wakefield MDC,E08000036,31/12/2014,BUSINESS,Finance,J,"BRAND ENERGY & INFRASTRUCTURE SERVICES UK, LTD",Redacted,Not yet available,Not yet available,Not yet available,02/10/2014,22607562,1,9099.88,Nil,Construction - Remodelling,Capital,Highways,CAT07,Highways Schemes,SUBCAT0702,18632,Civil Engineers,,Not yet available
Wakefield MDC,E08000036,31/12/2014,BUSINESS,Finance,J,"BRAND ENERGY & INFRASTRUCTURE SERVICES UK, LTD",Redacted,Not yet available,Not yet available,Not yet available,22/10/2014,22625514,1,3924.01,Nil,Construction - Remodelling,Capital,Highways,CAT07,Highways Schemes,SUBCAT0702,18632,Civil Engineers,,Not yet available
Wakefield MDC,E08000036,31/12/2014,BUSINESS,Finance,J,"BRAND ENERGY & INFRASTRUCTURE SERVICES UK, LTD",Redacted,Not yet available,Not yet available,Not yet available,12/12/2014,22665828,1,5475.78,Nil,Construction - Remodelling,Capital,Highways,CAT07,Highways Schemes,SUBCAT0702,18632,Civil Engineers,,Not yet available
Wakefield MDC,E08000036,31/12/2014,BUSINESS,Finance,J,"BRAND ENERGY & INFRASTRUCTURE SERVICES UK, LTD",Redacted,Not yet available,Not yet available,Not yet available,16/12/2014,22667319,1,8197.03,Nil,Construction - Remodelling,Capital,Highways,CAT07,Highways Schemes,SUBCAT0702,18632,Civil Engineers,,Not yet available
Wakefield MDC,E08000036,31/12/2014,BUSINESS,Finance,J,WEST YORKSHIRE COMBINED AUTHORITY,Redacted,Not yet available,Not yet available,Not yet available,05/11/2014,22604402,1,8000.00,Nil,Construction - Remodelling,Capital,Transport,CAT10,Passenger Transport,SUBCAT1006,80100,Transport Consultants,,Not yet available
Wakefield MDC,E08000036,31/12/2014,BUSINESS,Finance,J,FRANK WILSON LIMITED,Redacted,Not yet available,Not yet available,Not yet available,09/10/2014,22568906,1,29005.00,Nil,Construction - Remodelling,Capital,Highways,CAT07,Highways Schemes,SUBCAT0702,18632,Civil Engineers,,Not yet available
Wakefield MDC,E08000036,31/12/2014,BUSINESS,Finance,J,CAMBRIDGE GLASSHOUSE COMPANY LIMITED,Redacted,Not yet available,Not yet available,Not yet available,12/12/2014,22665849,1,14000.00,Nil,Construction - Remodelling,Capital,Property & Asset Management,CAT01,Construction,SUBCAT0130,21555,Construction Contractors - General,,Not yet available
Wakefield MDC,E08000036,31/12/2014,BUSINESS,Finance,J,HOLLINS CONSTRUCTION,Redacted,Not yet available,Not yet available,Not yet available,02/10/2014,22606409,1,19369.82,Nil,Construction - Remodelling,Capital,Property & Asset Management,CAT01,Building Services - Misc,SUBCAT0115,11040,Builders,,Not yet available
Wakefield MDC,E08000036,31/12/2014,BUSINESS,Finance,J,BENDCRETE LEISURE LTD,Redacted,Not yet available,Not yet available,Not yet available,16/12/2014,22667247,1,36500.00,Nil,Construction - Remodelling,Capital,Environment,CAT03,Playground Equipment,SUBCAT0312,59720,Playground Equipment,,Not yet available
Wakefield MDC,E08000036,31/12/2014,BUSINESS,Finance,J,MOVING DESIGNS LIMITED,Redacted,Not yet available,Not yet available,Not yet available,21/11/2014,22628497,1,4900.00,Nil,Construction - Remodelling,Capital,Property & Asset Management,CAT01,Building Services - Misc,SUBCAT0115,56360,Partitions & Cubicles,,Not yet available
Wakefield MDC,E08000036,31/12/2014,BUSINESS,Finance,J,COLAS LTD,Redacted,Not yet available,Not yet available,Not yet available,06/10/2014,22588067,1,370408.60,Nil,Construction of Roads (Internal),Capital,Highways,CAT07,Surfacing,SUBCAT0708,65400,Road Surfacing Contractors,,Not yet available
Wakefield MDC,E08000036,31/12/2014,BUSINESS,Finance,J,COLAS LTD,Redacted,Not yet available,Not yet available,Not yet available,05/11/2014,22621984,1,36226.77,Nil,Construction of Roads (Internal),Capital,Highways,CAT07,Surfacing,SUBCAT0708,65400,Road Surfacing Contractors,,Not yet available
Wakefield MDC,E08000036,31/12/2014,BUSINESS,Finance,J,COLAS LTD,Redacted,Not yet available,Not yet available,Not yet available,24/12/2014,22673751,1,32763.64,Nil,Construction of Roads (Internal),Capital,Highways,CAT07,Surfacing,SUBCAT0708,65400,Road Surfacing Contractors,,Not yet available
Wakefield MDC,E08000036,31/12/2014,BUSINESS,Finance,J,TIL-EX LTD,Redacted,Not yet available,Not yet available,Not yet available,30/10/2014,22607699,1,15280.74,Nil,Construction of Roads (Internal),Capital,Property & Asset Management,CAT01,Construction,SUBCAT0130,21555,Construction Contractors - General,,Not yet available
Wakefield MDC,E08000036,31/12/2014,BUSINESS,Finance,J,NORTH MIDLAND CONSTRUCTION PLC,Redacted,Not yet available,Not yet available,Not yet available,24/10/2014,22614139,1,366653.23,Nil,Construction of Roads (Internal),Capital,Highways,CAT07,Highways Schemes,SUBCAT0702,65200,Road Construction Contractors,,Not yet available
Wakefield MDC,E08000036,31/12/2014,BUSINESS,Finance,J,NORTH MIDLAND CONSTRUCTION PLC,Redacted,Not yet available,Not yet available,Not yet available,17/11/2014,22642877,1,654217.20,Nil,Construction of Roads (Internal),Capital,Highways,CAT07,Highways Schemes,SUBCAT0702,65200,Road Construction Contractors,,Not yet available
Wakefield MDC,E08000036,31/12/2014,BUSINESS,Finance,J,NORTH MIDLAND CONSTRUCTION PLC,Redacted,Not yet available,Not yet available,Not yet available,18/12/2014,22665839,1,251820.57,Nil,Construction of Roads (Internal),Capital,Highways,CAT07,Highways Schemes,SUBCAT0702,65200,Road Construction Contractors,,Not yet available
Wakefield MDC,E08000036,31/12/2014,BUSINESS,Finance,J,EUROVIA SPECIALIST TREATMENTS,Redacted,Not yet available,Not yet available,Not yet available,02/10/2014,22603984,1,429266.83,Nil,Construction of Roads (Internal),Capital,Highways,CAT07,Surfacing,SUBCAT0708,65400,Road Surfacing Contractors,,Not yet available
Wakefield MDC,E08000036,31/12/2014,BUSINESS,Finance,J,EUROVIA SPECIALIST TREATMENTS,Redacted,Not yet available,Not yet available,Not yet available,02/10/2014,22603984,2,199962.56,Nil,Construction of Roads (Internal),Capital,Highways,CAT07,Surfacing,SUBCAT0708,65400,Road Surfacing Contractors,,Not yet available
Wakefield MDC,E08000036,31/12/2014,BUSINESS,Finance,J,EUROVIA SPECIALIST TREATMENTS,Redacted,Not yet available,Not yet available,Not yet available,25/11/2014,22645991,1,30238.52,Nil,Construction of Roads (Internal),Capital,Highways,CAT07,Surfacing,SUBCAT0708,65400,Road Surfacing Contractors,,Not yet available
Wakefield MDC,E08000036,31/12/2014,BUSINESS,Finance,J,SANMET LTD,Redacted,Not yet available,Not yet available,Not yet available,01/10/2014,22591607,1,182503.05,Nil,Construction of Roads (Internal),Capital,Highways,CAT07,Surfacing,SUBCAT0708,04980,Asphalt & Coated Macadam Laying Contractors,,Not yet available
Wakefield MDC,E08000036,31/12/2014,BUSINESS,Finance,J,SANMET LTD,Redacted,Not yet available,Not yet available,Not yet available,13/11/2014,22626720,1,1848.53,Nil,Construction of Roads (Internal),Capital,Highways,CAT07,Surfacing,SUBCAT0708,04980,Asphalt & Coated Macadam Laying Contractors,,Not yet available
Wakefield MDC,E08000036,31/12/2014,BUSINESS,Finance,J,JOSHUA THOMAS CONSTRUCTION LTD,Redacted,Not yet available,Not yet available,Not yet available,24/12/2014,22651936,1,5879.83,Nil,Construction of Roads (Internal),Capital,Property & Asset Management,CAT01,Building Services - Misc,SUBCAT0115,11040,Builders,,Not yet available
Wakefield MDC,E08000036,31/12/2014,BUSINESS,Finance,J,SPAWFORTH ASSOCIATES,Redacted,Not yet available,Not yet available,Not yet available,23/10/2014,22613334,1,1415.40,Nil,Construction of Roads (External),Capital,Professional Services,CAT08,Consultancy,SUBCAT0802,79300,Town Planning Consultants,,Not yet available
Wakefield MDC,E08000036,31/12/2014,BUSINESS,Finance,J,SPAWFORTH ASSOCIATES,Redacted,Not yet available,Not yet available,Not yet available,23/10/2014,22603086,1,798.00,Nil,Construction of Roads (External),Capital,Professional Services,CAT08,Consultancy,SUBCAT0802,79300,Town Planning Consultants,,Not yet available
Wakefield MDC,E08000036,31/12/2014,BUSINESS,Finance,J,SPAWFORTH ASSOCIATES,Redacted,Not yet available,Not yet available,Not yet available,23/10/2014,22603087,1,7904.35,Nil,Construction of Roads (External),Capital,Professional Services,CAT08,Consultancy,SUBCAT0802,79300,Town Planning Consultants,,Not yet available
Wakefield MDC,E08000036,31/12/2014,BUSINESS,Finance,J,SPAWFORTH ASSOCIATES,Redacted,Not yet available,Not yet available,Not yet available,23/10/2014,22603088,1,7296.75,Nil,Construction of Roads (External),Capital,Professional Services,CAT08,Consultancy,SUBCAT0802,79300,Town Planning Consultants,,Not yet available
Wakefield MDC,E08000036,31/12/2014,BUSINESS,Finance,J,SPAWFORTH ASSOCIATES,Redacted,Not yet available,Not yet available,Not yet available,15/12/2014,22643709,1,8664.50,Nil,Construction of Roads (External),Capital,Professional Services,CAT08,Consultancy,SUBCAT0802,79300,Town Planning Consultants,,Not yet available
Wakefield MDC,E08000036,31/12/2014,BUSINESS,Finance,J,URS,Redacted,Not yet available,Not yet available,Not yet available,12/12/2014,22624695,1,2613.07,Nil,Construction of Roads (External),Capital,Professional Services,CAT08,Consultancy,SUBCAT0802,31590,Engineers - Consulting,,Not yet available
Wakefield MDC,E08000036,31/12/2014,BUSINESS,Finance,J,BWB,Redacted,Not yet available,Not yet available,Not yet available,23/10/2014,22608532,1,24000.00,Nil,Construction of Roads (External),Capital,Professional Services,CAT08,Consultancy,SUBCAT0802,32415,Environmental Consultants,,Not yet available
Wakefield MDC,E08000036,31/12/2014,BUSINESS,Finance,J,BWB,Redacted,Not yet available,Not yet available,Not yet available,26/11/2014,22649889,1,13930.00,Nil,Construction of Roads (External),Capital,Professional Services,CAT08,Consultancy,SUBCAT0802,32415,Environmental Consultants,,Not yet available
Wakefield MDC,E08000036,31/12/2014,BUSINESS,Finance,J,TPM LANDSCAPE LTD,Redacted,Not yet available,Not yet available,Not yet available,23/10/2014,22603085,1,1565.00,Nil,Construction of Roads (External),Capital,Environment,CAT03,Parks and Public Spaces Contractors,SUBCAT0308,47060,Landscape Contractors & Gardening Services,,Not yet available
Wakefield MDC,E08000036,31/12/2014,BUSINESS,Finance,J,BARTLES LTD,Redacted,Not yet available,Not yet available,Not yet available,15/10/2014,22614031,1,6981.25,Nil,Construction of Roads (External),Capital,Professional Services,CAT08,Consultancy,SUBCAT0802,31590,Engineers - Consulting,,Not yet available
Wakefield MDC,E08000036,31/12/2014,BUSINESS,Finance,J,ASHTEAD PLANT HIRE CO LTD,Redacted,Not yet available,Not yet available,Not yet available,12/11/2014,22633911,1,750.00,Nil,Bridge Works,Capital,Transport,CAT10,Vehicle and Plant Hire,SUBCAT1010,59020,Plant & Machinery Hire,,Not yet available
Wakefield MDC,E08000036,31/12/2014,BUSINESS,Finance,J,ASHTEAD PLANT HIRE CO LTD,Redacted,Not yet available,Not yet available,Not yet available,12/11/2014,22633941,1,825.00,Nil,Bridge Works,Capital,Transport,CAT10,Vehicle and Plant Hire,SUBCAT1010,59020,Plant & Machinery Hire,,Not yet available
Wakefield MDC,E08000036,31/12/2014,BUSINESS,Finance,J,ASHTEAD PLANT HIRE CO LTD,Redacted,Not yet available,Not yet available,Not yet available,12/11/2014,22634127,1,750.00,Nil,Bridge Works,Capital,Transport,CAT10,Vehicle and Plant Hire,SUBCAT1010,59020,Plant & Machinery Hire,,Not yet available
Wakefield MDC,E08000036,31/12/2014,BUSINESS,Finance,J,NETWORK RAIL INFRASTRUCTURE LTD,Redacted,Not yet available,Not yet available,Not yet available,05/11/2014,22630283,1,3103.69,Nil,Bridge Works,Capital,n/a,CATNA,n/a,SUBCATNA,63418,Railways,,Not yet available
Wakefield MDC,E08000036,31/12/2014,BUSINESS,Finance,J,P & T CONTRACTS,Redacted,Not yet available,Not yet available,Not yet available,13/10/2014,22612210,1,12816.73,Nil,Bridge Works,Capital,Highways,CAT07,Surfacing,SUBCAT0708,04980,Asphalt & Coated Macadam Laying Contractors,,Not yet available
Wakefield MDC,E08000036,31/12/2014,BUSINESS,Finance,J,P & T CONTRACTS,Redacted,Not yet available,Not yet available,Not yet available,19/11/2014,22645996,1,36153.56,Nil,Bridge Works,Capital,Highways,CAT07,Surfacing,SUBCAT0708,04980,Asphalt & Coated Macadam Laying Contractors,,Not yet available
Wakefield MDC,E08000036,31/12/2014,BUSINESS,Finance,J,NORTHERN GAS NETWORKS LTD,Redacted,Not yet available,Not yet available,Not yet available,08/10/2014,22608505,1,9021.86,Nil,Bridge Works,Capital,Property & Asset Management,CAT01,Utilities - Gas,SUBCAT0142,39640,Gas Suppliers,,Not yet available
Wakefield MDC,E08000036,31/12/2014,BUSINESS,Finance,J,HAYCOCK AND JAY ASSOCIATES LTD,Redacted,Not yet available,Not yet available,Not yet available,03/12/2014,22653786,1,813.80,Nil,Bridge Works,Capital,Professional Services,CAT08,Consultancy,SUBCAT0802,32415,Environmental Consultants,,Not yet available
Wakefield MDC,E08000036,31/12/2014,BUSINESS,Finance,J,PELL FRISCHMANN CONSULTANTS LTD,Redacted,Not yet available,Not yet available,Not yet available,03/11/2014,22629299,1,4864.70,Nil,Bridge Works,Capital,Professional Services,CAT08,Consultancy,SUBCAT0802,31590,Engineers - Consulting,,Not yet available
Wakefield MDC,E08000036,31/12/2014,BUSINESS,Finance,J,PELL FRISCHMANN CONSULTANTS LTD,Redacted,Not yet available,Not yet available,Not yet available,04/12/2014,22654540,1,5329.79,Nil,Bridge Works,Capital,Professional Services,CAT08,Consultancy,SUBCAT0802,31590,Engineers - Consulting,,Not yet available
Wakefield MDC,E08000036,31/12/2014,BUSINESS,Finance,J,PELL FRISCHMANN CONSULTANTS LTD,Redacted,Not yet available,Not yet available,Not yet available,18/12/2014,22668778,1,4958.43,Nil,Bridge Works,Capital,Professional Services,CAT08,Consultancy,SUBCAT0802,31590,Engineers - Consulting,,Not yet available
Wakefield MDC,E08000036,31/12/2014,BUSINESS,Finance,J,JOSHUA THOMAS CONSTRUCTION LTD,Redacted,Not yet available,Not yet available,Not yet available,23/10/2014,22622141,1,20000.00,Nil,Bridge Works,Capital,Property & Asset Management,CAT01,Building Services - Misc,SUBCAT0115,11040,Builders,,Not yet available
Wakefield MDC,E08000036,31/12/2014,BUSINESS,Finance,J,WILSON ACCESS HIRE,Redacted,Not yet available,Not yet available,Not yet available,06/11/2014,22631523,1,975.00,Nil,Bridge Works,Capital,Transport,CAT10,Vehicle and Plant Hire,SUBCAT1010,22690,"Crane Hire, Sales & Service",,Not yet available
Wakefield MDC,E08000036,31/12/2014,BUSINESS,Finance,J,BRITISH TELECOMMUNICATIONS PLC,Redacted,Not yet available,Not yet available,Not yet available,03/12/2014,22651919,1,1625.04,Nil,STATS Diversion,Capital,ICT,CAT11,Telecommunications,SUBCAT1110,76510,Telecommunication Services,,Not yet available
Wakefield MDC,E08000036,31/12/2014,BUSINESS,Finance,J,BRITISH TELECOMMUNICATIONS PLC,Redacted,Not yet available,Not yet available,Not yet available,03/12/2014,22651921,1,5078.25,Nil,STATS Diversion,Capital,ICT,CAT11,Telecommunications,SUBCAT1110,76510,Telecommunication Services,,Not yet available
Wakefield MDC,E08000036,31/12/2014,BUSINESS,Finance,J,BRITISH TELECOMMUNICATIONS PLC,Redacted,Not yet available,Not yet available,Not yet available,03/12/2014,22651924,1,2031.30,Nil,STATS Diversion,Capital,ICT,CAT11,Telecommunications,SUBCAT1110,76510,Telecommunication Services,,Not yet available
Wakefield MDC,E08000036,31/12/2014,BUSINESS,Finance,J,BRITISH TELECOMMUNICATIONS PLC,Redacted,Not yet available,Not yet available,Not yet available,03/12/2014,22651975,1,2437.56,Nil,STATS Diversion,Capital,ICT,CAT11,Telecommunications,SUBCAT1110,76510,Telecommunication Services,,Not yet available
Wakefield MDC,E08000036,31/12/2014,BUSINESS,Finance,J,VIRGIN MEDIA LTD,Redacted,Not yet available,Not yet available,Not yet available,26/11/2014,22649954,1,2037.82,Nil,STATS Diversion,Capital,ICT,CAT11,Telecommunications,SUBCAT1110,76520,Telecommunications Equipment & Systems,,Not yet available
Wakefield MDC,E08000036,31/12/2014,BUSINESS,Finance,J,NPS NORTH EAST LTD,Redacted,Not yet available,Not yet available,Not yet available,20/10/2014,22610964,1,780.00,Nil,Demolition,Capital,Property & Asset Management,CAT01,Architects,SUBCAT0102,04422,Architectural Services,,Not yet available
Wakefield MDC,E08000036,31/12/2014,BUSINESS,Finance,J,NPS NORTH EAST LTD,Redacted,Not yet available,Not yet available,Not yet available,05/11/2014,22622139,1,3450.00,Nil,Demolition,Capital,Property & Asset Management,CAT01,Architects,SUBCAT0102,04422,Architectural Services,,Not yet available
Wakefield MDC,E08000036,31/12/2014,BUSINESS,Finance,J,NPS NORTH EAST LTD,Redacted,Not yet available,Not yet available,Not yet available,12/12/2014,22652288,1,4830.00,Nil,Demolition,Capital,Property & Asset Management,CAT01,Architects,SUBCAT0102,04422,Architectural Services,,Not yet available
Wakefield MDC,E08000036,31/12/2014,BUSINESS,Finance,J,NPS NORTH EAST LTD,Redacted,Not yet available,Not yet available,Not yet available,24/12/2014,22670361,1,2070.00,Nil,Demolition,Capital,Property & Asset Management,CAT01,Architects,SUBCAT0102,04422,Architectural Services,,Not yet available
Wakefield MDC,E08000036,31/12/2014,BUSINESS,Finance,J,MIDDLETON ECOLOGICAL CONSULTANCY,Redacted,Not yet available,Not yet available,Not yet available,01/12/2014,22650812,1,1143.75,Nil,Demolition,Capital,Professional Services,CAT08,Consultancy,SUBCAT0802,32415,Environmental Consultants,,Not yet available
Wakefield MDC,E08000036,31/12/2014,BUSINESS,Finance,J,MIDDLETON ECOLOGICAL CONSULTANCY,Redacted,Not yet available,Not yet available,Not yet available,15/10/2014,22614079,1,730.00,Nil,Demolition,Capital,Professional Services,CAT08,Consultancy,SUBCAT0802,32415,Environmental Consultants,,Not yet available
Wakefield MDC,E08000036,31/12/2014,BUSINESS,Finance,J,NPS NORTH EAST LTD,Redacted,Not yet available,Not yet available,Not yet available,02/12/2014,22647601,1,1472.30,Nil,Professional Fees (External),Capital,Property & Asset Management,CAT01,Architects,SUBCAT0102,04422,Architectural Services,,Not yet available
Wakefield MDC,E08000036,31/12/2014,BUSINESS,Finance,J,NPS NORTH EAST LTD,Redacted,Not yet available,Not yet available,Not yet available,03/12/2014,22652289,1,2044.80,Nil,Professional Fees (External),Capital,Property & Asset Management,CAT01,Architects,SUBCAT0102,04422,Architectural Services,,Not yet available
Wakefield MDC,E08000036,31/12/2014,BUSINESS,Finance,J,NPS NORTH EAST LTD,Redacted,Not yet available,Not yet available,Not yet available,23/12/2014,22667129,1,1900.01,Nil,Professional Fees (External),Capital,Property & Asset Management,CAT01,Architects,SUBCAT0102,04422,Architectural Services,,Not yet available
Wakefield MDC,E08000036,31/12/2014,BUSINESS,Finance,J,NPS NORTH EAST LTD,Redacted,Not yet available,Not yet available,Not yet available,01/10/2014,22606468,12,715.89,Nil,Professional Fees (External),Capital,Property & Asset Management,CAT01,Architects,SUBCAT0102,04422,Architectural Services,,Not yet available
Wakefield MDC,E08000036,31/12/2014,BUSINESS,Finance,J,NPS NORTH EAST LTD,Redacted,Not yet available,Not yet available,Not yet available,01/10/2014,22606468,1,10809.98,Nil,Professional Fees (External),Capital,Property & Asset Management,CAT01,Architects,SUBCAT0102,04422,Architectural Services,,Not yet available
Wakefield MDC,E08000036,31/12/2014,BUSINESS,Finance,J,NPS NORTH EAST LTD,Redacted,Not yet available,Not yet available,Not yet available,01/10/2014,22606468,3,2020.15,Nil,Professional Fees (External),Capital,Property & Asset Management,CAT01,Architects,SUBCAT0102,04422,Architectural Services,,Not yet available
Wakefield MDC,E08000036,31/12/2014,BUSINESS,Finance,J,NPS NORTH EAST LTD,Redacted,Not yet available,Not yet available,Not yet available,01/10/2014,22606468,16,678.96,Nil,Professional Fees (External),Capital,Property & Asset Management,CAT01,Architects,SUBCAT0102,04422,Architectural Services,,Not yet available
Wakefield MDC,E08000036,31/12/2014,BUSINESS,Finance,J,NPS NORTH EAST LTD,Redacted,Not yet available,Not yet available,Not yet available,01/10/2014,22606468,17,1205.40,Nil,Professional Fees (External),Capital,Property & Asset Management,CAT01,Architects,SUBCAT0102,04422,Architectural Services,,Not yet available
Wakefield MDC,E08000036,31/12/2014,BUSINESS,Finance,J,NPS NORTH EAST LTD,Redacted,Not yet available,Not yet available,Not yet available,01/10/2014,22606468,18,630.60,Nil,Professional Fees (External),Capital,Property & Asset Management,CAT01,Architects,SUBCAT0102,04422,Architectural Services,,Not yet available
Wakefield MDC,E08000036,31/12/2014,BUSINESS,Finance,J,NPS NORTH EAST LTD,Redacted,Not yet available,Not yet available,Not yet available,01/10/2014,22606468,19,1012.50,Nil,Professional Fees (External),Capital,Property & Asset Management,CAT01,Architects,SUBCAT0102,04422,Architectural Services,,Not yet available
Wakefield MDC,E08000036,31/12/2014,BUSINESS,Finance,J,NPS NORTH EAST LTD,Redacted,Not yet available,Not yet available,Not yet available,01/10/2014,22606468,6,9130.29,Nil,Professional Fees (External),Capital,Property & Asset Management,CAT01,Architects,SUBCAT0102,04422,Architectural Services,,Not yet available
Wakefield MDC,E08000036,31/12/2014,BUSINESS,Finance,J,NPS NORTH EAST LTD,Redacted,Not yet available,Not yet available,Not yet available,01/10/2014,22606468,7,2471.00,Nil,Professional Fees (External),Capital,Property & Asset Management,CAT01,Architects,SUBCAT0102,04422,Architectural Services,,Not yet available
Wakefield MDC,E08000036,31/12/2014,BUSINESS,Finance,J,NPS NORTH EAST LTD,Redacted,Not yet available,Not yet available,Not yet available,01/10/2014,22606468,8,4061.74,Nil,Professional Fees (External),Capital,Property & Asset Management,CAT01,Architects,SUBCAT0102,04422,Architectural Services,,Not yet available
Wakefield MDC,E08000036,31/12/2014,BUSINESS,Finance,J,NPS NORTH EAST LTD,Redacted,Not yet available,Not yet available,Not yet available,01/10/2014,22606468,9,13041.60,Nil,Professional Fees (External),Capital,Property & Asset Management,CAT01,Architects,SUBCAT0102,04422,Architectural Services,,Not yet available
Wakefield MDC,E08000036,31/12/2014,BUSINESS,Finance,J,NPS NORTH EAST LTD,Redacted,Not yet available,Not yet available,Not yet available,01/10/2014,22606468,10,9621.46,Nil,Professional Fees (External),Capital,Property & Asset Management,CAT01,Architects,SUBCAT0102,04422,Architectural Services,,Not yet available
Wakefield MDC,E08000036,31/12/2014,BUSINESS,Finance,J,NPS NORTH EAST LTD,Redacted,Not yet available,Not yet available,Not yet available,01/10/2014,22606468,11,9169.87,Nil,Professional Fees (External),Capital,Property & Asset Management,CAT01,Architects,SUBCAT0102,04422,Architectural Services,,Not yet available
Wakefield MDC,E08000036,31/12/2014,BUSINESS,Finance,J,NPS NORTH EAST LTD,Redacted,Not yet available,Not yet available,Not yet available,01/10/2014,22606468,4,1789.80,Nil,Professional Fees (External),Capital,Property & Asset Management,CAT01,Architects,SUBCAT0102,04422,Architectural Services,,Not yet available
Wakefield MDC,E08000036,31/12/2014,BUSINESS,Finance,J,NPS NORTH EAST LTD,Redacted,Not yet available,Not yet available,Not yet available,01/10/2014,22606468,5,555.00,Nil,Professional Fees (External),Capital,Property & Asset Management,CAT01,Architects,SUBCAT0102,04422,Architectural Services,,Not yet available
Wakefield MDC,E08000036,31/12/2014,BUSINESS,Finance,J,NPS NORTH EAST LTD,Redacted,Not yet available,Not yet available,Not yet available,01/10/2014,22606468,20,29007.32,Nil,Professional Fees (External),Capital,Property & Asset Management,CAT01,Architects,SUBCAT0102,04422,Architectural Services,,Not yet available
Wakefield MDC,E08000036,31/12/2014,BUSINESS,Finance,J,NPS NORTH EAST LTD,Redacted,Not yet available,Not yet available,Not yet available,01/10/2014,22606468,21,2988.90,Nil,Professional Fees (External),Capital,Property & Asset Management,CAT01,Architects,SUBCAT0102,04422,Architectural Services,,Not yet available
Wakefield MDC,E08000036,31/12/2014,BUSINESS,Finance,J,NPS NORTH EAST LTD,Redacted,Not yet available,Not yet available,Not yet available,01/10/2014,22606468,22,8023.76,Nil,Professional Fees (External),Capital,Property & Asset Management,CAT01,Architects,SUBCAT0102,04422,Architectural Services,,Not yet available
Wakefield MDC,E08000036,31/12/2014,BUSINESS,Finance,J,NPS NORTH EAST LTD,Redacted,Not yet available,Not yet available,Not yet available,01/10/2014,22606468,25,2675.26,Nil,Professional Fees (External),Capital,Property & Asset Management,CAT01,Architects,SUBCAT0102,04422,Architectural Services,,Not yet available
Wakefield MDC,E08000036,31/12/2014,BUSINESS,Finance,J,NPS NORTH EAST LTD,Redacted,Not yet available,Not yet available,Not yet available,01/10/2014,22606468,26,2625.00,Nil,Professional Fees (External),Capital,Property & Asset Management,CAT01,Architects,SUBCAT0102,04422,Architectural Services,,Not yet available
Wakefield MDC,E08000036,31/12/2014,BUSINESS,Finance,J,NPS NORTH EAST LTD,Redacted,Not yet available,Not yet available,Not yet available,01/10/2014,22606468,14,3714.29,Nil,Professional Fees (External),Capital,Property & Asset Management,CAT01,Architects,SUBCAT0102,04422,Architectural Services,,Not yet available
Wakefield MDC,E08000036,31/12/2014,BUSINESS,Finance,J,NPS NORTH EAST LTD,Redacted,Not yet available,Not yet available,Not yet available,01/10/2014,22606468,15,2479.68,Nil,Professional Fees (External),Capital,Property & Asset Management,CAT01,Architects,SUBCAT0102,04422,Architectural Services,,Not yet available
Wakefield MDC,E08000036,31/12/2014,BUSINESS,Finance,J,NPS NORTH EAST LTD,Redacted,Not yet available,Not yet available,Not yet available,08/10/2014,22610008,1,940.87,Nil,Professional Fees (External),Capital,Property & Asset Management,CAT01,Architects,SUBCAT0102,04422,Architectural Services,,Not yet available
Wakefield MDC,E08000036,31/12/2014,BUSINESS,Finance,J,NPS NORTH EAST LTD,Redacted,Not yet available,Not yet available,Not yet available,22/10/2014,22623776,3,569.16,Nil,Professional Fees (External),Capital,Property & Asset Management,CAT01,Architects,SUBCAT0102,04422,Architectural Services,,Not yet available
Wakefield MDC,E08000036,31/12/2014,BUSINESS,Finance,J,NPS NORTH EAST LTD,Redacted,Not yet available,Not yet available,Not yet available,04/11/2014,22631225,1,1917.00,Nil,Professional Fees (External),Capital,Property & Asset Management,CAT01,Architects,SUBCAT0102,04422,Architectural Services,,Not yet available
Wakefield MDC,E08000036,31/12/2014,BUSINESS,Finance,J,NPS NORTH EAST LTD,Redacted,Not yet available,Not yet available,Not yet available,20/11/2014,22646718,1,2025.00,Nil,Professional Fees (External),Capital,Property & Asset Management,CAT01,Architects,SUBCAT0102,04422,Architectural Services,,Not yet available
Wakefield MDC,E08000036,31/12/2014,BUSINESS,Finance,J,NPS NORTH EAST LTD,Redacted,Not yet available,Not yet available,Not yet available,26/11/2014,22649636,1,8826.10,Nil,Professional Fees (External),Capital,Property & Asset Management,CAT01,Architects,SUBCAT0102,04422,Architectural Services,,Not yet available
Wakefield MDC,E08000036,31/12/2014,BUSINESS,Finance,J,NPS NORTH EAST LTD,Redacted,Not yet available,Not yet available,Not yet available,26/11/2014,22650056,1,507.99,Nil,Professional Fees (External),Capital,Property & Asset Management,CAT01,Architects,SUBCAT0102,04422,Architectural Services,,Not yet available
Wakefield MDC,E08000036,31/12/2014,BUSINESS,Finance,J,NPS NORTH EAST LTD,Redacted,Not yet available,Not yet available,Not yet available,26/11/2014,22649639,1,2200.99,Nil,Professional Fees (External),Capital,Property & Asset Management,CAT01,Architects,SUBCAT0102,04422,Architectural Services,,Not yet available
Wakefield MDC,E08000036,31/12/2014,BUSINESS,Finance,J,NPS NORTH EAST LTD,Redacted,Not yet available,Not yet available,Not yet available,26/11/2014,22649644,1,8973.56,Nil,Professional Fees (External),Capital,Property & Asset Management,CAT01,Architects,SUBCAT0102,04422,Architectural Services,,Not yet available
Wakefield MDC,E08000036,31/12/2014,BUSINESS,Finance,J,NPS NORTH EAST LTD,Redacted,Not yet available,Not yet available,Not yet available,26/11/2014,22649645,1,4565.17,Nil,Professional Fees (External),Capital,Property & Asset Management,CAT01,Architects,SUBCAT0102,04422,Architectural Services,,Not yet available
Wakefield MDC,E08000036,31/12/2014,BUSINESS,Finance,J,NPS NORTH EAST LTD,Redacted,Not yet available,Not yet available,Not yet available,26/11/2014,22649652,1,10868.00,Nil,Professional Fees (External),Capital,Property & Asset Management,CAT01,Architects,SUBCAT0102,04422,Architectural Services,,Not yet available
Wakefield MDC,E08000036,31/12/2014,BUSINESS,Finance,J,NPS NORTH EAST LTD,Redacted,Not yet available,Not yet available,Not yet available,27/11/2014,22650055,1,512.48,Nil,Professional Fees (External),Capital,Property & Asset Management,CAT01,Architects,SUBCAT0102,04422,Architectural Services,,Not yet available
Wakefield MDC,E08000036,31/12/2014,BUSINESS,Finance,J,NPS NORTH EAST LTD,Redacted,Not yet available,Not yet available,Not yet available,01/12/2014,22651908,1,12828.62,Nil,Professional Fees (External),Capital,Property & Asset Management,CAT01,Architects,SUBCAT0102,04422,Architectural Services,,Not yet available
Wakefield MDC,E08000036,31/12/2014,BUSINESS,Finance,J,NPS NORTH EAST LTD,Redacted,Not yet available,Not yet available,Not yet available,01/12/2014,22651910,1,830.24,Nil,Professional Fees (External),Capital,Property & Asset Management,CAT01,Architects,SUBCAT0102,04422,Architectural Services,,Not yet available
Wakefield MDC,E08000036,31/12/2014,BUSINESS,Finance,J,NPS NORTH EAST LTD,Redacted,Not yet available,Not yet available,Not yet available,01/12/2014,22651912,1,1018.88,Nil,Professional Fees (External),Capital,Property & Asset Management,CAT01,Architects,SUBCAT0102,04422,Architectural Services,,Not yet available
Wakefield MDC,E08000036,31/12/2014,BUSINESS,Finance,J,NPS NORTH EAST LTD,Redacted,Not yet available,Not yet available,Not yet available,01/12/2014,22651914,1,3690.00,Nil,Professional Fees (External),Capital,Property & Asset Management,CAT01,Architects,SUBCAT0102,04422,Architectural Services,,Not yet available
Wakefield MDC,E08000036,31/12/2014,BUSINESS,Finance,J,NPS NORTH EAST LTD,Redacted,Not yet available,Not yet available,Not yet available,02/12/2014,22652703,1,1522.12,Nil,Professional Fees (External),Capital,Property & Asset Management,CAT01,Architects,SUBCAT0102,04422,Architectural Services,,Not yet available
Wakefield MDC,E08000036,31/12/2014,BUSINESS,Finance,J,NPS NORTH EAST LTD,Redacted,Not yet available,Not yet available,Not yet available,16/12/2014,22667181,1,7435.75,Nil,Professional Fees (External),Capital,Property & Asset Management,CAT01,Architects,SUBCAT0102,04422,Architectural Services,,Not yet available
Wakefield MDC,E08000036,31/12/2014,BUSINESS,Finance,J,NPS NORTH EAST LTD,Redacted,Not yet available,Not yet available,Not yet available,16/12/2014,22667183,1,1544.77,Nil,Professional Fees (External),Capital,Property & Asset Management,CAT01,Architects,SUBCAT0102,04422,Architectural Services,,Not yet available
Wakefield MDC,E08000036,31/12/2014,BUSINESS,Finance,J,NPS NORTH EAST LTD,Redacted,Not yet available,Not yet available,Not yet available,16/12/2014,22667184,1,1521.72,Nil,Professional Fees (External),Capital,Property & Asset Management,CAT01,Architects,SUBCAT0102,04422,Architectural Services,,Not yet available
Wakefield MDC,E08000036,31/12/2014,BUSINESS,Finance,J,NPS NORTH EAST LTD,Redacted,Not yet available,Not yet available,Not yet available,16/12/2014,22667187,1,987.14,Nil,Professional Fees (External),Capital,Property & Asset Management,CAT01,Architects,SUBCAT0102,04422,Architectural Services,,Not yet available
Wakefield MDC,E08000036,31/12/2014,BUSINESS,Finance,J,NPS NORTH EAST LTD,Redacted,Not yet available,Not yet available,Not yet available,16/12/2014,22667188,1,7978.05,Nil,Professional Fees (External),Capital,Property & Asset Management,CAT01,Architects,SUBCAT0102,04422,Architectural Services,,Not yet available
Wakefield MDC,E08000036,31/12/2014,BUSINESS,Finance,J,NPS NORTH EAST LTD,Redacted,Not yet available,Not yet available,Not yet available,16/12/2014,22667197,1,1488.36,Nil,Professional Fees (External),Capital,Property & Asset Management,CAT01,Architects,SUBCAT0102,04422,Architectural Services,,Not yet available
Wakefield MDC,E08000036,31/12/2014,BUSINESS,Finance,J,NPS NORTH EAST LTD,Redacted,Not yet available,Not yet available,Not yet available,16/12/2014,22667199,1,14943.18,Nil,Professional Fees (External),Capital,Property & Asset Management,CAT01,Architects,SUBCAT0102,04422,Architectural Services,,Not yet available
Wakefield MDC,E08000036,31/12/2014,BUSINESS,Finance,J,NPS NORTH EAST LTD,Redacted,Not yet available,Not yet available,Not yet available,16/12/2014,22667278,1,8056.00,Nil,Professional Fees (External),Capital,Property & Asset Management,CAT01,Architects,SUBCAT0102,04422,Architectural Services,,Not yet available
Wakefield MDC,E08000036,31/12/2014,BUSINESS,Finance,J,NPS NORTH EAST LTD,Redacted,Not yet available,Not yet available,Not yet available,17/12/2014,22667399,1,7306.20,Nil,Professional Fees (External),Capital,Property & Asset Management,CAT01,Architects,SUBCAT0102,04422,Architectural Services,,Not yet available
Wakefield MDC,E08000036,31/12/2014,BUSINESS,Finance,J,NPS NORTH EAST LTD,Redacted,Not yet available,Not yet available,Not yet available,17/12/2014,22667495,1,10188.75,Nil,Professional Fees (External),Capital,Property & Asset Management,CAT01,Architects,SUBCAT0102,04422,Architectural Services,,Not yet available
Wakefield MDC,E08000036,31/12/2014,BUSINESS,Finance,J,NPS NORTH EAST LTD,Redacted,Not yet available,Not yet available,Not yet available,17/12/2014,22667497,1,622.24,Nil,Professional Fees (External),Capital,Property & Asset Management,CAT01,Architects,SUBCAT0102,04422,Architectural Services,,Not yet available
Wakefield MDC,E08000036,31/12/2014,BUSINESS,Finance,J,NPS NORTH EAST LTD,Redacted,Not yet available,Not yet available,Not yet available,17/12/2014,22667517,1,7380.00,Nil,Professional Fees (External),Capital,Property & Asset Management,CAT01,Architects,SUBCAT0102,04422,Architectural Services,,Not yet available
Wakefield MDC,E08000036,31/12/2014,BUSINESS,Finance,J,NPS NORTH EAST LTD,Redacted,Not yet available,Not yet available,Not yet available,19/12/2014,22670925,1,12828.66,Nil,Professional Fees (External),Capital,Property & Asset Management,CAT01,Architects,SUBCAT0102,04422,Architectural Services,,Not yet available
Wakefield MDC,E08000036,31/12/2014,BUSINESS,Finance,J,WDH SOLUTIONS LTD,Redacted,Not yet available,Not yet available,Not yet available,17/11/2014,22642243,1,22646.75,Nil,Professional Fees (External),Capital,Adult Services,CAT04,to be classified,SUBCATTBC,44166,"Housing Associations, Societies, Trusts & Co-Opera",,Not yet available
Wakefield MDC,E08000036,31/12/2014,BUSINESS,Finance,J,WSP UK LTD,Redacted,Not yet available,Not yet available,Not yet available,15/12/2014,22665896,1,800.00,Nil,Professional Fees (External),Capital,Highways,CAT07,Highways Schemes,SUBCAT0702,18632,Civil Engineers,,Not yet available
Wakefield MDC,E08000036,31/12/2014,BUSINESS,Finance,J,AECOM LTD,Redacted,Not yet available,Not yet available,Not yet available,18/11/2014,22643120,1,1065.00,Nil,Professional Fees (External),Capital,Professional Services,CAT08,Consultancy,SUBCAT0802,21600,Consultants - Industrial,,Not yet available
Wakefield MDC,E08000036,31/12/2014,BUSINESS,Finance,J,AECOM LTD,Redacted,Not yet available,Not yet available,Not yet available,22/12/2014,22670987,1,530.00,Nil,Professional Fees (External),Capital,Professional Services,CAT08,Consultancy,SUBCAT0802,21600,Consultants - Industrial,,Not yet available
Wakefield MDC,E08000036,31/12/2014,BUSINESS,Finance,J,FORE CONSULTING LIMITED,Redacted,Not yet available,Not yet available,Not yet available,29/10/2014,22610475,1,1950.00,Nil,Professional Fees (External),Capital,Professional Services,CAT08,Consultancy,SUBCAT0802,31590,Engineers - Consulting,,Not yet available
Wakefield MDC,E08000036,31/12/2014,BUSINESS,Finance,J,FORE CONSULTING LIMITED,Redacted,Not yet available,Not yet available,Not yet available,08/12/2014,22655418,1,1150.00,Nil,Professional Fees (External),Capital,Professional Services,CAT08,Consultancy,SUBCAT0802,31590,Engineers - Consulting,,Not yet available
Wakefield MDC,E08000036,31/12/2014,BUSINESS,Finance,J,FORE CONSULTING LIMITED,Redacted,Not yet available,Not yet available,Not yet available,08/12/2014,22655419,1,650.00,Nil,Professional Fees (External),Capital,Professional Services,CAT08,Consultancy,SUBCAT0802,31590,Engineers - Consulting,,Not yet available
Wakefield MDC,E08000036,31/12/2014,BUSINESS,Finance,J,FORE CONSULTING LIMITED,Redacted,Not yet available,Not yet available,Not yet available,08/12/2014,22655428,1,1450.00,Nil,Professional Fees (External),Capital,Professional Services,CAT08,Consultancy,SUBCAT0802,31590,Engineers - Consulting,,Not yet available
Wakefield MDC,E08000036,31/12/2014,BUSINESS,Finance,J,FORE CONSULTING LIMITED,Redacted,Not yet available,Not yet available,Not yet available,08/12/2014,22655498,1,1450.00,Nil,Professional Fees (External),Capital,Professional Services,CAT08,Consultancy,SUBCAT0802,31590,Engineers - Consulting,,Not yet available
Wakefield MDC,E08000036,31/12/2014,BUSINESS,Finance,J,MOUCHEL LTD,Redacted,Not yet available,Not yet available,Not yet available,26/11/2014,22649573,1,63054.43,Nil,Professional Fees (External),Capital,Professional Services,CAT08,Consultancy,SUBCAT0802,31590,Engineers - Consulting,,Not yet available
Wakefield MDC,E08000036,31/12/2014,BUSINESS,Finance,J,BWB,Redacted,Not yet available,Not yet available,Not yet available,25/11/2014,22647388,1,17100.00,Nil,Professional Fees (External),Capital,Professional Services,CAT08,Consultancy,SUBCAT0802,32415,Environmental Consultants,,Not yet available
Wakefield MDC,E08000036,31/12/2014,BUSINESS,Finance,J,TPM LANDSCAPE LTD,Redacted,Not yet available,Not yet available,Not yet available,26/11/2014,22649431,1,9228.85,Nil,Professional Fees (External),Capital,Environment,CAT03,Parks and Public Spaces Contractors,SUBCAT0308,47060,Landscape Contractors & Gardening Services,,Not yet available
Wakefield MDC,E08000036,31/12/2014,BUSINESS,Finance,J,QUEENSBERRY DESIGN LIMITED,Redacted,Not yet available,Not yet available,Not yet available,23/10/2014,22622140,1,17387.50,Nil,Professional Fees (External),Capital,Professional Services,CAT08,Consultancy,SUBCAT0802,24980,Design Consultants,,Not yet available
Wakefield MDC,E08000036,31/12/2014,BUSINESS,Finance,J,WESSEX ARCHAEOLOGY,Redacted,Not yet available,Not yet available,Not yet available,20/11/2014,22645869,1,3900.00,Nil,Professional Fees (External),Capital,"Economic Growth, Culture & Sport",CAT09,Museums & Culture,SUBCAT0904,04390,Archaeologists,,Not yet available
Wakefield MDC,E08000036,31/12/2014,BUSINESS,Finance,J,NPS NORTH EAST LTD,Redacted,Not yet available,Not yet available,Not yet available,28/10/2014,22625660,1,-1650.85,Nil,Professional Fees (Internal),Capital,Property & Asset Management,CAT01,Architects,SUBCAT0102,04422,Architectural Services,,Not yet available
Wakefield MDC,E08000036,31/12/2014,BUSINESS,Finance,J,NPS NORTH EAST LTD,Redacted,Not yet available,Not yet available,Not yet available,31/10/2014,22622254,1,750.00,Nil,Surveys,Capital,Property & Asset Management,CAT01,Architects,SUBCAT0102,04422,Architectural Services,,Not yet available
Wakefield MDC,E08000036,31/12/2014,BUSINESS,Finance,J,JET AIRE DC LTD,Redacted,Not yet available,Not yet available,Not yet available,14/11/2014,22628905,1,675.00,Nil,Surveys,Capital,Highways,CAT07,Drainage,SUBCAT0701,27660,Drain & Sewer Clearance,,Not yet available
Wakefield MDC,E08000036,31/12/2014,BUSINESS,Finance,J,BROOKS ECOLOGICAL LTD,Redacted,Not yet available,Not yet available,Not yet available,01/10/2014,22605588,1,1790.00,Nil,Surveys,Capital,Professional Services,CAT08,Consultancy,SUBCAT0802,32415,Environmental Consultants,,Not yet available
Wakefield MDC,E08000036,31/12/2014,BUSINESS,Finance,J,CA TRAFFIC LTD,Redacted,Not yet available,Not yet available,Not yet available,04/12/2014,22630302,1,875.00,Nil,Surveys,Capital,Highways,CAT07,Urban Traffic Control,SUBCAT0710,79650,Traffic Management Systems,,Not yet available
Wakefield MDC,E08000036,31/12/2014,BUSINESS,Finance,J,CENTARA LTD,Redacted,Not yet available,Not yet available,Not yet available,25/11/2014,22601191,1,1622.40,Nil,Surveys,Capital,Professional Services,CAT08,Consultancy,SUBCAT0802,31590,Engineers - Consulting,,Not yet available
Wakefield MDC,E08000036,31/12/2014,BUSINESS,Finance,J,LOCAL TRANSPORT PROJECTS,Redacted,Not yet available,Not yet available,Not yet available,21/11/2014,22605456,1,2750.00,Nil,Surveys,Capital,Business Services,CAT02,Post,SUBCAT0219,14991,Cargo Handling Services,,Not yet available
Wakefield MDC,E08000036,31/12/2014,BUSINESS,Finance,J,ENVIRONMENT AGENCY,Redacted,Not yet available,Not yet available,Not yet available,14/10/2014,22613033,1,1580.00,Nil,Drainage,Capital,Professional Services,CAT08,Government Agencies,SUBCAT0804,38711,Government Agencies,,Not yet available
Wakefield MDC,E08000036,31/12/2014,BUSINESS,Finance,J,D SCOTT T/A R C K GROUNDWORKS,Redacted,Not yet available,Not yet available,Not yet available,04/11/2014,22629986,1,1379.82,Nil,Drainage,Capital,Property & Asset Management,CAT01,Building Services - Groundwork�s,SUBCAT0111,32980,Excavation & Groundwork Contractors,,Not yet available
Wakefield MDC,E08000036,31/12/2014,BUSINESS,Finance,J,D SCOTT T/A R C K GROUNDWORKS,Redacted,Not yet available,Not yet available,Not yet available,04/11/2014,22629986,2,2401.20,Nil,Drainage,Capital,Property & Asset Management,CAT01,Building Services - Groundwork�s,SUBCAT0111,32980,Excavation & Groundwork Contractors,,Not yet available
Wakefield MDC,E08000036,31/12/2014,BUSINESS,Finance,J,D SCOTT T/A R C K GROUNDWORKS,Redacted,Not yet available,Not yet available,Not yet available,17/12/2014,22666583,1,1107.22,Nil,Drainage,Capital,Property & Asset Management,CAT01,Building Services - Groundwork�s,SUBCAT0111,32980,Excavation & Groundwork Contractors,,Not yet available
Wakefield MDC,E08000036,31/12/2014,BUSINESS,Finance,J,D SCOTT T/A R C K GROUNDWORKS,Redacted,Not yet available,Not yet available,Not yet available,17/12/2014,22666583,2,1088.50,Nil,Drainage,Capital,Property & Asset Management,CAT01,Building Services - Groundwork�s,SUBCAT0111,32980,Excavation & Groundwork Contractors,,Not yet available
Wakefield MDC,E08000036,31/12/2014,BUSINESS,Finance,J,ICD MACHINERY LTD,Redacted,Not yet available,Not yet available,Not yet available,24/12/2014,22673288,1,13893.75,Nil,Vehicles,Capital,Transport,CAT10,Fleet Consumables,SUBCAT1002,49120,Machinery - Industrial & Commercial,,Not yet available
Wakefield MDC,E08000036,31/12/2014,BUSINESS,Finance,J,ICD MACHINERY LTD,Redacted,Not yet available,Not yet available,Not yet available,24/12/2014,22673289,1,500.00,Nil,Vehicles,Capital,Transport,CAT10,Fleet Consumables,SUBCAT1002,49120,Machinery - Industrial & Commercial,,Not yet available
Wakefield MDC,E08000036,31/12/2014,BUSINESS,Finance,J,DENBY CATERING EQUIPMENT LTD,Redacted,Not yet available,Not yet available,Not yet available,10/10/2014,22608226,1,29962.01,Nil,Equipment,Capital,Property & Asset Management,CAT01,Catering - Equipment,SUBCAT0126,16111,Catering Equipment,,Not yet available
Wakefield MDC,E08000036,31/12/2014,BUSINESS,Finance,J,DENBY CATERING EQUIPMENT LTD,Redacted,Not yet available,Not yet available,Not yet available,10/10/2014,22608226,2,6404.70,Nil,Equipment,Capital,Property & Asset Management,CAT01,Catering - Equipment,SUBCAT0126,16111,Catering Equipment,,Not yet available
Wakefield MDC,E08000036,31/12/2014,BUSINESS,Finance,J,DENBY CATERING EQUIPMENT LTD,Redacted,Not yet available,Not yet available,Not yet available,10/10/2014,22608231,1,561.40,Nil,Equipment,Capital,Property & Asset Management,CAT01,Catering - Equipment,SUBCAT0126,16111,Catering Equipment,,Not yet available
Wakefield MDC,E08000036,31/12/2014,BUSINESS,Finance,J,DENBY CATERING EQUIPMENT LTD,Redacted,Not yet available,Not yet available,Not yet available,02/10/2014,22606632,1,3420.00,Nil,Equipment,Capital,Property & Asset Management,CAT01,Catering - Equipment,SUBCAT0126,16111,Catering Equipment,,Not yet available
Wakefield MDC,E08000036,31/12/2014,BUSINESS,Finance,J,DENBY CATERING EQUIPMENT LTD,Redacted,Not yet available,Not yet available,Not yet available,17/10/2014,22608542,1,2075.00,Nil,Equipment,Capital,Property & Asset Management,CAT01,Catering - Equipment,SUBCAT0126,16111,Catering Equipment,,Not yet available
Wakefield MDC,E08000036,31/12/2014,BUSINESS,Finance,J,DENBY CATERING EQUIPMENT LTD,Redacted,Not yet available,Not yet available,Not yet available,30/10/2014,22628416,1,10164.00,Nil,Equipment,Capital,Property & Asset Management,CAT01,Catering - Equipment,SUBCAT0126,16111,Catering Equipment,,Not yet available
Wakefield MDC,E08000036,31/12/2014,BUSINESS,Finance,J,DENBY CATERING EQUIPMENT LTD,Redacted,Not yet available,Not yet available,Not yet available,02/12/2014,22652679,1,3692.00,Nil,Equipment,Capital,Property & Asset Management,CAT01,Catering - Equipment,SUBCAT0126,16111,Catering Equipment,,Not yet available
Wakefield MDC,E08000036,31/12/2014,BUSINESS,Finance,J,DENBY CATERING EQUIPMENT LTD,Redacted,Not yet available,Not yet available,Not yet available,18/12/2014,22667380,1,7242.00,Nil,Equipment,Capital,Property & Asset Management,CAT01,Catering - Equipment,SUBCAT0126,16111,Catering Equipment,,Not yet available
Wakefield MDC,E08000036,31/12/2014,BUSINESS,Finance,J,ALAMO BUSINESS SYSTEMS LTD,Redacted,Not yet available,Not yet available,Not yet available,19/12/2014,22645116,1,5177.11,Nil,Equipment,Capital,ICT,CAT11,ICT - Hardware,SUBCAT1102,20690,Computer Support & Services,,Not yet available
Wakefield MDC,E08000036,31/12/2014,BUSINESS,Finance,J,CUSTOM GROUP LTD,Redacted,Not yet available,Not yet available,Not yet available,11/12/2014,22656895,1,1181.70,Nil,Equipment,Capital,Property & Asset Management,CAT01,Furniture,SUBCAT0133,23180,Curtains - Retailers & Makers,,Not yet available
Wakefield MDC,E08000036,31/12/2014,BUSINESS,Finance,J,BT BUSINESS DIRECT LTD,Redacted,Not yet available,Not yet available,Not yet available,19/12/2014,22667482,1,1511.73,Nil,Equipment,Capital,ICT,CAT11,Telecommunications,SUBCAT1110,76520,Telecommunications Equipment & Systems,,Not yet available
Wakefield MDC,E08000036,31/12/2014,BUSINESS,Finance,J,BT BUSINESS DIRECT LTD,Redacted,Not yet available,Not yet available,Not yet available,19/12/2014,22667483,1,714.08,Nil,Equipment,Capital,ICT,CAT11,Telecommunications,SUBCAT1110,76520,Telecommunications Equipment & Systems,,Not yet available
Wakefield MDC,E08000036,31/12/2014,BUSINESS,Finance,J,EARLY EXCELLENCE LTD,Redacted,Not yet available,Not yet available,Not yet available,07/11/2014,22605361,1,3613.50,Nil,Equipment,Capital,Business Services,CAT02,Training,SUBCAT0223,79980,Training Services,,Not yet available
Wakefield MDC,E08000036,31/12/2014,BUSINESS,Finance,J,YORKSHIRE PURCHASING,Redacted,Not yet available,Not yet available,Not yet available,15/10/2014,22613879,1,791.80,Nil,Equipment,Capital,YPO,CAT12,Sub Category To Be Classified,SUBCATTBC,62710,Purchasing Services,,Not yet available
Wakefield MDC,E08000036,31/12/2014,BUSINESS,Finance,J,PLAYDALE PLAYGROUNDS LTD,Redacted,Not yet available,Not yet available,Not yet available,15/10/2014,22613995,1,14976.45,Nil,Equipment,Capital,Environment,CAT03,Playground Equipment,SUBCAT0312,59720,Playground Equipment,,Not yet available
Wakefield MDC,E08000036,31/12/2014,BUSINESS,Finance,J,OSBORNE TECHNOLOGIES LTD,Redacted,Not yet available,Not yet available,Not yet available,11/11/2014,22621187,1,2644.00,Nil,Equipment,Capital,ICT,CAT11,ICT - Software,SUBCAT1108,20620,Computer Consultants,,Not yet available
Wakefield MDC,E08000036,31/12/2014,BUSINESS,Finance,J,OSSETT ACADEMY & SIXTH FORM COLLEGE,Redacted,Not yet available,Not yet available,Not yet available,28/11/2014,22649999,1,2924.02,Nil,Equipment,Capital,Children and Young People,CAT05,Education & Careers,SUBCAT0502,67860,Schools - Independent & Preparatory,,Not yet available
Wakefield MDC,E08000036,31/12/2014,BUSINESS,Finance,J,ISS MEDICLEAN LIMITED T/A ISS FACILITY SERVICES EDUCATION,Redacted,Not yet available,Not yet available,Not yet available,02/10/2014,22606108,1,23077.86,Nil,Equipment,Capital,Property & Asset Management,CAT01,Cleaning,SUBCAT0129,15269,Cleaning Services - Commercial,,Not yet available
Wakefield MDC,E08000036,31/12/2014,BUSINESS,Finance,J,CITY OF BRADFORD MDC,Redacted,Not yet available,Not yet available,Not yet available,14/11/2014,22613968,1,10110.00,Nil,Equipment,Capital,n/a,CATNA,n/a,SUBCATNA,48583,Local Government,,Not yet available
Wakefield MDC,E08000036,31/12/2014,BUSINESS,Finance,J,COMPLETE CARE NETWORK T/A COMPLETE CARE SHOP,Redacted,Not yet available,Not yet available,Not yet available,13/10/2014,22612153,1,2061.26,Nil,Equipment,Capital,"Economic Growth, Culture & Sport",CAT09,Events,SUBCAT0907,23370,Cutlery Suppliers,,Not yet available
Wakefield MDC,E08000036,31/12/2014,BUSINESS,Finance,J,STONE COMPUTERS LTD (EDUCATION PO),Redacted,Not yet available,Not yet available,Not yet available,08/12/2014,22642428,1,2556.00,Nil,Equipment,Capital,ICT,CAT11,ICT - Hardware,SUBCAT1102,20706,Computer Systems & Software (Sales),,Not yet available
Wakefield MDC,E08000036,31/12/2014,BUSINESS,Finance,J,LEEDS DIOCESE BOARD OF FINANCE,Redacted,Not yet available,Not yet available,Not yet available,19/12/2014,22665852,1,1558.07,Nil,Equipment,Capital,Adult Services,CAT04,To Be Classified,SUBCATTBC,17020,Charities & Voluntary Organisations,,Not yet available
Wakefield MDC,E08000036,31/12/2014,BUSINESS,Finance,J,YORKSHIRE PURCHASING,Redacted,Not yet available,Not yet available,Not yet available,24/10/2014,22626136,1,-712.08,Nil,Furniture,Capital,YPO,CAT12,Sub Category To Be Classified,SUBCATTBC,62710,Purchasing Services,,Not yet available
Wakefield MDC,E08000036,31/12/2014,BUSINESS,Finance,J,YORKSHIRE PURCHASING,Redacted,Not yet available,Not yet available,Not yet available,06/11/2014,22589811,1,2063.40,Nil,Furniture,Capital,YPO,CAT12,Sub Category To Be Classified,SUBCATTBC,62710,Purchasing Services,,Not yet available
Wakefield MDC,E08000036,31/12/2014,BUSINESS,Finance,J,YORKSHIRE PURCHASING,Redacted,Not yet available,Not yet available,Not yet available,06/11/2014,22601062,1,1102.50,Nil,Furniture,Capital,YPO,CAT12,Sub Category To Be Classified,SUBCATTBC,62710,Purchasing Services,,Not yet available
Wakefield MDC,E08000036,31/12/2014,BUSINESS,Finance,J,YORKSHIRE PURCHASING,Redacted,Not yet available,Not yet available,Not yet available,06/11/2014,22589776,1,2183.90,Nil,Furniture,Capital,YPO,CAT12,Sub Category To Be Classified,SUBCATTBC,62710,Purchasing Services,,Not yet available
Wakefield MDC,E08000036,31/12/2014,BUSINESS,Finance,J,YORKSHIRE PURCHASING,Redacted,Not yet available,Not yet available,Not yet available,10/11/2014,22603048,1,568.00,Nil,Furniture,Capital,YPO,CAT12,Sub Category To Be Classified,SUBCATTBC,62710,Purchasing Services,,Not yet available
Wakefield MDC,E08000036,31/12/2014,BUSINESS,Finance,J,YORKSHIRE PURCHASING,Redacted,Not yet available,Not yet available,Not yet available,14/11/2014,22600891,1,901.30,Nil,Furniture,Capital,YPO,CAT12,Sub Category To Be Classified,SUBCATTBC,62710,Purchasing Services,,Not yet available
Wakefield MDC,E08000036,31/12/2014,BUSINESS,Finance,J,YORKSHIRE PURCHASING,Redacted,Not yet available,Not yet available,Not yet available,14/11/2014,22604206,1,854.10,Nil,Furniture,Capital,YPO,CAT12,Sub Category To Be Classified,SUBCATTBC,62710,Purchasing Services,,Not yet available
Wakefield MDC,E08000036,31/12/2014,BUSINESS,Finance,J,YORKSHIRE PURCHASING,Redacted,Not yet available,Not yet available,Not yet available,14/11/2014,22622012,1,544.00,Nil,Furniture,Capital,YPO,CAT12,Sub Category To Be Classified,SUBCATTBC,62710,Purchasing Services,,Not yet available
Wakefield MDC,E08000036,31/12/2014,BUSINESS,Finance,J,YORKSHIRE PURCHASING,Redacted,Not yet available,Not yet available,Not yet available,14/11/2014,22626252,1,1185.60,Nil,Furniture,Capital,YPO,CAT12,Sub Category To Be Classified,SUBCATTBC,62710,Purchasing Services,,Not yet available
Wakefield MDC,E08000036,31/12/2014,BUSINESS,Finance,J,YORKSHIRE PURCHASING,Redacted,Not yet available,Not yet available,Not yet available,17/11/2014,22621814,1,629.85,Nil,Furniture,Capital,YPO,CAT12,Sub Category To Be Classified,SUBCATTBC,62710,Purchasing Services,,Not yet available
Wakefield MDC,E08000036,31/12/2014,BUSINESS,Finance,J,YORKSHIRE PURCHASING,Redacted,Not yet available,Not yet available,Not yet available,17/11/2014,22611510,1,4778.23,Nil,Furniture,Capital,YPO,CAT12,Sub Category To Be Classified,SUBCATTBC,62710,Purchasing Services,,Not yet available
Wakefield MDC,E08000036,31/12/2014,BUSINESS,Finance,J,YORKSHIRE PURCHASING,Redacted,Not yet available,Not yet available,Not yet available,04/12/2014,22647909,1,1466.36,Nil,Furniture,Capital,YPO,CAT12,Sub Category To Be Classified,SUBCATTBC,62710,Purchasing Services,,Not yet available
Wakefield MDC,E08000036,31/12/2014,BUSINESS,Finance,J,YORKSHIRE PURCHASING,Redacted,Not yet available,Not yet available,Not yet available,08/12/2014,22589812,1,712.08,Nil,Furniture,Capital,YPO,CAT12,Sub Category To Be Classified,SUBCATTBC,62710,Purchasing Services,,Not yet available
Wakefield MDC,E08000036,31/12/2014,BUSINESS,Finance,J,BT BUSINESS DIRECT LTD,Redacted,Not yet available,Not yet available,Not yet available,10/11/2014,22632379,,503.91,Nil,Computer Equipment,Capital,ICT,CAT11,Telecommunications,SUBCAT1110,76520,Telecommunications Equipment & Systems,,Not yet available
Wakefield MDC,E08000036,31/12/2014,BUSINESS,Finance,J,BT BUSINESS DIRECT LTD,Redacted,Not yet available,Not yet available,Not yet available,22/10/2014,22624812,1,1062.52,Nil,Computer Equipment,Capital,ICT,CAT11,Telecommunications,SUBCAT1110,76520,Telecommunications Equipment & Systems,,Not yet available
Wakefield MDC,E08000036,31/12/2014,BUSINESS,Finance,J,BT BUSINESS DIRECT LTD,Redacted,Not yet available,Not yet available,Not yet available,24/10/2014,22538504,1,756.40,Nil,Computer Equipment,Capital,ICT,CAT11,Telecommunications,SUBCAT1110,76520,Telecommunications Equipment & Systems,,Not yet available
Wakefield MDC,E08000036,31/12/2014,BUSINESS,Finance,J,DELL CORPORATION LTD,Redacted,Not yet available,Not yet available,Not yet available,23/10/2014,22625633,1,4302.00,Nil,Computer Equipment,Capital,ICT,CAT11,ICT - Hardware,SUBCAT1102,20645,Computer Mnfrs,,Not yet available
Wakefield MDC,E08000036,31/12/2014,BUSINESS,Finance,J,TOUCH AV LTD,Redacted,Not yet available,Not yet available,Not yet available,03/12/2014,22642407,1,9116.08,Nil,Computer Equipment,Capital,ICT,CAT11,ICT - Hardware - AV,SUBCAT1103,05400,Audio-Visual Equipment & Supplies,,Not yet available
Wakefield MDC,E08000036,31/12/2014,BUSINESS,Finance,J,HIGHLANDER COMPUTING SOLUTIONS LTD,Redacted,Not yet available,Not yet available,Not yet available,12/12/2014,22649937,1,2113.01,Nil,Computer Equipment,Capital,ICT,CAT11,ICT - Hardware,SUBCAT1102,58777,Computer Networking & Cabling,,Not yet available
Wakefield MDC,E08000036,31/12/2014,BUSINESS,Finance,J,VIRGIN MEDIA LTD,Redacted,Not yet available,Not yet available,Not yet available,09/12/2014,22652035,1,117641.77,Nil,Computer Equipment,Capital,ICT,CAT11,Telecommunications,SUBCAT1110,76520,Telecommunications Equipment & Systems,,Not yet available
Wakefield MDC,E08000036,31/12/2014,BUSINESS,Finance,J,ICT4COLLABORATION,Redacted,Not yet available,Not yet available,Not yet available,10/11/2014,22633179,1,2590.00,Nil,Computer Equipment,Capital,ICT,CAT11,ICT - Hardware,SUBCAT1102,20690,Computer Support & Services,,Not yet available
Wakefield MDC,E08000036,31/12/2014,BUSINESS,Finance,J,LEEDS CITY COUNCIL,Redacted,Not yet available,Not yet available,Not yet available,28/10/2014,22627947,2,50600.00,Nil,Computer Software,Capital,n/a,CATNA,n/a,SUBCATNA,48583,Local Government,,Not yet available
Wakefield MDC,E08000036,31/12/2014,BUSINESS,Finance,J,TRUSTMARQUE SOLUTIONS LTD,Redacted,Not yet available,Not yet available,Not yet available,04/11/2014,22610453,1,63910.22,Nil,Computer Software,Capital,ICT,CAT11,ICT - Software,SUBCAT1108,20703,Computer Systems & Software (Development),,Not yet available
Wakefield MDC,E08000036,31/12/2014,BUSINESS,Finance,J,OPTEVIA LTD,Redacted,Not yet available,Not yet available,Not yet available,08/12/2014,22653803,1,15340.00,Nil,Computer Software,Capital,ICT,CAT11,ICT - Software,SUBCAT1108,20620,Computer Consultants,,Not yet available
Wakefield MDC,E08000036,31/12/2014,BUSINESS,Finance,J,K P M S COMMERCIAL LTD,Redacted,Not yet available,Not yet available,Not yet available,06/11/2014,22627114,1,7957.00,Nil,Computer Implementation,Capital,ICT,CAT11,ICT - Hardware - AV,SUBCAT1103,05400,Audio-Visual Equipment & Supplies,,Not yet available
Wakefield MDC,E08000036,31/12/2014,BUSINESS,Finance,J,FLEX-TELECOM LIMITED,Redacted,Not yet available,Not yet available,Not yet available,07/11/2014,22632298,1,4005.00,Nil,Computer Implementation,Capital,ICT,CAT11,Telecommunications,SUBCAT1110,76510,Telecommunication Services,,Not yet available
Wakefield MDC,E08000036,31/12/2014,BUSINESS,Finance,J,FLEX-TELECOM LIMITED,Redacted,Not yet available,Not yet available,Not yet available,07/11/2014,22632318,1,769.91,Nil,Computer Implementation,Capital,ICT,CAT11,Telecommunications,SUBCAT1110,76510,Telecommunication Services,,Not yet available
Wakefield MDC,E08000036,31/12/2014,BUSINESS,Finance,J,SWARCO TRAFFIC LTD,Redacted,Not yet available,Not yet available,Not yet available,24/11/2014,22647407,1,4014.72,Nil,Urban Traffic Control Signals Orders,Capital,Highways,CAT07,Urban Traffic Control,SUBCAT0710,79650,Traffic Management Systems,,Not yet available
Wakefield MDC,E08000036,31/12/2014,BUSINESS,Finance,J,IMTECH TRAFFIC & INFRA UK LIMITED,Redacted,Not yet available,Not yet available,Not yet available,29/10/2014,22606550,1,3040.48,Nil,Urban Traffic Control Signals Orders,Capital,Highways,CAT07,Urban Traffic Control,SUBCAT0710,79650,Traffic Management Systems,,Not yet available
Wakefield MDC,E08000036,31/12/2014,BUSINESS,Finance,J,TELENT TECHNOLOGY SERVICES LTD,Redacted,Not yet available,Not yet available,Not yet available,30/10/2014,22628048,1,9195.51,Nil,Urban Traffic Control Signals Orders,Capital,Highways,CAT07,Urban Traffic Control,SUBCAT0710,79650,Traffic Management Systems,,Not yet available
Wakefield MDC,E08000036,31/12/2014,BUSINESS,Finance,J,TELENT TECHNOLOGY SERVICES LTD,Redacted,Not yet available,Not yet available,Not yet available,30/10/2014,22627928,1,23466.44,Nil,Urban Traffic Control Signals Orders,Capital,Highways,CAT07,Urban Traffic Control,SUBCAT0710,79650,Traffic Management Systems,,Not yet available
Wakefield MDC,E08000036,31/12/2014,BUSINESS,Finance,J,TELENT TECHNOLOGY SERVICES LTD,Redacted,Not yet available,Not yet available,Not yet available,13/11/2014,22633181,1,24648.94,Nil,Urban Traffic Control Signals Orders,Capital,Highways,CAT07,Urban Traffic Control,SUBCAT0710,79650,Traffic Management Systems,,Not yet available
Wakefield MDC,E08000036,31/12/2014,BUSINESS,Finance,J,NPS NORTH EAST LTD,Redacted,Not yet available,Not yet available,Not yet available,19/12/2014,22665299,1,800.00,Nil,Professional Fees (PVE - External),Capital,Property & Asset Management,CAT01,Architects,SUBCAT0102,04422,Architectural Services,,Not yet available
Wakefield MDC,E08000036,31/12/2014,BUSINESS,Finance,J,TRIBAL EDUCATION LTD,Redacted,Not yet available,Not yet available,Not yet available,14/10/2014,22612857,1,10350.00,Nil,Professional Fees (PVE - External),Capital,ICT,CAT11,ICT - Software,SUBCAT1108,20703,Computer Systems & Software (Development),,Not yet available
Wakefield MDC,E08000036,31/12/2014,BUSINESS,Finance,J,TRIBAL EDUCATION LTD,Redacted,Not yet available,Not yet available,Not yet available,14/10/2014,22613096,1,-900.00,Nil,Professional Fees (PVE - External),Capital,ICT,CAT11,ICT - Software,SUBCAT1108,20703,Computer Systems & Software (Development),,Not yet available
Wakefield MDC,E08000036,31/12/2014,BUSINESS,Finance,J,TRIBAL EDUCATION LTD,Redacted,Not yet available,Not yet available,Not yet available,14/10/2014,22612856,1,10650.00,Nil,Professional Fees (PVE - External),Capital,ICT,CAT11,ICT - Software,SUBCAT1108,20703,Computer Systems & Software (Development),,Not yet available
Wakefield MDC,E08000036,31/12/2014,BUSINESS,Finance,J,TRIBAL EDUCATION LTD,Redacted,Not yet available,Not yet available,Not yet available,14/10/2014,22613090,1,-1800.00,Nil,Professional Fees (PVE - External),Capital,ICT,CAT11,ICT - Software,SUBCAT1108,20703,Computer Systems & Software (Development),,Not yet available
Wakefield MDC,E08000036,31/12/2014,BUSINESS,Finance,J,IDOX SOFTWARE LTD,Redacted,Not yet available,Not yet available,Not yet available,08/12/2014,22651762,1,950.00,Nil,Professional Fees (PVE - External),Capital,ICT,CAT11,ICT - Software,SUBCAT1108,20703,Computer Systems & Software (Development),,Not yet available
Wakefield MDC,E08000036,31/12/2014,BUSINESS,Finance,J,OPTEVIA LTD,Redacted,Not yet available,Not yet available,Not yet available,22/10/2014,22624798,1,4675.00,Nil,Professional Fees (PVE - External),Capital,ICT,CAT11,ICT - Software,SUBCAT1108,20620,Computer Consultants,,Not yet available
Wakefield MDC,E08000036,31/12/2014,BUSINESS,Finance,J,OPTEVIA LTD,Redacted,Not yet available,Not yet available,Not yet available,22/10/2014,22624803,1,20000.00,Nil,Professional Fees (PVE - External),Capital,ICT,CAT11,ICT - Software,SUBCAT1108,20620,Computer Consultants,,Not yet available
Wakefield MDC,E08000036,31/12/2014,BUSINESS,Finance,J,OPTEVIA LTD,Redacted,Not yet available,Not yet available,Not yet available,25/11/2014,22648906,1,40800.00,Nil,Professional Fees (PVE - External),Capital,ICT,CAT11,ICT - Software,SUBCAT1108,20620,Computer Consultants,,Not yet available
Wakefield MDC,E08000036,31/12/2014,BUSINESS,Finance,J,OPTEVIA LTD,Redacted,Not yet available,Not yet available,Not yet available,16/12/2014,22667015,1,15725.00,Nil,Professional Fees (PVE - External),Capital,ICT,CAT11,ICT - Software,SUBCAT1108,20620,Computer Consultants,,Not yet available
Wakefield MDC,E08000036,31/12/2014,BUSINESS,Finance,J,D & L WAIN,Redacted,Not yet available,Not yet available,Not yet available,04/11/2014,22628355,1,7095.31,Nil,Grants,Capital,Property & Asset Management,CAT01,Building Services - Misc,SUBCAT0115,11040,Builders,,Not yet available
Wakefield MDC,E08000036,31/12/2014,BUSINESS,Finance,J,DIRECT FABRICATIONS (YORKSHIRE) LTD,Redacted,Not yet available,Not yet available,Not yet available,30/10/2014,22627593,1,1833.44,Nil,Grants,Capital,Property & Asset Management,CAT01,Building Services - Metal,SUBCAT0114,73510,Steel Fabricators & Erectors,,Not yet available
Wakefield MDC,E08000036,31/12/2014,BUSINESS,Finance,J,DIRECT FABRICATIONS (YORKSHIRE) LTD,Redacted,Not yet available,Not yet available,Not yet available,23/12/2014,22606403,1,1157.60,Nil,Grants,Capital,Property & Asset Management,CAT01,Building Services - Metal,SUBCAT0114,73510,Steel Fabricators & Erectors,,Not yet available
Wakefield MDC,E08000036,31/12/2014,BUSINESS,Finance,J,BARRY MOORE BUILDER & JOINER LTD,Redacted,Not yet available,Not yet available,Not yet available,02/10/2014,22606390,1,3728.00,Nil,Grants,Capital,Property & Asset Management,CAT01,Building Services - Joinery,SUBCAT0113,45970,Joiners & Carpenters,,Not yet available
Wakefield MDC,E08000036,31/12/2014,BUSINESS,Finance,J,BARRY MOORE BUILDER & JOINER LTD,Redacted,Not yet available,Not yet available,Not yet available,21/10/2014,22621958,1,4000.00,Nil,Grants,Capital,Property & Asset Management,CAT01,Building Services - Joinery,SUBCAT0113,45970,Joiners & Carpenters,,Not yet available
Wakefield MDC,E08000036,31/12/2014,BUSINESS,Finance,J,POLLOCK LIFTS,Redacted,Not yet available,Not yet available,Not yet available,20/10/2014,22622256,1,12403.13,Nil,Grants,Capital,Adult Services,CAT04,to be classified,SUBCATTBC,73190,Stairlifts - Mnfrs & Installers,,Not yet available
Wakefield MDC,E08000036,31/12/2014,BUSINESS,Finance,J,POLLOCK LIFTS,Redacted,Not yet available,Not yet available,Not yet available,21/10/2014,22621951,1,12076.00,Nil,Grants,Capital,Adult Services,CAT04,to be classified,SUBCATTBC,73190,Stairlifts - Mnfrs & Installers,,Not yet available
Wakefield MDC,E08000036,31/12/2014,BUSINESS,Finance,J,POLLOCK LIFTS,Redacted,Not yet available,Not yet available,Not yet available,23/10/2014,22625439,1,10740.00,Nil,Grants,Capital,Adult Services,CAT04,to be classified,SUBCATTBC,73190,Stairlifts - Mnfrs & Installers,,Not yet available
Wakefield MDC,E08000036,31/12/2014,BUSINESS,Finance,J,POLLOCK LIFTS,Redacted,Not yet available,Not yet available,Not yet available,28/10/2014,22625592,1,4416.69,Nil,Grants,Capital,Adult Services,CAT04,to be classified,SUBCATTBC,73190,Stairlifts - Mnfrs & Installers,,Not yet available
Wakefield MDC,E08000036,31/12/2014,BUSINESS,Finance,J,BUTTERFIELD BUILDERS,Redacted,Not yet available,Not yet available,Not yet available,01/10/2014,22605474,1,3500.00,Nil,Grants,Capital,Property & Asset Management,CAT01,Building Services - Misc,SUBCAT0115,11040,Builders,,Not yet available
Wakefield MDC,E08000036,31/12/2014,BUSINESS,Finance,J,BUTTERFIELD BUILDERS,Redacted,Not yet available,Not yet available,Not yet available,02/10/2014,22607442,1,4859.28,Nil,Grants,Capital,Property & Asset Management,CAT01,Building Services - Misc,SUBCAT0115,11040,Builders,,Not yet available
Wakefield MDC,E08000036,31/12/2014,BUSINESS,Finance,J,BUTTERFIELD BUILDERS,Redacted,Not yet available,Not yet available,Not yet available,21/10/2014,22622603,1,4000.00,Nil,Grants,Capital,Property & Asset Management,CAT01,Building Services - Misc,SUBCAT0115,11040,Builders,,Not yet available
Wakefield MDC,E08000036,31/12/2014,BUSINESS,Finance,J,KENDRICK BUILDING CONTRACTORS,Redacted,Not yet available,Not yet available,Not yet available,13/10/2014,22612531,1,8811.19,Nil,Grants,Capital,Property & Asset Management,CAT01,Building Services - Misc,SUBCAT0115,11040,Builders,,Not yet available
Wakefield MDC,E08000036,31/12/2014,BUSINESS,Finance,J,RSD BUILDINGS LTD,Redacted,Not yet available,Not yet available,Not yet available,01/10/2014,22605667,1,14421.91,Nil,Grants,Capital,Property & Asset Management,CAT01,Building Services - Misc,SUBCAT0115,11040,Builders,,Not yet available
Wakefield MDC,E08000036,31/12/2014,BUSINESS,Finance,J,CAULTON CONSTRUCTION,Redacted,Not yet available,Not yet available,Not yet available,20/10/2014,22614228,1,3699.21,Nil,Grants,Capital,Property & Asset Management,CAT01,Construction,SUBCAT0130,21555,Construction Contractors - General,,Not yet available
Wakefield MDC,E08000036,31/12/2014,BUSINESS,Finance,J,ABM BUILDERS & SONS LTD,Redacted,Not yet available,Not yet available,Not yet available,06/10/2014,22607987,1,2459.19,Nil,Grants,Capital,Property & Asset Management,CAT01,Building Services - Misc,SUBCAT0115,11040,Builders,,Not yet available
Wakefield MDC,E08000036,31/12/2014,BUSINESS,Finance,J,ABM BUILDERS & SONS LTD,Redacted,Not yet available,Not yet available,Not yet available,23/10/2014,22625527,1,7500.00,Nil,Grants,Capital,Property & Asset Management,CAT01,Building Services - Misc,SUBCAT0115,11040,Builders,,Not yet available
Wakefield MDC,E08000036,31/12/2014,BUSINESS,Finance,J,STONE & COPLEY,Redacted,Not yet available,Not yet available,Not yet available,22/10/2014,22623782,1,5000.00,Nil,Grants,Capital,Property & Asset Management,CAT01,Building Services - Misc,SUBCAT0115,11040,Builders,,Not yet available
Wakefield MDC,E08000036,31/12/2014,BUSINESS,Finance,J,B & K PASSMORE LTD T/A MOREABILITY,Redacted,Not yet available,Not yet available,Not yet available,01/10/2014,22605491,1,6393.48,Nil,Grants,Capital,Adult Services,CAT04,to be classified,SUBCATTBC,25820,Disability & Special Needs - Services,,Not yet available
Wakefield MDC,E08000036,31/12/2014,BUSINESS,Finance,J,B & K PASSMORE LTD T/A MOREABILITY,Redacted,Not yet available,Not yet available,Not yet available,04/11/2014,22627683,1,8500.00,Nil,Grants,Capital,Adult Services,CAT04,to be classified,SUBCATTBC,25820,Disability & Special Needs - Services,,Not yet available
Wakefield MDC,E08000036,31/12/2014,BUSINESS,Finance,J,A STIRLING & K GREENWAY,Redacted,Not yet available,Not yet available,Not yet available,20/10/2014,22622349,1,4593.28,Nil,Grants,Capital,Property & Asset Management,CAT01,Building Services - Misc,SUBCAT0115,11040,Builders,,Not yet available
Wakefield MDC,E08000036,31/12/2014,BUSINESS,Finance,J,A STIRLING & K GREENWAY,Redacted,Not yet available,Not yet available,Not yet available,21/10/2014,22614086,1,6000.00,Nil,Grants,Capital,Property & Asset Management,CAT01,Building Services - Misc,SUBCAT0115,11040,Builders,,Not yet available
Wakefield MDC,E08000036,31/12/2014,BUSINESS,Finance,J,A STIRLING & K GREENWAY,Redacted,Not yet available,Not yet available,Not yet available,21/10/2014,22621956,1,2131.20,Nil,Grants,Capital,Property & Asset Management,CAT01,Building Services - Misc,SUBCAT0115,11040,Builders,,Not yet available
Wakefield MDC,E08000036,31/12/2014,BUSINESS,Finance,J,A STIRLING & K GREENWAY,Redacted,Not yet available,Not yet available,Not yet available,04/11/2014,22628358,1,6523.80,Nil,Grants,Capital,Property & Asset Management,CAT01,Building Services - Misc,SUBCAT0115,11040,Builders,,Not yet available
Wakefield MDC,E08000036,31/12/2014,BUSINESS,Finance,J,MEADOWSPRITE LTD T/A BFP,Redacted,Not yet available,Not yet available,Not yet available,08/10/2014,22609411,1,1955.20,Nil,Grants,Capital,Property & Asset Management,CAT01,Building Services - Fencing,SUBCAT0108,34660,Fencing Contractors,,Not yet available
Wakefield MDC,E08000036,31/12/2014,BUSINESS,Finance,J,HANDICARE ACCESSIBILITY LTD,Redacted,Not yet available,Not yet available,Not yet available,02/10/2014,22604777,1,1815.00,Nil,Grants,Capital,Adult Services,CAT04,to be classified,SUBCATTBC,73190,Stairlifts - Mnfrs & Installers,,Not yet available
Wakefield MDC,E08000036,31/12/2014,BUSINESS,Finance,J,HANDICARE ACCESSIBILITY LTD,Redacted,Not yet available,Not yet available,Not yet available,02/10/2014,22604800,1,1994.00,Nil,Grants,Capital,Adult Services,CAT04,to be classified,SUBCATTBC,73190,Stairlifts - Mnfrs & Installers,,Not yet available
Wakefield MDC,E08000036,31/12/2014,BUSINESS,Finance,J,HANDICARE ACCESSIBILITY LTD,Redacted,Not yet available,Not yet available,Not yet available,03/10/2014,22604801,1,1700.00,Nil,Grants,Capital,Adult Services,CAT04,to be classified,SUBCATTBC,73190,Stairlifts - Mnfrs & Installers,,Not yet available
Wakefield MDC,E08000036,31/12/2014,BUSINESS,Finance,J,HANDICARE ACCESSIBILITY LTD,Redacted,Not yet available,Not yet available,Not yet available,03/10/2014,22604802,1,1712.00,Nil,Grants,Capital,Adult Services,CAT04,to be classified,SUBCATTBC,73190,Stairlifts - Mnfrs & Installers,,Not yet available
Wakefield MDC,E08000036,31/12/2014,BUSINESS,Finance,J,HANDICARE ACCESSIBILITY LTD,Redacted,Not yet available,Not yet available,Not yet available,14/10/2014,22609727,1,3350.00,Nil,Grants,Capital,Adult Services,CAT04,to be classified,SUBCATTBC,73190,Stairlifts - Mnfrs & Installers,,Not yet available
Wakefield MDC,E08000036,31/12/2014,BUSINESS,Finance,J,HANDICARE ACCESSIBILITY LTD,Redacted,Not yet available,Not yet available,Not yet available,14/10/2014,22609753,1,3855.00,Nil,Grants,Capital,Adult Services,CAT04,to be classified,SUBCATTBC,73190,Stairlifts - Mnfrs & Installers,,Not yet available
Wakefield MDC,E08000036,31/12/2014,BUSINESS,Finance,J,HANDICARE ACCESSIBILITY LTD,Redacted,Not yet available,Not yet available,Not yet available,14/10/2014,22609771,1,1440.00,Nil,Grants,Capital,Adult Services,CAT04,to be classified,SUBCATTBC,73190,Stairlifts - Mnfrs & Installers,,Not yet available
Wakefield MDC,E08000036,31/12/2014,BUSINESS,Finance,J,HANDICARE ACCESSIBILITY LTD,Redacted,Not yet available,Not yet available,Not yet available,14/10/2014,22612810,1,3191.65,Nil,Grants,Capital,Adult Services,CAT04,to be classified,SUBCATTBC,73190,Stairlifts - Mnfrs & Installers,,Not yet available
Wakefield MDC,E08000036,31/12/2014,BUSINESS,Finance,J,HANDICARE ACCESSIBILITY LTD,Redacted,Not yet available,Not yet available,Not yet available,16/10/2014,22609721,1,3040.00,Nil,Grants,Capital,Adult Services,CAT04,to be classified,SUBCATTBC,73190,Stairlifts - Mnfrs & Installers,,Not yet available
Wakefield MDC,E08000036,31/12/2014,BUSINESS,Finance,J,HANDICARE ACCESSIBILITY LTD,Redacted,Not yet available,Not yet available,Not yet available,16/10/2014,22609736,1,1815.00,Nil,Grants,Capital,Adult Services,CAT04,to be classified,SUBCATTBC,73190,Stairlifts - Mnfrs & Installers,,Not yet available
Wakefield MDC,E08000036,31/12/2014,BUSINESS,Finance,J,HANDICARE ACCESSIBILITY LTD,Redacted,Not yet available,Not yet available,Not yet available,16/10/2014,22609807,1,1870.00,Nil,Grants,Capital,Adult Services,CAT04,to be classified,SUBCATTBC,73190,Stairlifts - Mnfrs & Installers,,Not yet available
Wakefield MDC,E08000036,31/12/2014,BUSINESS,Finance,J,HANDICARE ACCESSIBILITY LTD,Redacted,Not yet available,Not yet available,Not yet available,16/10/2014,22612820,1,3210.00,Nil,Grants,Capital,Adult Services,CAT04,to be classified,SUBCATTBC,73190,Stairlifts - Mnfrs & Installers,,Not yet available
Wakefield MDC,E08000036,31/12/2014,BUSINESS,Finance,J,HANDICARE ACCESSIBILITY LTD,Redacted,Not yet available,Not yet available,Not yet available,16/10/2014,22612824,1,1440.00,Nil,Grants,Capital,Adult Services,CAT04,to be classified,SUBCATTBC,73190,Stairlifts - Mnfrs & Installers,,Not yet available
Wakefield MDC,E08000036,31/12/2014,BUSINESS,Finance,J,HANDICARE ACCESSIBILITY LTD,Redacted,Not yet available,Not yet available,Not yet available,17/10/2014,22609732,1,1288.00,Nil,Grants,Capital,Adult Services,CAT04,to be classified,SUBCATTBC,73190,Stairlifts - Mnfrs & Installers,,Not yet available
Wakefield MDC,E08000036,31/12/2014,BUSINESS,Finance,J,HANDICARE ACCESSIBILITY LTD,Redacted,Not yet available,Not yet available,Not yet available,21/10/2014,22612812,1,5007.00,Nil,Grants,Capital,Adult Services,CAT04,to be classified,SUBCATTBC,73190,Stairlifts - Mnfrs & Installers,,Not yet available
Wakefield MDC,E08000036,31/12/2014,BUSINESS,Finance,J,HANDICARE ACCESSIBILITY LTD,Redacted,Not yet available,Not yet available,Not yet available,24/10/2014,22612816,1,1763.00,Nil,Grants,Capital,Adult Services,CAT04,to be classified,SUBCATTBC,73190,Stairlifts - Mnfrs & Installers,,Not yet available
Wakefield MDC,E08000036,31/12/2014,BUSINESS,Finance,J,HANDICARE ACCESSIBILITY LTD,Redacted,Not yet available,Not yet available,Not yet available,28/10/2014,22627555,1,1515.00,Nil,Grants,Capital,Adult Services,CAT04,to be classified,SUBCATTBC,73190,Stairlifts - Mnfrs & Installers,,Not yet available
Wakefield MDC,E08000036,31/12/2014,BUSINESS,Finance,J,HANDICARE ACCESSIBILITY LTD,Redacted,Not yet available,Not yet available,Not yet available,30/10/2014,22627602,1,3240.00,Nil,Grants,Capital,Adult Services,CAT04,to be classified,SUBCATTBC,73190,Stairlifts - Mnfrs & Installers,,Not yet available
Wakefield MDC,E08000036,31/12/2014,BUSINESS,Finance,J,HANDICARE ACCESSIBILITY LTD,Redacted,Not yet available,Not yet available,Not yet available,30/10/2014,22627588,1,1748.00,Nil,Grants,Capital,Adult Services,CAT04,to be classified,SUBCATTBC,73190,Stairlifts - Mnfrs & Installers,,Not yet available
Wakefield MDC,E08000036,31/12/2014,BUSINESS,Finance,J,HANDICARE ACCESSIBILITY LTD,Redacted,Not yet available,Not yet available,Not yet available,30/10/2014,22627597,1,1625.00,Nil,Grants,Capital,Adult Services,CAT04,to be classified,SUBCATTBC,73190,Stairlifts - Mnfrs & Installers,,Not yet available
Wakefield MDC,E08000036,31/12/2014,BUSINESS,Finance,J,HANDICARE ACCESSIBILITY LTD,Redacted,Not yet available,Not yet available,Not yet available,04/11/2014,22627601,1,1576.00,Nil,Grants,Capital,Adult Services,CAT04,to be classified,SUBCATTBC,73190,Stairlifts - Mnfrs & Installers,,Not yet available
Wakefield MDC,E08000036,31/12/2014,BUSINESS,Finance,J,HANDICARE ACCESSIBILITY LTD,Redacted,Not yet available,Not yet available,Not yet available,10/11/2014,22633170,1,1960.00,Nil,Grants,Capital,Adult Services,CAT04,to be classified,SUBCATTBC,73190,Stairlifts - Mnfrs & Installers,,Not yet available
Wakefield MDC,E08000036,31/12/2014,BUSINESS,Finance,J,HANDICARE ACCESSIBILITY LTD,Redacted,Not yet available,Not yet available,Not yet available,11/11/2014,22629854,1,1515.00,Nil,Grants,Capital,Adult Services,CAT04,to be classified,SUBCATTBC,73190,Stairlifts - Mnfrs & Installers,,Not yet available
Wakefield MDC,E08000036,31/12/2014,BUSINESS,Finance,J,HANDICARE ACCESSIBILITY LTD,Redacted,Not yet available,Not yet available,Not yet available,12/11/2014,22604556,1,3240.00,Nil,Grants,Capital,Adult Services,CAT04,to be classified,SUBCATTBC,73190,Stairlifts - Mnfrs & Installers,,Not yet available
Wakefield MDC,E08000036,31/12/2014,BUSINESS,Finance,J,HANDICARE ACCESSIBILITY LTD,Redacted,Not yet available,Not yet available,Not yet available,12/11/2014,22633546,1,1500.00,Nil,Grants,Capital,Adult Services,CAT04,to be classified,SUBCATTBC,73190,Stairlifts - Mnfrs & Installers,,Not yet available
Wakefield MDC,E08000036,31/12/2014,BUSINESS,Finance,J,HANDICARE ACCESSIBILITY LTD,Redacted,Not yet available,Not yet available,Not yet available,13/11/2014,22633171,1,1515.00,Nil,Grants,Capital,Adult Services,CAT04,to be classified,SUBCATTBC,73190,Stairlifts - Mnfrs & Installers,,Not yet available
Wakefield MDC,E08000036,31/12/2014,BUSINESS,Finance,J,HANDICARE ACCESSIBILITY LTD,Redacted,Not yet available,Not yet available,Not yet available,13/11/2014,22633169,1,1988.00,Nil,Grants,Capital,Adult Services,CAT04,to be classified,SUBCATTBC,73190,Stairlifts - Mnfrs & Installers,,Not yet available
Wakefield MDC,E08000036,31/12/2014,BUSINESS,Finance,J,HANDICARE ACCESSIBILITY LTD,Redacted,Not yet available,Not yet available,Not yet available,13/11/2014,22633544,1,2328.50,Nil,Grants,Capital,Adult Services,CAT04,to be classified,SUBCATTBC,73190,Stairlifts - Mnfrs & Installers,,Not yet available
Wakefield MDC,E08000036,31/12/2014,BUSINESS,Finance,J,HANDICARE ACCESSIBILITY LTD,Redacted,Not yet available,Not yet available,Not yet available,20/11/2014,22643973,1,1885.00,Nil,Grants,Capital,Adult Services,CAT04,to be classified,SUBCATTBC,73190,Stairlifts - Mnfrs & Installers,,Not yet available
Wakefield MDC,E08000036,31/12/2014,BUSINESS,Finance,J,HANDICARE ACCESSIBILITY LTD,Redacted,Not yet available,Not yet available,Not yet available,25/11/2014,22648964,1,2085.00,Nil,Grants,Capital,Adult Services,CAT04,to be classified,SUBCATTBC,73190,Stairlifts - Mnfrs & Installers,,Not yet available
Wakefield MDC,E08000036,31/12/2014,BUSINESS,Finance,J,HANDICARE ACCESSIBILITY LTD,Redacted,Not yet available,Not yet available,Not yet available,27/11/2014,22643979,1,1938.00,Nil,Grants,Capital,Adult Services,CAT04,to be classified,SUBCATTBC,73190,Stairlifts - Mnfrs & Installers,,Not yet available
Wakefield MDC,E08000036,31/12/2014,BUSINESS,Finance,J,HANDICARE ACCESSIBILITY LTD,Redacted,Not yet available,Not yet available,Not yet available,27/11/2014,22629852,1,1985.00,Nil,Grants,Capital,Adult Services,CAT04,to be classified,SUBCATTBC,73190,Stairlifts - Mnfrs & Installers,,Not yet available
Wakefield MDC,E08000036,31/12/2014,BUSINESS,Finance,J,HANDICARE ACCESSIBILITY LTD,Redacted,Not yet available,Not yet available,Not yet available,01/12/2014,22648783,1,3415.00,Nil,Grants,Capital,Adult Services,CAT04,to be classified,SUBCATTBC,73190,Stairlifts - Mnfrs & Installers,,Not yet available
Wakefield MDC,E08000036,31/12/2014,BUSINESS,Finance,J,HANDICARE ACCESSIBILITY LTD,Redacted,Not yet available,Not yet available,Not yet available,04/12/2014,22651848,1,1578.00,Nil,Grants,Capital,Adult Services,CAT04,to be classified,SUBCATTBC,73190,Stairlifts - Mnfrs & Installers,,Not yet available
Wakefield MDC,E08000036,31/12/2014,BUSINESS,Finance,J,HANDICARE ACCESSIBILITY LTD,Redacted,Not yet available,Not yet available,Not yet available,04/12/2014,22649423,1,1890.00,Nil,Grants,Capital,Adult Services,CAT04,to be classified,SUBCATTBC,73190,Stairlifts - Mnfrs & Installers,,Not yet available
Wakefield MDC,E08000036,31/12/2014,BUSINESS,Finance,J,HANDICARE ACCESSIBILITY LTD,Redacted,Not yet available,Not yet available,Not yet available,12/12/2014,22651671,1,1750.00,Nil,Grants,Capital,Adult Services,CAT04,to be classified,SUBCATTBC,73190,Stairlifts - Mnfrs & Installers,,Not yet available
Wakefield MDC,E08000036,31/12/2014,BUSINESS,Finance,J,HANDICARE ACCESSIBILITY LTD,Redacted,Not yet available,Not yet available,Not yet available,16/12/2014,22651660,1,1763.00,Nil,Grants,Capital,Adult Services,CAT04,to be classified,SUBCATTBC,73190,Stairlifts - Mnfrs & Installers,,Not yet available
Wakefield MDC,E08000036,31/12/2014,BUSINESS,Finance,J,NORTHERN INSTALLATION SERVICES LTD,Redacted,Not yet available,Not yet available,Not yet available,09/10/2014,22605965,1,1775.00,Nil,Grants,Capital,Adult Services,CAT04,to be classified,SUBCATTBC,73190,Stairlifts - Mnfrs & Installers,,Not yet available
Wakefield MDC,E08000036,31/12/2014,BUSINESS,Finance,J,NORTHERN INSTALLATION SERVICES LTD,Redacted,Not yet available,Not yet available,Not yet available,23/10/2014,22610345,1,6164.00,Nil,Grants,Capital,Adult Services,CAT04,to be classified,SUBCATTBC,73190,Stairlifts - Mnfrs & Installers,,Not yet available
Wakefield MDC,E08000036,31/12/2014,BUSINESS,Finance,J,NORTHERN INSTALLATION SERVICES LTD,Redacted,Not yet available,Not yet available,Not yet available,23/10/2014,22603525,1,4404.00,Nil,Grants,Capital,Adult Services,CAT04,to be classified,SUBCATTBC,73190,Stairlifts - Mnfrs & Installers,,Not yet available
Wakefield MDC,E08000036,31/12/2014,BUSINESS,Finance,J,NORTHERN INSTALLATION SERVICES LTD,Redacted,Not yet available,Not yet available,Not yet available,23/10/2014,22610343,1,1820.00,Nil,Grants,Capital,Adult Services,CAT04,to be classified,SUBCATTBC,73190,Stairlifts - Mnfrs & Installers,,Not yet available
Wakefield MDC,E08000036,31/12/2014,BUSINESS,Finance,J,NORTHERN INSTALLATION SERVICES LTD,Redacted,Not yet available,Not yet available,Not yet available,06/11/2014,22628508,1,4794.00,Nil,Grants,Capital,Adult Services,CAT04,to be classified,SUBCATTBC,73190,Stairlifts - Mnfrs & Installers,,Not yet available
Wakefield MDC,E08000036,31/12/2014,BUSINESS,Finance,J,NORTHERN INSTALLATION SERVICES LTD,Redacted,Not yet available,Not yet available,Not yet available,24/11/2014,22642636,1,4529.00,Nil,Grants,Capital,Adult Services,CAT04,to be classified,SUBCATTBC,73190,Stairlifts - Mnfrs & Installers,,Not yet available
Wakefield MDC,E08000036,31/12/2014,BUSINESS,Finance,J,NORTHERN INSTALLATION SERVICES LTD,Redacted,Not yet available,Not yet available,Not yet available,23/12/2014,22670951,1,4524.00,Nil,Grants,Capital,Adult Services,CAT04,to be classified,SUBCATTBC,73190,Stairlifts - Mnfrs & Installers,,Not yet available
Wakefield MDC,E08000036,31/12/2014,BUSINESS,Finance,J,K & M HOMES WAKEFIELD LTD,Redacted,Not yet available,Not yet available,Not yet available,02/10/2014,22607443,1,2500.00,Nil,Grants,Capital,Property & Asset Management,CAT01,Building Services - Misc,SUBCAT0115,11040,Builders,,Not yet available
Wakefield MDC,E08000036,31/12/2014,BUSINESS,Finance,J,K & M HOMES WAKEFIELD LTD,Redacted,Not yet available,Not yet available,Not yet available,06/10/2014,22607988,1,2640.32,Nil,Grants,Capital,Property & Asset Management,CAT01,Building Services - Misc,SUBCAT0115,11040,Builders,,Not yet available
Wakefield MDC,E08000036,31/12/2014,BUSINESS,Finance,J,K & M HOMES WAKEFIELD LTD,Redacted,Not yet available,Not yet available,Not yet available,04/11/2014,22627686,1,5605.28,Nil,Grants,Capital,Property & Asset Management,CAT01,Building Services - Misc,SUBCAT0115,11040,Builders,,Not yet available
Wakefield MDC,E08000036,31/12/2014,BUSINESS,Finance,J,D LODGE CO,Redacted,Not yet available,Not yet available,Not yet available,21/10/2014,22622606,1,4000.00,Nil,Grants,Capital,Property & Asset Management,CAT01,Building Services - Misc,SUBCAT0115,11040,Builders,,Not yet available
Wakefield MDC,E08000036,31/12/2014,BUSINESS,Finance,J,IDEAL HYGIENE,Redacted,Not yet available,Not yet available,Not yet available,24/10/2014,22583893,1,1120.00,Nil,Grants,Capital,Property & Asset Management,CAT01,Building Services - Plumbing,SUBCAT0118,06800,Bathroom Equipment & Fittings,,Not yet available
Wakefield MDC,E08000036,31/12/2014,BUSINESS,Finance,J,IDEAL HYGIENE,Redacted,Not yet available,Not yet available,Not yet available,10/11/2014,22633564,1,1180.00,Nil,Grants,Capital,Property & Asset Management,CAT01,Building Services - Plumbing,SUBCAT0118,06800,Bathroom Equipment & Fittings,,Not yet available
Wakefield MDC,E08000036,31/12/2014,BUSINESS,Finance,J,IDEAL HYGIENE,Redacted,Not yet available,Not yet available,Not yet available,27/11/2014,22633563,1,1120.00,Nil,Grants,Capital,Property & Asset Management,CAT01,Building Services - Plumbing,SUBCAT0118,06800,Bathroom Equipment & Fittings,,Not yet available
Wakefield MDC,E08000036,31/12/2014,BUSINESS,Finance,J,WILLIAM ANELAY LTD,Redacted,Not yet available,Not yet available,Not yet available,18/11/2014,22644257,1,5672.72,Nil,Grants,Capital,Property & Asset Management,CAT01,Building Services - Misc,SUBCAT0115,11040,Builders,,Not yet available
Wakefield MDC,E08000036,31/12/2014,BUSINESS,Finance,J,WILLIAM ANELAY LTD,Redacted,Not yet available,Not yet available,Not yet available,18/11/2014,22644257,2,5672.72,Nil,Grants,Capital,Property & Asset Management,CAT01,Building Services - Misc,SUBCAT0115,11040,Builders,,Not yet available
Wakefield MDC,E08000036,31/12/2014,BUSINESS,Finance,J,AQUARELLA,Redacted,Not yet available,Not yet available,Not yet available,13/10/2014,22612533,1,7584.00,Nil,Grants,Capital,Property & Asset Management,CAT01,Building Services - Plumbing,SUBCAT0118,06800,Bathroom Equipment & Fittings,,Not yet available
Wakefield MDC,E08000036,31/12/2014,BUSINESS,Finance,J,DETAILS REDACTED,Redacted,Not yet available,Not yet available,Not yet available,02/10/2014,22607440,1,6839.53,Nil,Grants,Capital,n/a,n/a,n/a,n/a,n/a,n/a,,Not yet available
Wakefield MDC,E08000036,31/12/2014,BUSINESS,Finance,J,PAUL EDDLESTON BUILDER LTD,Redacted,Not yet available,Not yet available,Not yet available,20/10/2014,22613190,1,10275.10,Nil,Grants,Capital,Property & Asset Management,CAT01,Building Services - Misc,SUBCAT0115,11040,Builders,,Not yet available
Wakefield MDC,E08000036,31/12/2014,ADULTS,N/A various,,n/a,Redacted,Not yet available,Not yet available,Not yet available,15/10/2014,,,365495.75,Nil,Service pension contribution (Employers),Revenue,n/a,n/a,n/a,n/a,n/a,n/a,,Not yet available
Wakefield MDC,E08000036,31/12/2014,BUSINESS,N/A various,,n/a,Redacted,Not yet available,Not yet available,Not yet available,15/10/2014,,,512824.77,Nil,Service pension contribution (Employers),Revenue,n/a,n/a,n/a,n/a,n/a,n/a,,Not yet available
Wakefield MDC,E08000036,31/12/2014,CHILDYOU,N/A various,,n/a,Redacted,Not yet available,Not yet available,Not yet available,15/10/2014,,,413953.45,Nil,Service pension contribution (Employers),Revenue,n/a,n/a,n/a,n/a,n/a,n/a,,Not yet available
Wakefield MDC,E08000036,31/12/2014,REGENCULT,N/A various,,n/a,Redacted,Not yet available,Not yet available,Not yet available,15/10/2014,,,521056.81,Nil,Service pension contribution (Employers),Revenue,n/a,n/a,n/a,n/a,n/a,n/a,,Not yet available
Wakefield MDC,E08000036,31/12/2014,ADULTS,N/A various,,n/a,Redacted,Not yet available,Not yet available,Not yet available,15/11/2014,,,332977.73,Nil,Service pension contribution (Employers),Revenue,n/a,n/a,n/a,n/a,n/a,n/a,,Not yet available
Wakefield MDC,E08000036,31/12/2014,BUSINESS,N/A various,,n/a,Redacted,Not yet available,Not yet available,Not yet available,15/11/2014,,,423268.83,Nil,Service pension contribution (Employers),Revenue,n/a,n/a,n/a,n/a,n/a,n/a,,Not yet available
Wakefield MDC,E08000036,31/12/2014,CHILDYOU,N/A various,,n/a,Redacted,Not yet available,Not yet available,Not yet available,15/11/2014,,,381673.80,Nil,Service pension contribution (Employers),Revenue,n/a,n/a,n/a,n/a,n/a,n/a,,Not yet available
Wakefield MDC,E08000036,31/12/2014,REGENCULT,N/A various,,n/a,Redacted,Not yet available,Not yet available,Not yet available,15/11/2014,,,443961.04,Nil,Service pension contribution (Employers),Revenue,n/a,n/a,n/a,n/a,n/a,n/a,,Not yet available
Wakefield MDC,E08000036,31/12/2014,ADULTS,N/A various,,n/a,Redacted,Not yet available,Not yet available,Not yet available,15/12/2014,,,351243.26,Nil,Service pension contribution (Employers),Revenue,n/a,n/a,n/a,n/a,n/a,n/a,,Not yet available
Wakefield MDC,E08000036,31/12/2014,BUSINESS,N/A various,,n/a,Redacted,Not yet available,Not yet available,Not yet available,15/12/2014,,,465426.92,Nil,Service pension contribution (Employers),Revenue,n/a,n/a,n/a,n/a,n/a,n/a,,Not yet available
Wakefield MDC,E08000036,31/12/2014,CHILDYOU,N/A various,,n/a,Redacted,Not yet available,Not yet available,Not yet available,15/12/2014,,,392385.09,Nil,Service pension contribution (Employers),Revenue,n/a,n/a,n/a,n/a,n/a,n/a,,Not yet available
Wakefield MDC,E08000036,31/12/2014,REGENCULT,N/A various,,n/a,Redacted,Not yet available,Not yet available,Not yet available,15/12/2014,,,464330.32,Nil,Service pension contribution (Employers),Revenue,n/a,n/a,n/a,n/a,n/a,n/a,,Not yet available
Wakefield MDC,E08000036,31/12/2014,CHILDYOU,N/A various,,n/a,Redacted,Not yet available,Not yet available,Not yet available,15/10/2014,,,927.54,Nil,Service pension contribution (teachers),Revenue,n/a,n/a,n/a,n/a,n/a,n/a,,Not yet available
Wakefield MDC,E08000036,31/12/2014,CHILDYOU,N/A various,,n/a,Redacted,Not yet available,Not yet available,Not yet available,15/11/2014,,,927.54,Nil,Service pension contribution (teachers),Revenue,n/a,n/a,n/a,n/a,n/a,n/a,,Not yet available
Wakefield MDC,E08000036,31/12/2014,CHILDYOU,N/A various,,n/a,Redacted,Not yet available,Not yet available,Not yet available,15/12/2014,,,927.54,Nil,Service pension contribution (teachers),Revenue,n/a,n/a,n/a,n/a,n/a,n/a,,Not yet available
Wakefield MDC,E08000036,31/12/2014,ADULTS,Adult Social Care,7,MATRIX SCM LTD,Redacted,Not yet available,Not yet available,Not yet available,08/10/2014,170288,63,1292.04,Nil,Agency Staff,Revenue,Business Services,CAT02,Agency,SUBCAT0204,31230,Employment & Recruitment Agencies,,Not yet available
Wakefield MDC,E08000036,31/12/2014,ADULTS,Adult Social Care,7,MATRIX SCM LTD,Redacted,Not yet available,Not yet available,Not yet available,15/10/2014,170289,30,1292.04,Nil,Agency Staff,Revenue,Business Services,CAT02,Agency,SUBCAT0204,31230,Employment & Recruitment Agencies,,Not yet available
Wakefield MDC,E08000036,31/12/2014,ADULTS,Adult Social Care,7,MATRIX SCM LTD,Redacted,Not yet available,Not yet available,Not yet available,22/10/2014,170290,61,1292.04,Nil,Agency Staff,Revenue,Business Services,CAT02,Agency,SUBCAT0204,31230,Employment & Recruitment Agencies,,Not yet available
Wakefield MDC,E08000036,31/12/2014,ADULTS,Adult Social Care,7,MATRIX SCM LTD,Redacted,Not yet available,Not yet available,Not yet available,29/10/2014,170291,101,1292.04,Nil,Agency Staff,Revenue,Business Services,CAT02,Agency,SUBCAT0204,31230,Employment & Recruitment Agencies,,Not yet available
Wakefield MDC,E08000036,31/12/2014,REGENCULT,Environmental and Regulatory Services,M,MATRIX SCM LTD,Redacted,Not yet available,Not yet available,Not yet available,12/11/2014,170293,75,557.57,Nil,Agency Staff,Revenue,Business Services,CAT02,Agency,SUBCAT0204,31230,Employment & Recruitment Agencies,,Not yet available
Wakefield MDC,E08000036,31/12/2014,REGENCULT,Environmental and Regulatory Services,M,MATRIX SCM LTD,Redacted,Not yet available,Not yet available,Not yet available,12/11/2014,170293,10,557.57,Nil,Agency Staff,Revenue,Business Services,CAT02,Agency,SUBCAT0204,31230,Employment & Recruitment Agencies,,Not yet available
Wakefield MDC,E08000036,31/12/2014,REGENCULT,Environmental and Regulatory Services,M,MATRIX SCM LTD,Redacted,Not yet available,Not yet available,Not yet available,12/11/2014,170293,29,557.57,Nil,Agency Staff,Revenue,Business Services,CAT02,Agency,SUBCAT0204,31230,Employment & Recruitment Agencies,,Not yet available
Wakefield MDC,E08000036,31/12/2014,REGENCULT,Environmental and Regulatory Services,M,MATRIX SCM LTD,Redacted,Not yet available,Not yet available,Not yet available,03/12/2014,170296,27,557.57,Nil,Agency Staff,Revenue,Business Services,CAT02,Agency,SUBCAT0204,31230,Employment & Recruitment Agencies,,Not yet available
Wakefield MDC,E08000036,31/12/2014,REGENCULT,Environmental and Regulatory Services,M,MATRIX SCM LTD,Redacted,Not yet available,Not yet available,Not yet available,23/12/2014,170299,24,557.57,Nil,Agency Staff,Revenue,Business Services,CAT02,Agency,SUBCAT0204,31230,Employment & Recruitment Agencies,,Not yet available
Wakefield MDC,E08000036,31/12/2014,BUSINESS,Net (Surplus) / Deficit of Trading Operations,A,MATRIX SCM LTD,Redacted,Not yet available,Not yet available,Not yet available,08/10/2014,170288,96,552.05,Nil,Agency Staff,Revenue,Business Services,CAT02,Agency,SUBCAT0204,31230,Employment & Recruitment Agencies,,Not yet available
Wakefield MDC,E08000036,31/12/2014,BUSINESS,Net (Surplus) / Deficit of Trading Operations,A,MATRIX SCM LTD,Redacted,Not yet available,Not yet available,Not yet available,15/10/2014,170289,65,543.00,Nil,Agency Staff,Revenue,Business Services,CAT02,Agency,SUBCAT0204,31230,Employment & Recruitment Agencies,,Not yet available
Wakefield MDC,E08000036,31/12/2014,BUSINESS,Net (Surplus) / Deficit of Trading Operations,A,MATRIX SCM LTD,Redacted,Not yet available,Not yet available,Not yet available,22/10/2014,170290,47,543.00,Nil,Agency Staff,Revenue,Business Services,CAT02,Agency,SUBCAT0204,31230,Employment & Recruitment Agencies,,Not yet available
Wakefield MDC,E08000036,31/12/2014,BUSINESS,Net (Surplus) / Deficit of Trading Operations,A,MATRIX SCM LTD,Redacted,Not yet available,Not yet available,Not yet available,29/10/2014,170291,106,543.00,Nil,Agency Staff,Revenue,Business Services,CAT02,Agency,SUBCAT0204,31230,Employment & Recruitment Agencies,,Not yet available
Wakefield MDC,E08000036,31/12/2014,BUSINESS,Net (Surplus) / Deficit of Trading Operations,A,MATRIX SCM LTD,Redacted,Not yet available,Not yet available,Not yet available,12/11/2014,170293,135,543.00,Nil,Agency Staff,Revenue,Business Services,CAT02,Agency,SUBCAT0204,31230,Employment & Recruitment Agencies,,Not yet available
Wakefield MDC,E08000036,31/12/2014,BUSINESS,Net (Surplus) / Deficit of Trading Operations,A,MATRIX SCM LTD,Redacted,Not yet available,Not yet available,Not yet available,26/11/2014,170295,50,543.00,Nil,Agency Staff,Revenue,Business Services,CAT02,Agency,SUBCAT0204,31230,Employment & Recruitment Agencies,,Not yet available
Wakefield MDC,E08000036,31/12/2014,BUSINESS,Net (Surplus) / Deficit of Trading Operations,A,MATRIX SCM LTD,Redacted,Not yet available,Not yet available,Not yet available,23/12/2014,170299,73,543.00,Nil,Agency Staff,Revenue,Business Services,CAT02,Agency,SUBCAT0204,31230,Employment & Recruitment Agencies,,Not yet available
Wakefield MDC,E08000036,31/12/2014,ADULTS,Adult Social Care,7,MATRIX SCM LTD,Redacted,Not yet available,Not yet available,Not yet available,08/10/2014,170288,100,1240.28,Nil,Agency Staff,Revenue,Business Services,CAT02,Agency,SUBCAT0204,31230,Employment & Recruitment Agencies,,Not yet available
Wakefield MDC,E08000036,31/12/2014,ADULTS,Adult Social Care,7,MATRIX SCM LTD,Redacted,Not yet available,Not yet available,Not yet available,15/10/2014,170289,80,885.90,Nil,Agency Staff,Revenue,Business Services,CAT02,Agency,SUBCAT0204,31230,Employment & Recruitment Agencies,,Not yet available
Wakefield MDC,E08000036,31/12/2014,ADULTS,Adult Social Care,7,MATRIX SCM LTD,Redacted,Not yet available,Not yet available,Not yet available,22/10/2014,170290,51,1048.33,Nil,Agency Staff,Revenue,Business Services,CAT02,Agency,SUBCAT0204,31230,Employment & Recruitment Agencies,,Not yet available
Wakefield MDC,E08000036,31/12/2014,ADULTS,Adult Social Care,7,MATRIX SCM LTD,Redacted,Not yet available,Not yet available,Not yet available,29/10/2014,170291,90,1004.03,Nil,Agency Staff,Revenue,Business Services,CAT02,Agency,SUBCAT0204,31230,Employment & Recruitment Agencies,,Not yet available
Wakefield MDC,E08000036,31/12/2014,ADULTS,Adult Social Care,7,MATRIX SCM LTD,Redacted,Not yet available,Not yet available,Not yet available,05/11/2014,170292,69,1240.28,Nil,Agency Staff,Revenue,Business Services,CAT02,Agency,SUBCAT0204,31230,Employment & Recruitment Agencies,,Not yet available
Wakefield MDC,E08000036,31/12/2014,REGENCULT,Highways & Transport Services,5,HORWICH LTD,Redacted,Not yet available,Not yet available,Not yet available,17/10/2014,22614140,1,1709.50,Nil,Agency Staff,Revenue,Highways,CAT07,Highways Schemes,SUBCAT0702,65200,Road Construction Contractors,,Not yet available
Wakefield MDC,E08000036,31/12/2014,REGENCULT,Highways & Transport Services,5,HORWICH LTD,Redacted,Not yet available,Not yet available,Not yet available,23/10/2014,22624948,1,1761.50,Nil,Agency Staff,Revenue,Highways,CAT07,Highways Schemes,SUBCAT0702,65200,Road Construction Contractors,,Not yet available
Wakefield MDC,E08000036,31/12/2014,REGENCULT,Highways & Transport Services,5,HORWICH LTD,Redacted,Not yet available,Not yet available,Not yet available,03/11/2014,22629018,1,1632.50,Nil,Agency Staff,Revenue,Highways,CAT07,Highways Schemes,SUBCAT0702,65200,Road Construction Contractors,,Not yet available
Wakefield MDC,E08000036,31/12/2014,REGENCULT,Highways & Transport Services,5,HORWICH LTD,Redacted,Not yet available,Not yet available,Not yet available,05/11/2014,22630941,1,1786.50,Nil,Agency Staff,Revenue,Highways,CAT07,Highways Schemes,SUBCAT0702,65200,Road Construction Contractors,,Not yet available
Wakefield MDC,E08000036,31/12/2014,REGENCULT,Highways & Transport Services,5,HORWICH LTD,Redacted,Not yet available,Not yet available,Not yet available,17/11/2014,22642878,1,1833.30,Nil,Agency Staff,Revenue,Highways,CAT07,Highways Schemes,SUBCAT0702,65200,Road Construction Contractors,,Not yet available
Wakefield MDC,E08000036,31/12/2014,REGENCULT,Highways & Transport Services,5,HORWICH LTD,Redacted,Not yet available,Not yet available,Not yet available,24/11/2014,22647385,1,1850.00,Nil,Agency Staff,Revenue,Highways,CAT07,Highways Schemes,SUBCAT0702,65200,Road Construction Contractors,,Not yet available
Wakefield MDC,E08000036,31/12/2014,REGENCULT,Highways & Transport Services,5,HORWICH LTD,Redacted,Not yet available,Not yet available,Not yet available,27/11/2014,22649433,1,1838.50,Nil,Agency Staff,Revenue,Highways,CAT07,Highways Schemes,SUBCAT0702,65200,Road Construction Contractors,,Not yet available
Wakefield MDC,E08000036,31/12/2014,REGENCULT,Highways & Transport Services,5,HORWICH LTD,Redacted,Not yet available,Not yet available,Not yet available,03/12/2014,22653826,1,1819.25,Nil,Agency Staff,Revenue,Highways,CAT07,Highways Schemes,SUBCAT0702,65200,Road Construction Contractors,,Not yet available
Wakefield MDC,E08000036,31/12/2014,REGENCULT,Highways & Transport Services,5,HORWICH LTD,Redacted,Not yet available,Not yet available,Not yet available,15/12/2014,22665585,1,1734.50,Nil,Agency Staff,Revenue,Highways,CAT07,Highways Schemes,SUBCAT0702,65200,Road Construction Contractors,,Not yet available
Wakefield MDC,E08000036,31/12/2014,REGENCULT,Highways & Transport Services,5,HORWICH LTD,Redacted,Not yet available,Not yet available,Not yet available,22/12/2014,22670870,1,2156.13,Nil,Agency Staff,Revenue,Highways,CAT07,Highways Schemes,SUBCAT0702,65200,Road Construction Contractors,,Not yet available
Wakefield MDC,E08000036,31/12/2014,REGENCULT,Highways & Transport Services,5,KINGFISHER CONSTRUCTION (WAKEFIELD) LTD,Redacted,Not yet available,Not yet available,Not yet available,06/10/2014,22607706,1,934.20,Nil,Agency Staff,Revenue,Property & Asset Management,CAT01,Construction,SUBCAT0130,21555,Construction Contractors - General,,Not yet available
Wakefield MDC,E08000036,31/12/2014,REGENCULT,Highways & Transport Services,5,KINGFISHER CONSTRUCTION (WAKEFIELD) LTD,Redacted,Not yet available,Not yet available,Not yet available,13/10/2014,22612204,1,934.20,Nil,Agency Staff,Revenue,Property & Asset Management,CAT01,Construction,SUBCAT0130,21555,Construction Contractors - General,,Not yet available
Wakefield MDC,E08000036,31/12/2014,REGENCULT,Highways & Transport Services,5,KINGFISHER CONSTRUCTION (WAKEFIELD) LTD,Redacted,Not yet available,Not yet available,Not yet available,21/10/2014,22621960,1,934.20,Nil,Agency Staff,Revenue,Property & Asset Management,CAT01,Construction,SUBCAT0130,21555,Construction Contractors - General,,Not yet available
Wakefield MDC,E08000036,31/12/2014,REGENCULT,Highways & Transport Services,5,KINGFISHER CONSTRUCTION (WAKEFIELD) LTD,Redacted,Not yet available,Not yet available,Not yet available,29/10/2014,22626729,1,1094.85,Nil,Agency Staff,Revenue,Property & Asset Management,CAT01,Construction,SUBCAT0130,21555,Construction Contractors - General,,Not yet available
Wakefield MDC,E08000036,31/12/2014,REGENCULT,Highways & Transport Services,5,KINGFISHER CONSTRUCTION (WAKEFIELD) LTD,Redacted,Not yet available,Not yet available,Not yet available,05/11/2014,22630943,1,934.20,Nil,Agency Staff,Revenue,Property & Asset Management,CAT01,Construction,SUBCAT0130,21555,Construction Contractors - General,,Not yet available
Wakefield MDC,E08000036,31/12/2014,REGENCULT,Highways & Transport Services,5,KINGFISHER CONSTRUCTION (WAKEFIELD) LTD,Redacted,Not yet available,Not yet available,Not yet available,11/11/2014,22632808,1,934.20,Nil,Agency Staff,Revenue,Property & Asset Management,CAT01,Construction,SUBCAT0130,21555,Construction Contractors - General,,Not yet available
Wakefield MDC,E08000036,31/12/2014,REGENCULT,Highways & Transport Services,5,KINGFISHER CONSTRUCTION (WAKEFIELD) LTD,Redacted,Not yet available,Not yet available,Not yet available,20/11/2014,22645994,1,972.00,Nil,Agency Staff,Revenue,Property & Asset Management,CAT01,Construction,SUBCAT0130,21555,Construction Contractors - General,,Not yet available
Wakefield MDC,E08000036,31/12/2014,REGENCULT,Highways & Transport Services,5,KINGFISHER CONSTRUCTION (WAKEFIELD) LTD,Redacted,Not yet available,Not yet available,Not yet available,27/11/2014,22649225,1,934.20,Nil,Agency Staff,Revenue,Property & Asset Management,CAT01,Construction,SUBCAT0130,21555,Construction Contractors - General,,Not yet available
Wakefield MDC,E08000036,31/12/2014,REGENCULT,Highways & Transport Services,5,KINGFISHER CONSTRUCTION (WAKEFIELD) LTD,Redacted,Not yet available,Not yet available,Not yet available,02/12/2014,22651925,,934.20,Nil,Agency Staff,Revenue,Property & Asset Management,CAT01,Construction,SUBCAT0130,21555,Construction Contractors - General,,Not yet available
Wakefield MDC,E08000036,31/12/2014,REGENCULT,Highways & Transport Services,5,KINGFISHER CONSTRUCTION (WAKEFIELD) LTD,Redacted,Not yet available,Not yet available,Not yet available,08/12/2014,22655598,1,934.20,Nil,Agency Staff,Revenue,Property & Asset Management,CAT01,Construction,SUBCAT0130,21555,Construction Contractors - General,,Not yet available
Wakefield MDC,E08000036,31/12/2014,REGENCULT,Highways & Transport Services,5,KINGFISHER CONSTRUCTION (WAKEFIELD) LTD,Redacted,Not yet available,Not yet available,Not yet available,15/12/2014,22665588,1,934.20,Nil,Agency Staff,Revenue,Property & Asset Management,CAT01,Construction,SUBCAT0130,21555,Construction Contractors - General,,Not yet available
Wakefield MDC,E08000036,31/12/2014,REGENCULT,Highways & Transport Services,5,KINGFISHER CONSTRUCTION (WAKEFIELD) LTD,Redacted,Not yet available,Not yet available,Not yet available,23/12/2014,22671895,1,934.20,Nil,Agency Staff,Revenue,Property & Asset Management,CAT01,Construction,SUBCAT0130,21555,Construction Contractors - General,,Not yet available
Wakefield MDC,E08000036,31/12/2014,REGENCULT,Highways & Transport Services,5,MATRIX SCM LTD,Redacted,Not yet available,Not yet available,Not yet available,08/10/2014,170288,65,814.66,Nil,Agency Staff,Revenue,Business Services,CAT02,Agency,SUBCAT0204,31230,Employment & Recruitment Agencies,,Not yet available
Wakefield MDC,E08000036,31/12/2014,REGENCULT,Highways & Transport Services,5,MATRIX SCM LTD,Redacted,Not yet available,Not yet available,Not yet available,15/10/2014,170289,66,701.37,Nil,Agency Staff,Revenue,Business Services,CAT02,Agency,SUBCAT0204,31230,Employment & Recruitment Agencies,,Not yet available
Wakefield MDC,E08000036,31/12/2014,REGENCULT,Highways & Transport Services,5,MATRIX SCM LTD,Redacted,Not yet available,Not yet available,Not yet available,22/10/2014,170290,63,695.97,Nil,Agency Staff,Revenue,Business Services,CAT02,Agency,SUBCAT0204,31230,Employment & Recruitment Agencies,,Not yet available
Wakefield MDC,E08000036,31/12/2014,REGENCULT,Highways & Transport Services,5,MATRIX SCM LTD,Redacted,Not yet available,Not yet available,Not yet available,12/11/2014,170293,12,868.61,Nil,Agency Staff,Revenue,Business Services,CAT02,Agency,SUBCAT0204,31230,Employment & Recruitment Agencies,,Not yet available
Wakefield MDC,E08000036,31/12/2014,REGENCULT,Highways & Transport Services,5,MATRIX SCM LTD,Redacted,Not yet available,Not yet available,Not yet available,12/11/2014,170293,32,841.64,Nil,Agency Staff,Revenue,Business Services,CAT02,Agency,SUBCAT0204,31230,Employment & Recruitment Agencies,,Not yet available
Wakefield MDC,E08000036,31/12/2014,REGENCULT,Highways & Transport Services,5,MATRIX SCM LTD,Redacted,Not yet available,Not yet available,Not yet available,19/11/2014,170294,54,841.62,Nil,Agency Staff,Revenue,Business Services,CAT02,Agency,SUBCAT0204,31230,Employment & Recruitment Agencies,,Not yet available
Wakefield MDC,E08000036,31/12/2014,REGENCULT,Highways & Transport Services,5,MATRIX SCM LTD,Redacted,Not yet available,Not yet available,Not yet available,26/11/2014,170295,5,695.96,Nil,Agency Staff,Revenue,Business Services,CAT02,Agency,SUBCAT0204,31230,Employment & Recruitment Agencies,,Not yet available
Wakefield MDC,E08000036,31/12/2014,REGENCULT,Highways & Transport Services,5,MATRIX SCM LTD,Redacted,Not yet available,Not yet available,Not yet available,26/11/2014,170295,3,782.30,Nil,Agency Staff,Revenue,Business Services,CAT02,Agency,SUBCAT0204,31230,Employment & Recruitment Agencies,,Not yet available
Wakefield MDC,E08000036,31/12/2014,REGENCULT,Highways & Transport Services,5,MATRIX SCM LTD,Redacted,Not yet available,Not yet available,Not yet available,26/11/2014,170295,2,733.74,Nil,Agency Staff,Revenue,Business Services,CAT02,Agency,SUBCAT0204,31230,Employment & Recruitment Agencies,,Not yet available
Wakefield MDC,E08000036,31/12/2014,REGENCULT,Highways & Transport Services,5,MATRIX SCM LTD,Redacted,Not yet available,Not yet available,Not yet available,26/11/2014,170295,4,830.85,Nil,Agency Staff,Revenue,Business Services,CAT02,Agency,SUBCAT0204,31230,Employment & Recruitment Agencies,,Not yet available
Wakefield MDC,E08000036,31/12/2014,REGENCULT,Highways & Transport Services,5,MATRIX SCM LTD,Redacted,Not yet available,Not yet available,Not yet available,26/11/2014,170295,8,841.63,Nil,Agency Staff,Revenue,Business Services,CAT02,Agency,SUBCAT0204,31230,Employment & Recruitment Agencies,,Not yet available
Wakefield MDC,E08000036,31/12/2014,REGENCULT,Highways & Transport Services,5,MATRIX SCM LTD,Redacted,Not yet available,Not yet available,Not yet available,03/12/2014,170296,8,841.64,Nil,Agency Staff,Revenue,Business Services,CAT02,Agency,SUBCAT0204,31230,Employment & Recruitment Agencies,,Not yet available
Wakefield MDC,E08000036,31/12/2014,REGENCULT,Highways & Transport Services,5,MATRIX SCM LTD,Redacted,Not yet available,Not yet available,Not yet available,10/12/2014,170297,5,820.05,Nil,Agency Staff,Revenue,Business Services,CAT02,Agency,SUBCAT0204,31230,Employment & Recruitment Agencies,,Not yet available
Wakefield MDC,E08000036,31/12/2014,REGENCULT,Highways & Transport Services,5,MATRIX SCM LTD,Redacted,Not yet available,Not yet available,Not yet available,23/12/2014,170299,2,820.04,Nil,Agency Staff,Revenue,Business Services,CAT02,Agency,SUBCAT0204,31230,Employment & Recruitment Agencies,,Not yet available
Wakefield MDC,E08000036,31/12/2014,REGENCULT,Highways & Transport Services,5,MATRIX SCM LTD,Redacted,Not yet available,Not yet available,Not yet available,23/12/2014,170299,3,706.76,Nil,Agency Staff,Revenue,Business Services,CAT02,Agency,SUBCAT0204,31230,Employment & Recruitment Agencies,,Not yet available
Wakefield MDC,E08000036,31/12/2014,REGENCULT,Highways & Transport Services,5,MATRIX SCM LTD,Redacted,Not yet available,Not yet available,Not yet available,23/12/2014,170299,88,836.23,Nil,Agency Staff,Revenue,Business Services,CAT02,Agency,SUBCAT0204,31230,Employment & Recruitment Agencies,,Not yet available
Wakefield MDC,E08000036,31/12/2014,ADULTS,Adult Social Care,7,PIERS MEADOWS RECRUITMENT LTD,Redacted,Not yet available,Not yet available,Not yet available,03/10/2014,22606549,1,752.85,Nil,Agency Staff,Revenue,Business Services,CAT02,Agency,SUBCAT0204,31230,Employment & Recruitment Agencies,,Not yet available
Wakefield MDC,E08000036,31/12/2014,ADULTS,Adult Social Care,7,PIERS MEADOWS RECRUITMENT LTD,Redacted,Not yet available,Not yet available,Not yet available,15/10/2014,22611255,1,752.85,Nil,Agency Staff,Revenue,Business Services,CAT02,Agency,SUBCAT0204,31230,Employment & Recruitment Agencies,,Not yet available
Wakefield MDC,E08000036,31/12/2014,ADULTS,Adult Social Care,7,PIERS MEADOWS RECRUITMENT LTD,Redacted,Not yet available,Not yet available,Not yet available,15/10/2014,22611306,1,752.85,Nil,Agency Staff,Revenue,Business Services,CAT02,Agency,SUBCAT0204,31230,Employment & Recruitment Agencies,,Not yet available
Wakefield MDC,E08000036,31/12/2014,ADULTS,Adult Social Care,7,PIERS MEADOWS RECRUITMENT LTD,Redacted,Not yet available,Not yet available,Not yet available,17/10/2014,22621175,1,752.85,Nil,Agency Staff,Revenue,Business Services,CAT02,Agency,SUBCAT0204,31230,Employment & Recruitment Agencies,,Not yet available
Wakefield MDC,E08000036,31/12/2014,ADULTS,Adult Social Care,7,PIERS MEADOWS RECRUITMENT LTD,Redacted,Not yet available,Not yet available,Not yet available,17/10/2014,22621966,1,727.76,Nil,Agency Staff,Revenue,Business Services,CAT02,Agency,SUBCAT0204,31230,Employment & Recruitment Agencies,,Not yet available
Wakefield MDC,E08000036,31/12/2014,ADULTS,Adult Social Care,7,PIERS MEADOWS RECRUITMENT LTD,Redacted,Not yet available,Not yet available,Not yet available,24/10/2014,22625537,1,769.58,Nil,Agency Staff,Revenue,Business Services,CAT02,Agency,SUBCAT0204,31230,Employment & Recruitment Agencies,,Not yet available
Wakefield MDC,E08000036,31/12/2014,ADULTS,Adult Social Care,7,PIERS MEADOWS RECRUITMENT LTD,Redacted,Not yet available,Not yet available,Not yet available,29/10/2014,22628069,1,752.85,Nil,Agency Staff,Revenue,Business Services,CAT02,Agency,SUBCAT0204,31230,Employment & Recruitment Agencies,,Not yet available
Wakefield MDC,E08000036,31/12/2014,ADULTS,Adult Social Care,7,PIERS MEADOWS RECRUITMENT LTD,Redacted,Not yet available,Not yet available,Not yet available,13/11/2014,22634478,1,769.10,Nil,Agency Staff,Revenue,Business Services,CAT02,Agency,SUBCAT0204,31230,Employment & Recruitment Agencies,,Not yet available
Wakefield MDC,E08000036,31/12/2014,ADULTS,Adult Social Care,7,PIERS MEADOWS RECRUITMENT LTD,Redacted,Not yet available,Not yet available,Not yet available,18/11/2014,22644098,1,774.50,Nil,Agency Staff,Revenue,Business Services,CAT02,Agency,SUBCAT0204,31230,Employment & Recruitment Agencies,,Not yet available
Wakefield MDC,E08000036,31/12/2014,ADULTS,Adult Social Care,7,PIERS MEADOWS RECRUITMENT LTD,Redacted,Not yet available,Not yet available,Not yet available,01/12/2014,22649921,1,767.39,Nil,Agency Staff,Revenue,Business Services,CAT02,Agency,SUBCAT0204,31230,Employment & Recruitment Agencies,,Not yet available
Wakefield MDC,E08000036,31/12/2014,ADULTS,Adult Social Care,7,PIERS MEADOWS RECRUITMENT LTD,Redacted,Not yet available,Not yet available,Not yet available,05/12/2014,22655145,1,789.89,Nil,Agency Staff,Revenue,Business Services,CAT02,Agency,SUBCAT0204,31230,Employment & Recruitment Agencies,,Not yet available
Wakefield MDC,E08000036,31/12/2014,ADULTS,Adult Social Care,7,PIERS MEADOWS RECRUITMENT LTD,Redacted,Not yet available,Not yet available,Not yet available,11/12/2014,22657615,1,764.14,Nil,Agency Staff,Revenue,Business Services,CAT02,Agency,SUBCAT0204,31230,Employment & Recruitment Agencies,,Not yet available
Wakefield MDC,E08000036,31/12/2014,ADULTS,Adult Social Care,7,PIERS MEADOWS RECRUITMENT LTD,Redacted,Not yet available,Not yet available,Not yet available,24/12/2014,22672592,1,1569.15,Nil,Agency Staff,Revenue,Business Services,CAT02,Agency,SUBCAT0204,31230,Employment & Recruitment Agencies,,Not yet available
Wakefield MDC,E08000036,31/12/2014,ADULTS,Adult Social Care,7,BIG FISH LITTLE FISH,Redacted,Not yet available,Not yet available,Not yet available,10/12/2014,22654531,1,548.34,Nil,Agency Staff,Revenue,Business Services,CAT02,Agency,SUBCAT0204,31230,Employment & Recruitment Agencies,,Not yet available
Wakefield MDC,E08000036,31/12/2014,CHILDYOU,Children's and Education Services,4,MATRIX SCM LTD,Redacted,Not yet available,Not yet available,Not yet available,08/10/2014,170288,58,1092.63,Nil,Agency Staff,Revenue,Business Services,CAT02,Agency,SUBCAT0204,31230,Employment & Recruitment Agencies,,Not yet available
Wakefield MDC,E08000036,31/12/2014,CHILDYOU,Children's and Education Services,4,MATRIX SCM LTD,Redacted,Not yet available,Not yet available,Not yet available,15/10/2014,170289,23,1107.40,Nil,Agency Staff,Revenue,Business Services,CAT02,Agency,SUBCAT0204,31230,Employment & Recruitment Agencies,,Not yet available
Wakefield MDC,E08000036,31/12/2014,CHILDYOU,Children's and Education Services,4,MATRIX SCM LTD,Redacted,Not yet available,Not yet available,Not yet available,22/10/2014,170290,69,649.67,Nil,Agency Staff,Revenue,Business Services,CAT02,Agency,SUBCAT0204,31230,Employment & Recruitment Agencies,,Not yet available
Wakefield MDC,E08000036,31/12/2014,CHILDYOU,Children's and Education Services,4,MATRIX SCM LTD,Redacted,Not yet available,Not yet available,Not yet available,29/10/2014,170291,84,1092.63,Nil,Agency Staff,Revenue,Business Services,CAT02,Agency,SUBCAT0204,31230,Employment & Recruitment Agencies,,Not yet available
Wakefield MDC,E08000036,31/12/2014,CHILDYOU,Children's and Education Services,4,MATRIX SCM LTD,Redacted,Not yet available,Not yet available,Not yet available,05/11/2014,170292,81,1092.63,Nil,Agency Staff,Revenue,Business Services,CAT02,Agency,SUBCAT0204,31230,Employment & Recruitment Agencies,,Not yet available
Wakefield MDC,E08000036,31/12/2014,CHILDYOU,Children's and Education Services,4,MATRIX SCM LTD,Redacted,Not yet available,Not yet available,Not yet available,12/11/2014,170293,107,1092.63,Nil,Agency Staff,Revenue,Business Services,CAT02,Agency,SUBCAT0204,31230,Employment & Recruitment Agencies,,Not yet available
Wakefield MDC,E08000036,31/12/2014,CHILDYOU,Children's and Education Services,4,MATRIX SCM LTD,Redacted,Not yet available,Not yet available,Not yet available,19/11/2014,170294,50,871.15,Nil,Agency Staff,Revenue,Business Services,CAT02,Agency,SUBCAT0204,31230,Employment & Recruitment Agencies,,Not yet available
Wakefield MDC,E08000036,31/12/2014,CHILDYOU,Children's and Education Services,4,MATRIX SCM LTD,Redacted,Not yet available,Not yet available,Not yet available,08/10/2014,170288,97,1301.76,Nil,Agency Staff,Revenue,Business Services,CAT02,Agency,SUBCAT0204,31230,Employment & Recruitment Agencies,,Not yet available
Wakefield MDC,E08000036,31/12/2014,CHILDYOU,Children's and Education Services,4,MATRIX SCM LTD,Redacted,Not yet available,Not yet available,Not yet available,08/10/2014,170288,98,1921.95,Nil,Agency Staff,Revenue,Business Services,CAT02,Agency,SUBCAT0204,31230,Employment & Recruitment Agencies,,Not yet available
Wakefield MDC,E08000036,31/12/2014,CHILDYOU,Children's and Education Services,4,MATRIX SCM LTD,Redacted,Not yet available,Not yet available,Not yet available,08/10/2014,170288,2,620.13,Nil,Agency Staff,Revenue,Business Services,CAT02,Agency,SUBCAT0204,31230,Employment & Recruitment Agencies,,Not yet available
Wakefield MDC,E08000036,31/12/2014,CHILDYOU,Children's and Education Services,4,MATRIX SCM LTD,Redacted,Not yet available,Not yet available,Not yet available,15/10/2014,170289,27,738.26,Nil,Agency Staff,Revenue,Business Services,CAT02,Agency,SUBCAT0204,31230,Employment & Recruitment Agencies,,Not yet available
Wakefield MDC,E08000036,31/12/2014,CHILDYOU,Children's and Education Services,4,MATRIX SCM LTD,Redacted,Not yet available,Not yet available,Not yet available,15/10/2014,170289,19,620.13,Nil,Agency Staff,Revenue,Business Services,CAT02,Agency,SUBCAT0204,31230,Employment & Recruitment Agencies,,Not yet available
Wakefield MDC,E08000036,31/12/2014,CHILDYOU,Children's and Education Services,4,MATRIX SCM LTD,Redacted,Not yet available,Not yet available,Not yet available,15/10/2014,170289,39,1921.95,Nil,Agency Staff,Revenue,Business Services,CAT02,Agency,SUBCAT0204,31230,Employment & Recruitment Agencies,,Not yet available
Wakefield MDC,E08000036,31/12/2014,CHILDYOU,Children's and Education Services,4,MATRIX SCM LTD,Redacted,Not yet available,Not yet available,Not yet available,15/10/2014,170289,24,1337.92,Nil,Agency Staff,Revenue,Business Services,CAT02,Agency,SUBCAT0204,31230,Employment & Recruitment Agencies,,Not yet available
Wakefield MDC,E08000036,31/12/2014,CHILDYOU,Children's and Education Services,4,MATRIX SCM LTD,Redacted,Not yet available,Not yet available,Not yet available,22/10/2014,170290,23,1921.95,Nil,Agency Staff,Revenue,Business Services,CAT02,Agency,SUBCAT0204,31230,Employment & Recruitment Agencies,,Not yet available
Wakefield MDC,E08000036,31/12/2014,CHILDYOU,Children's and Education Services,4,MATRIX SCM LTD,Redacted,Not yet available,Not yet available,Not yet available,22/10/2014,170290,32,590.60,Nil,Agency Staff,Revenue,Business Services,CAT02,Agency,SUBCAT0204,31230,Employment & Recruitment Agencies,,Not yet available
Wakefield MDC,E08000036,31/12/2014,CHILDYOU,Children's and Education Services,4,MATRIX SCM LTD,Redacted,Not yet available,Not yet available,Not yet available,22/10/2014,170290,38,958.24,Nil,Agency Staff,Revenue,Business Services,CAT02,Agency,SUBCAT0204,31230,Employment & Recruitment Agencies,,Not yet available
Wakefield MDC,E08000036,31/12/2014,CHILDYOU,Children's and Education Services,4,MATRIX SCM LTD,Redacted,Not yet available,Not yet available,Not yet available,29/10/2014,170291,105,1708.40,Nil,Agency Staff,Revenue,Business Services,CAT02,Agency,SUBCAT0204,31230,Employment & Recruitment Agencies,,Not yet available
Wakefield MDC,E08000036,31/12/2014,CHILDYOU,Children's and Education Services,4,MATRIX SCM LTD,Redacted,Not yet available,Not yet available,Not yet available,29/10/2014,170291,53,1139.04,Nil,Agency Staff,Revenue,Business Services,CAT02,Agency,SUBCAT0204,31230,Employment & Recruitment Agencies,,Not yet available
Wakefield MDC,E08000036,31/12/2014,CHILDYOU,Children's and Education Services,4,MATRIX SCM LTD,Redacted,Not yet available,Not yet available,Not yet available,29/10/2014,170291,65,590.60,Nil,Agency Staff,Revenue,Business Services,CAT02,Agency,SUBCAT0204,31230,Employment & Recruitment Agencies,,Not yet available
Wakefield MDC,E08000036,31/12/2014,CHILDYOU,Children's and Education Services,4,MATRIX SCM LTD,Redacted,Not yet available,Not yet available,Not yet available,05/11/2014,170292,27,1366.72,Nil,Agency Staff,Revenue,Business Services,CAT02,Agency,SUBCAT0204,31230,Employment & Recruitment Agencies,,Not yet available
Wakefield MDC,E08000036,31/12/2014,CHILDYOU,Children's and Education Services,4,MATRIX SCM LTD,Redacted,Not yet available,Not yet available,Not yet available,05/11/2014,170292,20,1337.92,Nil,Agency Staff,Revenue,Business Services,CAT02,Agency,SUBCAT0204,31230,Employment & Recruitment Agencies,,Not yet available
Wakefield MDC,E08000036,31/12/2014,CHILDYOU,Children's and Education Services,4,MATRIX SCM LTD,Redacted,Not yet available,Not yet available,Not yet available,12/11/2014,170293,81,1337.92,Nil,Agency Staff,Revenue,Business Services,CAT02,Agency,SUBCAT0204,31230,Employment & Recruitment Agencies,,Not yet available
Wakefield MDC,E08000036,31/12/2014,CHILDYOU,Children's and Education Services,4,MATRIX SCM LTD,Redacted,Not yet available,Not yet available,Not yet available,12/11/2014,170293,108,1708.40,Nil,Agency Staff,Revenue,Business Services,CAT02,Agency,SUBCAT0204,31230,Employment & Recruitment Agencies,,Not yet available
Wakefield MDC,E08000036,31/12/2014,CHILDYOU,Children's and Education Services,4,MATRIX SCM LTD,Redacted,Not yet available,Not yet available,Not yet available,19/11/2014,170294,61,1337.92,Nil,Agency Staff,Revenue,Business Services,CAT02,Agency,SUBCAT0204,31230,Employment & Recruitment Agencies,,Not yet available
Wakefield MDC,E08000036,31/12/2014,CHILDYOU,Children's and Education Services,4,MATRIX SCM LTD,Redacted,Not yet available,Not yet available,Not yet available,19/11/2014,170294,39,1708.40,Nil,Agency Staff,Revenue,Business Services,CAT02,Agency,SUBCAT0204,31230,Employment & Recruitment Agencies,,Not yet available
Wakefield MDC,E08000036,31/12/2014,CHILDYOU,Children's and Education Services,4,MATRIX SCM LTD,Redacted,Not yet available,Not yet available,Not yet available,19/11/2014,170294,76,531.54,Nil,Agency Staff,Revenue,Business Services,CAT02,Agency,SUBCAT0204,31230,Employment & Recruitment Agencies,,Not yet available
Wakefield MDC,E08000036,31/12/2014,CHILDYOU,Children's and Education Services,4,MATRIX SCM LTD,Redacted,Not yet available,Not yet available,Not yet available,26/11/2014,170295,94,620.13,Nil,Agency Staff,Revenue,Business Services,CAT02,Agency,SUBCAT0204,31230,Employment & Recruitment Agencies,,Not yet available
Wakefield MDC,E08000036,31/12/2014,CHILDYOU,Children's and Education Services,4,MATRIX SCM LTD,Redacted,Not yet available,Not yet available,Not yet available,26/11/2014,170295,68,1337.92,Nil,Agency Staff,Revenue,Business Services,CAT02,Agency,SUBCAT0204,31230,Employment & Recruitment Agencies,,Not yet available
Wakefield MDC,E08000036,31/12/2014,CHILDYOU,Children's and Education Services,4,MATRIX SCM LTD,Redacted,Not yet available,Not yet available,Not yet available,26/11/2014,170295,53,1708.40,Nil,Agency Staff,Revenue,Business Services,CAT02,Agency,SUBCAT0204,31230,Employment & Recruitment Agencies,,Not yet available
Wakefield MDC,E08000036,31/12/2014,CHILDYOU,Children's and Education Services,4,MATRIX SCM LTD,Redacted,Not yet available,Not yet available,Not yet available,03/12/2014,170296,14,1030.56,Nil,Agency Staff,Revenue,Business Services,CAT02,Agency,SUBCAT0204,31230,Employment & Recruitment Agencies,,Not yet available
Wakefield MDC,E08000036,31/12/2014,CHILDYOU,Children's and Education Services,4,MATRIX SCM LTD,Redacted,Not yet available,Not yet available,Not yet available,03/12/2014,170296,64,634.89,Nil,Agency Staff,Revenue,Business Services,CAT02,Agency,SUBCAT0204,31230,Employment & Recruitment Agencies,,Not yet available
Wakefield MDC,E08000036,31/12/2014,CHILDYOU,Children's and Education Services,4,MATRIX SCM LTD,Redacted,Not yet available,Not yet available,Not yet available,03/12/2014,170296,74,854.20,Nil,Agency Staff,Revenue,Business Services,CAT02,Agency,SUBCAT0204,31230,Employment & Recruitment Agencies,,Not yet available
Wakefield MDC,E08000036,31/12/2014,CHILDYOU,Children's and Education Services,4,MATRIX SCM LTD,Redacted,Not yet available,Not yet available,Not yet available,10/12/2014,170297,9,1337.92,Nil,Agency Staff,Revenue,Business Services,CAT02,Agency,SUBCAT0204,31230,Employment & Recruitment Agencies,,Not yet available
Wakefield MDC,E08000036,31/12/2014,CHILDYOU,Children's and Education Services,4,MATRIX SCM LTD,Redacted,Not yet available,Not yet available,Not yet available,10/12/2014,170297,81,620.13,Nil,Agency Staff,Revenue,Business Services,CAT02,Agency,SUBCAT0204,31230,Employment & Recruitment Agencies,,Not yet available
Wakefield MDC,E08000036,31/12/2014,CHILDYOU,Children's and Education Services,4,MATRIX SCM LTD,Redacted,Not yet available,Not yet available,Not yet available,10/12/2014,170297,12,1708.40,Nil,Agency Staff,Revenue,Business Services,CAT02,Agency,SUBCAT0204,31230,Employment & Recruitment Agencies,,Not yet available
Wakefield MDC,E08000036,31/12/2014,CHILDYOU,Children's and Education Services,4,MATRIX SCM LTD,Redacted,Not yet available,Not yet available,Not yet available,17/12/2014,170298,153,1708.40,Nil,Agency Staff,Revenue,Business Services,CAT02,Agency,SUBCAT0204,31230,Employment & Recruitment Agencies,,Not yet available
Wakefield MDC,E08000036,31/12/2014,CHILDYOU,Children's and Education Services,4,MATRIX SCM LTD,Redacted,Not yet available,Not yet available,Not yet available,17/12/2014,170298,164,590.60,Nil,Agency Staff,Revenue,Business Services,CAT02,Agency,SUBCAT0204,31230,Employment & Recruitment Agencies,,Not yet available
Wakefield MDC,E08000036,31/12/2014,CHILDYOU,Children's and Education Services,4,MATRIX SCM LTD,Redacted,Not yet available,Not yet available,Not yet available,17/12/2014,170298,48,1337.92,Nil,Agency Staff,Revenue,Business Services,CAT02,Agency,SUBCAT0204,31230,Employment & Recruitment Agencies,,Not yet available
Wakefield MDC,E08000036,31/12/2014,CHILDYOU,Children's and Education Services,4,MATRIX SCM LTD,Redacted,Not yet available,Not yet available,Not yet available,23/12/2014,170299,28,1265.60,Nil,Agency Staff,Revenue,Business Services,CAT02,Agency,SUBCAT0204,31230,Employment & Recruitment Agencies,,Not yet available
Wakefield MDC,E08000036,31/12/2014,CHILDYOU,Children's and Education Services,4,MATRIX SCM LTD,Redacted,Not yet available,Not yet available,Not yet available,23/12/2014,170299,55,2050.08,Nil,Agency Staff,Revenue,Business Services,CAT02,Agency,SUBCAT0204,31230,Employment & Recruitment Agencies,,Not yet available
Wakefield MDC,E08000036,31/12/2014,CHILDYOU,Children's and Education Services,4,MATRIX SCM LTD,Redacted,Not yet available,Not yet available,Not yet available,30/12/2014,170300,52,1195.88,Nil,Agency Staff,Revenue,Business Services,CAT02,Agency,SUBCAT0204,31230,Employment & Recruitment Agencies,,Not yet available
Wakefield MDC,E08000036,31/12/2014,CHILDYOU,Children's and Education Services,4,MATRIX SCM LTD,Redacted,Not yet available,Not yet available,Not yet available,30/12/2014,170300,44,1030.56,Nil,Agency Staff,Revenue,Business Services,CAT02,Agency,SUBCAT0204,31230,Employment & Recruitment Agencies,,Not yet available
Wakefield MDC,E08000036,31/12/2014,CHILDYOU,Children's and Education Services,4,MATRIX SCM LTD,Redacted,Not yet available,Not yet available,Not yet available,08/10/2014,170288,5,1606.32,Nil,Agency Staff,Revenue,Business Services,CAT02,Agency,SUBCAT0204,31230,Employment & Recruitment Agencies,,Not yet available
Wakefield MDC,E08000036,31/12/2014,CHILDYOU,Children's and Education Services,4,MATRIX SCM LTD,Redacted,Not yet available,Not yet available,Not yet available,08/10/2014,170288,59,1466.64,Nil,Agency Staff,Revenue,Business Services,CAT02,Agency,SUBCAT0204,31230,Employment & Recruitment Agencies,,Not yet available
Wakefield MDC,E08000036,31/12/2014,CHILDYOU,Children's and Education Services,4,MATRIX SCM LTD,Redacted,Not yet available,Not yet available,Not yet available,08/10/2014,170288,62,1391.59,Nil,Agency Staff,Revenue,Business Services,CAT02,Agency,SUBCAT0204,31230,Employment & Recruitment Agencies,,Not yet available
Wakefield MDC,E08000036,31/12/2014,CHILDYOU,Children's and Education Services,4,MATRIX SCM LTD,Redacted,Not yet available,Not yet available,Not yet available,15/10/2014,170289,85,1391.59,Nil,Agency Staff,Revenue,Business Services,CAT02,Agency,SUBCAT0204,31230,Employment & Recruitment Agencies,,Not yet available
Wakefield MDC,E08000036,31/12/2014,CHILDYOU,Children's and Education Services,4,MATRIX SCM LTD,Redacted,Not yet available,Not yet available,Not yet available,15/10/2014,170289,54,1641.24,Nil,Agency Staff,Revenue,Business Services,CAT02,Agency,SUBCAT0204,31230,Employment & Recruitment Agencies,,Not yet available
Wakefield MDC,E08000036,31/12/2014,CHILDYOU,Children's and Education Services,4,MATRIX SCM LTD,Redacted,Not yet available,Not yet available,Not yet available,22/10/2014,170290,60,1457.91,Nil,Agency Staff,Revenue,Business Services,CAT02,Agency,SUBCAT0204,31230,Employment & Recruitment Agencies,,Not yet available
Wakefield MDC,E08000036,31/12/2014,CHILDYOU,Children's and Education Services,4,MATRIX SCM LTD,Redacted,Not yet available,Not yet available,Not yet available,22/10/2014,170290,41,1278.76,Nil,Agency Staff,Revenue,Business Services,CAT02,Agency,SUBCAT0204,31230,Employment & Recruitment Agencies,,Not yet available
Wakefield MDC,E08000036,31/12/2014,CHILDYOU,Children's and Education Services,4,MATRIX SCM LTD,Redacted,Not yet available,Not yet available,Not yet available,12/11/2014,170293,31,1353.98,Nil,Agency Staff,Revenue,Business Services,CAT02,Agency,SUBCAT0204,31230,Employment & Recruitment Agencies,,Not yet available
Wakefield MDC,E08000036,31/12/2014,CHILDYOU,Children's and Education Services,4,MATRIX SCM LTD,Redacted,Not yet available,Not yet available,Not yet available,12/11/2014,170293,35,1484.10,Nil,Agency Staff,Revenue,Business Services,CAT02,Agency,SUBCAT0204,31230,Employment & Recruitment Agencies,,Not yet available
Wakefield MDC,E08000036,31/12/2014,CHILDYOU,Children's and Education Services,4,MATRIX SCM LTD,Redacted,Not yet available,Not yet available,Not yet available,19/11/2014,170294,2,1372.78,Nil,Agency Staff,Revenue,Business Services,CAT02,Agency,SUBCAT0204,31230,Employment & Recruitment Agencies,,Not yet available
Wakefield MDC,E08000036,31/12/2014,CHILDYOU,Children's and Education Services,4,MATRIX SCM LTD,Redacted,Not yet available,Not yet available,Not yet available,19/11/2014,170294,5,1410.39,Nil,Agency Staff,Revenue,Business Services,CAT02,Agency,SUBCAT0204,31230,Employment & Recruitment Agencies,,Not yet available
Wakefield MDC,E08000036,31/12/2014,CHILDYOU,Children's and Education Services,4,MATRIX SCM LTD,Redacted,Not yet available,Not yet available,Not yet available,19/11/2014,170294,3,1466.64,Nil,Agency Staff,Revenue,Business Services,CAT02,Agency,SUBCAT0204,31230,Employment & Recruitment Agencies,,Not yet available
Wakefield MDC,E08000036,31/12/2014,CHILDYOU,Children's and Education Services,4,MATRIX SCM LTD,Redacted,Not yet available,Not yet available,Not yet available,19/11/2014,170294,4,1466.64,Nil,Agency Staff,Revenue,Business Services,CAT02,Agency,SUBCAT0204,31230,Employment & Recruitment Agencies,,Not yet available
Wakefield MDC,E08000036,31/12/2014,CHILDYOU,Children's and Education Services,4,MATRIX SCM LTD,Redacted,Not yet available,Not yet available,Not yet available,19/11/2014,170294,46,1466.64,Nil,Agency Staff,Revenue,Business Services,CAT02,Agency,SUBCAT0204,31230,Employment & Recruitment Agencies,,Not yet available
Wakefield MDC,E08000036,31/12/2014,CHILDYOU,Children's and Education Services,4,MATRIX SCM LTD,Redacted,Not yet available,Not yet available,Not yet available,26/11/2014,170295,105,1391.59,Nil,Agency Staff,Revenue,Business Services,CAT02,Agency,SUBCAT0204,31230,Employment & Recruitment Agencies,,Not yet available
Wakefield MDC,E08000036,31/12/2014,CHILDYOU,Children's and Education Services,4,MATRIX SCM LTD,Redacted,Not yet available,Not yet available,Not yet available,26/11/2014,170295,87,1466.64,Nil,Agency Staff,Revenue,Business Services,CAT02,Agency,SUBCAT0204,31230,Employment & Recruitment Agencies,,Not yet available
Wakefield MDC,E08000036,31/12/2014,CHILDYOU,Children's and Education Services,4,MATRIX SCM LTD,Redacted,Not yet available,Not yet available,Not yet available,03/12/2014,170296,94,1466.64,Nil,Agency Staff,Revenue,Business Services,CAT02,Agency,SUBCAT0204,31230,Employment & Recruitment Agencies,,Not yet available
Wakefield MDC,E08000036,31/12/2014,CHILDYOU,Children's and Education Services,4,MATRIX SCM LTD,Redacted,Not yet available,Not yet available,Not yet available,10/12/2014,170297,35,1466.64,Nil,Agency Staff,Revenue,Business Services,CAT02,Agency,SUBCAT0204,31230,Employment & Recruitment Agencies,,Not yet available
Wakefield MDC,E08000036,31/12/2014,CHILDYOU,Children's and Education Services,4,MATRIX SCM LTD,Redacted,Not yet available,Not yet available,Not yet available,10/12/2014,170297,6,921.46,Nil,Agency Staff,Revenue,Business Services,CAT02,Agency,SUBCAT0204,31230,Employment & Recruitment Agencies,,Not yet available
Wakefield MDC,E08000036,31/12/2014,CHILDYOU,Children's and Education Services,4,MATRIX SCM LTD,Redacted,Not yet available,Not yet available,Not yet available,10/12/2014,170297,53,1071.90,Nil,Agency Staff,Revenue,Business Services,CAT02,Agency,SUBCAT0204,31230,Employment & Recruitment Agencies,,Not yet available
Wakefield MDC,E08000036,31/12/2014,CHILDYOU,Children's and Education Services,4,MATRIX SCM LTD,Redacted,Not yet available,Not yet available,Not yet available,17/12/2014,170298,141,1466.64,Nil,Agency Staff,Revenue,Business Services,CAT02,Agency,SUBCAT0204,31230,Employment & Recruitment Agencies,,Not yet available
Wakefield MDC,E08000036,31/12/2014,CHILDYOU,Children's and Education Services,4,MATRIX SCM LTD,Redacted,Not yet available,Not yet available,Not yet available,17/12/2014,170298,125,1259.95,Nil,Agency Staff,Revenue,Business Services,CAT02,Agency,SUBCAT0204,31230,Employment & Recruitment Agencies,,Not yet available
Wakefield MDC,E08000036,31/12/2014,CHILDYOU,Children's and Education Services,4,MATRIX SCM LTD,Redacted,Not yet available,Not yet available,Not yet available,23/12/2014,170299,54,1553.94,Nil,Agency Staff,Revenue,Business Services,CAT02,Agency,SUBCAT0204,31230,Employment & Recruitment Agencies,,Not yet available
Wakefield MDC,E08000036,31/12/2014,CHILDYOU,Children's and Education Services,4,MATRIX SCM LTD,Redacted,Not yet available,Not yet available,Not yet available,23/12/2014,170299,82,1429.20,Nil,Agency Staff,Revenue,Business Services,CAT02,Agency,SUBCAT0204,31230,Employment & Recruitment Agencies,,Not yet available
Wakefield MDC,E08000036,31/12/2014,CHILDYOU,Children's and Education Services,4,MATRIX SCM LTD,Redacted,Not yet available,Not yet available,Not yet available,30/12/2014,170300,42,1034.29,Nil,Agency Staff,Revenue,Business Services,CAT02,Agency,SUBCAT0204,31230,Employment & Recruitment Agencies,,Not yet available
Wakefield MDC,E08000036,31/12/2014,BUSINESS,Net (Surplus) / Deficit of Trading Operations,A,YOUR VIRTUAL PR LIMITED,Redacted,Not yet available,Not yet available,Not yet available,28/10/2014,22608302,1,2808.20,Nil,Agency Staff,Revenue,Business Services,CAT02,Communications,SUBCAT0209,62370,Public Relations Consultants,,Not yet available
Wakefield MDC,E08000036,31/12/2014,BUSINESS,Net (Surplus) / Deficit of Trading Operations,A,YOUR VIRTUAL PR LIMITED,Redacted,Not yet available,Not yet available,Not yet available,06/11/2014,22631565,1,2499.06,Nil,Agency Staff,Revenue,Business Services,CAT02,Communications,SUBCAT0209,62370,Public Relations Consultants,,Not yet available
Wakefield MDC,E08000036,31/12/2014,BUSINESS,Net (Surplus) / Deficit of Trading Operations,A,YOUR VIRTUAL PR LIMITED,Redacted,Not yet available,Not yet available,Not yet available,11/12/2014,22654468,1,3199.46,Nil,Agency Staff,Revenue,Business Services,CAT02,Communications,SUBCAT0209,62370,Public Relations Consultants,,Not yet available
Wakefield MDC,E08000036,31/12/2014,BUSINESS,Net (Surplus) / Deficit of Trading Operations,A,DETAILS REDACTED,Redacted,Not yet available,Not yet available,Not yet available,19/11/2014,22642698,1,600.00,Nil,Agency Staff,Revenue,Business Services,CAT02,Agency,SUBCAT0204,31230,Employment & Recruitment Agencies,,Not yet available
Wakefield MDC,E08000036,31/12/2014,REGENCULT,Environmental and Regulatory Services,M,MATRIX SCM LTD,Redacted,Not yet available,Not yet available,Not yet available,08/10/2014,170288,20,569.60,Nil,Agency Staff,Revenue,Business Services,CAT02,Agency,SUBCAT0204,31230,Employment & Recruitment Agencies,,Not yet available
Wakefield MDC,E08000036,31/12/2014,REGENCULT,Environmental and Regulatory Services,M,MATRIX SCM LTD,Redacted,Not yet available,Not yet available,Not yet available,08/10/2014,170288,22,569.60,Nil,Agency Staff,Revenue,Business Services,CAT02,Agency,SUBCAT0204,31230,Employment & Recruitment Agencies,,Not yet available
Wakefield MDC,E08000036,31/12/2014,REGENCULT,Environmental and Regulatory Services,M,MATRIX SCM LTD,Redacted,Not yet available,Not yet available,Not yet available,15/10/2014,170289,11,569.60,Nil,Agency Staff,Revenue,Business Services,CAT02,Agency,SUBCAT0204,31230,Employment & Recruitment Agencies,,Not yet available
Wakefield MDC,E08000036,31/12/2014,REGENCULT,Environmental and Regulatory Services,M,MATRIX SCM LTD,Redacted,Not yet available,Not yet available,Not yet available,15/10/2014,170289,13,569.60,Nil,Agency Staff,Revenue,Business Services,CAT02,Agency,SUBCAT0204,31230,Employment & Recruitment Agencies,,Not yet available
Wakefield MDC,E08000036,31/12/2014,REGENCULT,Environmental and Regulatory Services,M,MATRIX SCM LTD,Redacted,Not yet available,Not yet available,Not yet available,15/10/2014,170289,12,569.60,Nil,Agency Staff,Revenue,Business Services,CAT02,Agency,SUBCAT0204,31230,Employment & Recruitment Agencies,,Not yet available
Wakefield MDC,E08000036,31/12/2014,REGENCULT,Environmental and Regulatory Services,M,MATRIX SCM LTD,Redacted,Not yet available,Not yet available,Not yet available,22/10/2014,170290,12,569.60,Nil,Agency Staff,Revenue,Business Services,CAT02,Agency,SUBCAT0204,31230,Employment & Recruitment Agencies,,Not yet available
Wakefield MDC,E08000036,31/12/2014,REGENCULT,Environmental and Regulatory Services,M,MATRIX SCM LTD,Redacted,Not yet available,Not yet available,Not yet available,22/10/2014,170290,10,569.60,Nil,Agency Staff,Revenue,Business Services,CAT02,Agency,SUBCAT0204,31230,Employment & Recruitment Agencies,,Not yet available
Wakefield MDC,E08000036,31/12/2014,REGENCULT,Environmental and Regulatory Services,M,MATRIX SCM LTD,Redacted,Not yet available,Not yet available,Not yet available,22/10/2014,170290,11,569.60,Nil,Agency Staff,Revenue,Business Services,CAT02,Agency,SUBCAT0204,31230,Employment & Recruitment Agencies,,Not yet available
Wakefield MDC,E08000036,31/12/2014,REGENCULT,Environmental and Regulatory Services,M,MATRIX SCM LTD,Redacted,Not yet available,Not yet available,Not yet available,22/10/2014,170290,7,569.60,Nil,Agency Staff,Revenue,Business Services,CAT02,Agency,SUBCAT0204,31230,Employment & Recruitment Agencies,,Not yet available
Wakefield MDC,E08000036,31/12/2014,REGENCULT,Environmental and Regulatory Services,M,MATRIX SCM LTD,Redacted,Not yet available,Not yet available,Not yet available,29/10/2014,170291,40,569.60,Nil,Agency Staff,Revenue,Business Services,CAT02,Agency,SUBCAT0204,31230,Employment & Recruitment Agencies,,Not yet available
Wakefield MDC,E08000036,31/12/2014,REGENCULT,Environmental and Regulatory Services,M,MATRIX SCM LTD,Redacted,Not yet available,Not yet available,Not yet available,29/10/2014,170291,44,569.60,Nil,Agency Staff,Revenue,Business Services,CAT02,Agency,SUBCAT0204,31230,Employment & Recruitment Agencies,,Not yet available
Wakefield MDC,E08000036,31/12/2014,REGENCULT,Environmental and Regulatory Services,M,MATRIX SCM LTD,Redacted,Not yet available,Not yet available,Not yet available,29/10/2014,170291,42,569.60,Nil,Agency Staff,Revenue,Business Services,CAT02,Agency,SUBCAT0204,31230,Employment & Recruitment Agencies,,Not yet available
Wakefield MDC,E08000036,31/12/2014,REGENCULT,Environmental and Regulatory Services,M,MATRIX SCM LTD,Redacted,Not yet available,Not yet available,Not yet available,29/10/2014,170291,43,569.60,Nil,Agency Staff,Revenue,Business Services,CAT02,Agency,SUBCAT0204,31230,Employment & Recruitment Agencies,,Not yet available
Wakefield MDC,E08000036,31/12/2014,REGENCULT,Environmental and Regulatory Services,M,MATRIX SCM LTD,Redacted,Not yet available,Not yet available,Not yet available,29/10/2014,170291,39,569.60,Nil,Agency Staff,Revenue,Business Services,CAT02,Agency,SUBCAT0204,31230,Employment & Recruitment Agencies,,Not yet available
Wakefield MDC,E08000036,31/12/2014,REGENCULT,Environmental and Regulatory Services,M,MATRIX SCM LTD,Redacted,Not yet available,Not yet available,Not yet available,05/11/2014,170292,19,583.84,Nil,Agency Staff,Revenue,Business Services,CAT02,Agency,SUBCAT0204,31230,Employment & Recruitment Agencies,,Not yet available
Wakefield MDC,E08000036,31/12/2014,REGENCULT,Environmental and Regulatory Services,M,MATRIX SCM LTD,Redacted,Not yet available,Not yet available,Not yet available,12/11/2014,170293,59,583.84,Nil,Agency Staff,Revenue,Business Services,CAT02,Agency,SUBCAT0204,31230,Employment & Recruitment Agencies,,Not yet available
Wakefield MDC,E08000036,31/12/2014,REGENCULT,Environmental and Regulatory Services,M,MATRIX SCM LTD,Redacted,Not yet available,Not yet available,Not yet available,12/11/2014,170293,28,569.60,Nil,Agency Staff,Revenue,Business Services,CAT02,Agency,SUBCAT0204,31230,Employment & Recruitment Agencies,,Not yet available
Wakefield MDC,E08000036,31/12/2014,REGENCULT,Environmental and Regulatory Services,M,MATRIX SCM LTD,Redacted,Not yet available,Not yet available,Not yet available,12/11/2014,170293,72,569.60,Nil,Agency Staff,Revenue,Business Services,CAT02,Agency,SUBCAT0204,31230,Employment & Recruitment Agencies,,Not yet available
Wakefield MDC,E08000036,31/12/2014,REGENCULT,Environmental and Regulatory Services,M,MATRIX SCM LTD,Redacted,Not yet available,Not yet available,Not yet available,12/11/2014,170293,26,569.60,Nil,Agency Staff,Revenue,Business Services,CAT02,Agency,SUBCAT0204,31230,Employment & Recruitment Agencies,,Not yet available
Wakefield MDC,E08000036,31/12/2014,REGENCULT,Environmental and Regulatory Services,M,MATRIX SCM LTD,Redacted,Not yet available,Not yet available,Not yet available,12/11/2014,170293,69,569.60,Nil,Agency Staff,Revenue,Business Services,CAT02,Agency,SUBCAT0204,31230,Employment & Recruitment Agencies,,Not yet available
Wakefield MDC,E08000036,31/12/2014,REGENCULT,Environmental and Regulatory Services,M,MATRIX SCM LTD,Redacted,Not yet available,Not yet available,Not yet available,12/11/2014,170293,27,569.60,Nil,Agency Staff,Revenue,Business Services,CAT02,Agency,SUBCAT0204,31230,Employment & Recruitment Agencies,,Not yet available
